Workbook

Sheet 講習実施計画一覧
B1: =D3&"年度 講習実施計画表" -> 2025年度 講習実施計画表
B3: 1 | C3: 年度 | D3: 2025
B4: 2 | C4: 都道府県
I5: ★ | K5: 必須項目
I6: ★ | K6: 任意項目
I7: ★ | K7: 入力不要
C8: ※申込期間は調整しますので決定ではありません。
C10: 3 | D10: 4 | E10: 5 | F10: 6 | G10: 7 | H10: 8 | I10: 9 | K10: 10 | M10: 11 | N10: 12 | P10: 13 | R10: 14 | T10: 15 | V10: 16 | W10: 17 | X10: 18 | Y10: 19 | Z10: 20 | AA10: 21 | AB10: 22 | AC10: 23 | AD10: 24 | AE10: 25 | AF10: 26 | AG10: 27 | AH10: 28 | AI10: 29 | AJ10: 30 | AK10: 31 | AL10: 32 | AM10: 33 | AN10: 34 | AO10: 35 | AP10: 36 | AQ10: 37 | AR10: 38 | AS10: 39 | AT10: 40 | AU10: 41 | AV10: 42 | AW10: 43 | AX10: 44 | AY10: 45
B11: No | C11: 事務担当団体名 | D11: 講習 区分 | E11: 講習種別 | F11: 開催地 | H11: 企業名 | I11: 講習日 | N11: 申込期間 | V11: 募集 人数 | Z11: 時間割 | AB11: 資料送付先情報 | AW11: 担当者 | AX11: 会場使用料関連
N12: WEB | R12: FAX | AB12: テキスト、冊子DVD | AL12: 修了証、効果測定等 | AV12: その他資機材 （本部講習のみ）
F13: 都道府県 | G13: 市区町村 | I13: 開始日 | K13: 終了日 | M13: 日付 区分 | N13: 開始日 | P13: 終了日 | R13: 開始日 | T13: 終了日 | W13: 会場名 | X13: 予約 状況 | Y13: 当該年度のみの突発的な会場の注意事項 | Z13: 時間割 パターン | AA13: 実技 講師数 | AB13: 宛先 | AC13: 郵便番号 | AD13: 住所1 | AE13: 住所2 | AF13: 電話番号 | AG13: 配送指定日 | AL13: 宛先 | AM13: 郵便番号 | AN13: 住所1 | AO13: 住所2 | AP13: 電話番号 | AQ13: 配送指定日 | AX13: 会場使用料 | AY13: 募集人数 あたりの 会場使用料
AG14: 指定有無 | AH14: 指定日 | AI14: 午前/午後 | AJ14: 指定時間（開始） | AK14: 指定時間（終了） | AQ14: 指定有無 | AR14: 指定日 | AS14: 午前/午後 | AT14: 指定時間（開始） | AU14: 指定時間（終了）
B15: （例） | C15: （一財）日本防火・防災協会 | D15: 一般講習 | E15: 甲種防火新規 | F15: 北海道 | G15: 札幌市 | I15: 2022-06-28 | J15: 火 | K15: 2022-06-29 | L15: 水 | M15: 確定 | N15: 2022-05-18 | O15: 水 | P15: 2022-05-25 | Q15: 水 | R15: 2022-05-18 | S15: 水 | T15: 2022-05-25 | U15: 水 | V15: １００ | W15: ABC会場 | X15: 仮予約 | Z15: 2 | AB15: 札幌市防火協会 | AC15: 1111111 | AD15: 北海道札幌市○○町１－３４ | AE15: 札幌市民会館A会議室 | AF15: 11111111111 | AG15: あり | AH15: 2019/12/1 | AI15: 午前 | AJ15: 9:00 | AK15: 12:00 | AL15: 札幌市防火協会 | AM15: 2222222 | AN15: 北海道札幌市△△町２－５５ | AO15: 第一ビル3階 | AP15: 1122222222 | AQ15: あり | AR15: 2019/12/1 | AS15: 午後 | AT15: 1:00 | AU15: 5:00 | AV15: プロジェクター１台 | AW15: 事務 太郎 | AX15: 100000
B16: 1 | F16: =IF($D$4<>"",$D$4,"") ->  | J16: =IF(I16="","",TEXT(I16,"aaa")) ->  | K16: =IF(OR(E16= "甲種防火新規",E16= "甲乙同時",E16= "防火防災新規"),IF(I16="","",I16+1),IF(I16="","",I16)) ->  | L16: =IF(K16="","",TEXT(K16,"aaa")) ->  | N16: =IF($I16<>"",$I16-41,"") ->  | O16: =IF(N16="","",TEXT(N16,"aaa")) ->  | P16: =IF($N16<>"",$N16+7,"") ->  | Q16: =IF(P16="","",TEXT(P16,"aaa")) ->  | R16: =IF($N16<>"",$N16,"") ->  | S16: =IF(R16="","",TEXT(R16,"aaa")) ->  | T16: =IF($N16<>"",$P16,"") ->  | U16: =IF(T16="","",TEXT(T16,"aaa")) ->  | AJ16: =IF(AI16="","",IF(AI16="午前","9:00",IF(AI16="午後1","14:00","16:00"))) ->  | AK16: =IF(AI16="","",IF(AI16="午前","12:00",IF(AI16="午後1","16:00","18:00"))) ->  | AY16: =IF(AND(V16<>"",AX16<>""),AX16/V16,"") ->  | AZ16: =$F16 ->  | BA16: =E16&"2" -> 2 | BB16: =$F16&"2" -> 2 | BC16: =IF(Z16<>"",RIGHT(Z16,LEN(Z16)*10-SUM(LEN(SUBSTITUTE(Z16,{0,1,2,3,4,5,6,7,8,9},)))),) -> 0 | BD16: =$F16&"3" -> 3
B17: 2 | J17: =IF(I17="","",TEXT(I17,"aaa")) ->  | K17: =IF(OR(E17= "甲種防火新規",E17= "甲乙同時",E17= "防火防災新規"),IF(I17="","",I17+1),IF(I17="","",I17)) ->  | L17: =IF(K17="","",TEXT(K17,"aaa")) ->  | O17: =IF(N17="","",TEXT(N17,"aaa")) ->  | P17: =IF($N17<>"",$N17+7,"") ->  | AJ17: =IF(AI17="","",IF(AI17="午前","9:00",IF(AI17="午後1","14:00","16:00"))) ->  | AK17: =IF(AI17="","",IF(AI17="午前","12:00",IF(AI17="午後1","16:00","18:00"))) ->  | AY17: =IF(AND(V17<>"",AX17<>""),AX17/V17,"") ->  | AZ17: =$F17 ->  | BA17: =E17&"2" -> 2 | BB17: =$F17&"2" -> 2 | BC17: =IF(Z17<>"",RIGHT(Z17,LEN(Z17)*10-SUM(LEN(SUBSTITUTE(Z17,{0,1,2,3,4,5,6,7,8,9},)))),) -> 0 | BD17: =$F17&"3" -> 3
B18: 3 | AJ18: =IF(AI18="","",IF(AI18="午前","9:00",IF(AI18="午後1","14:00","16:00"))) ->  | AK18: =IF(AI18="","",IF(AI18="午前","12:00",IF(AI18="午後1","16:00","18:00"))) ->  | BA18: 2 | BB18: 2 | BC18: =IF(Z18<>"",RIGHT(Z18,LEN(Z18)*10-SUM(LEN(SUBSTITUTE(Z18,{0,1,2,3,4,5,6,7,8,9},)))),) -> 0 | BD18: 3
B19: 4 | BA19: 2 | BB19: 2 | BC19: =IF(Z19<>"",RIGHT(Z19,LEN(Z19)*10-SUM(LEN(SUBSTITUTE(Z19,{0,1,2,3,4,5,6,7,8,9},)))),) -> 0 | BD19: 3
B20: 5 | BA20: 2 | BB20: 2 | BC20: =IF(Z20<>"",RIGHT(Z20,LEN(Z20)*10-SUM(LEN(SUBSTITUTE(Z20,{0,1,2,3,4,5,6,7,8,9},)))),) -> 0 | BD20: 3
B21: 6 | BA21: 2 | BB21: 2 | BC21: =IF(Z21<>"",RIGHT(Z21,LEN(Z21)*10-SUM(LEN(SUBSTITUTE(Z21,{0,1,2,3,4,5,6,7,8,9},)))),) -> 0 | BD21: 3
B22: 7 | BA22: 2 | BB22: 2 | BC22: =IF(Z22<>"",RIGHT(Z22,LEN(Z22)*10-SUM(LEN(SUBSTITUTE(Z22,{0,1,2,3,4,5,6,7,8,9},)))),) -> 0 | BD22: 3
B23: 8 | BA23: 2 | BB23: 2 | BC23: =IF(Z23<>"",RIGHT(Z23,LEN(Z23)*10-SUM(LEN(SUBSTITUTE(Z23,{0,1,2,3,4,5,6,7,8,9},)))),) -> 0 | BD23: 3
B24: 9 | BA24: 2 | BB24: 2 | BC24: =IF(Z24<>"",RIGHT(Z24,LEN(Z24)*10-SUM(LEN(SUBSTITUTE(Z24,{0,1,2,3,4,5,6,7,8,9},)))),) -> 0 | BD24: 3
B25: 10 | BA25: 2 | BB25: 2 | BC25: =IF(Z25<>"",RIGHT(Z25,LEN(Z25)*10-SUM(LEN(SUBSTITUTE(Z25,{0,1,2,3,4,5,6,7,8,9},)))),) -> 0 | BD25: 3
B26: 11 | BA26: 2 | BB26: 2 | BC26: =IF(Z26<>"",RIGHT(Z26,LEN(Z26)*10-SUM(LEN(SUBSTITUTE(Z26,{0,1,2,3,4,5,6,7,8,9},)))),) -> 0 | BD26: 3
B27: 12 | BA27: 2 | BB27: 2 | BC27: =IF(Z27<>"",RIGHT(Z27,LEN(Z27)*10-SUM(LEN(SUBSTITUTE(Z27,{0,1,2,3,4,5,6,7,8,9},)))),) -> 0 | BD27: 3
B28: 13 | BA28: 2 | BB28: 2 | BC28: =IF(Z28<>"",RIGHT(Z28,LEN(Z28)*10-SUM(LEN(SUBSTITUTE(Z28,{0,1,2,3,4,5,6,7,8,9},)))),) -> 0 | BD28: 3
B29: 14 | BA29: 2 | BB29: 2 | BC29: =IF(Z29<>"",RIGHT(Z29,LEN(Z29)*10-SUM(LEN(SUBSTITUTE(Z29,{0,1,2,3,4,5,6,7,8,9},)))),) -> 0 | BD29: 3
B30: 15 | BA30: 2 | BB30: 2 | BC30: =IF(Z30<>"",RIGHT(Z30,LEN(Z30)*10-SUM(LEN(SUBSTITUTE(Z30,{0,1,2,3,4,5,6,7,8,9},)))),) -> 0 | BD30: 3
B31: 16 | BA31: 2 | BB31: 2 | BC31: =IF(Z31<>"",RIGHT(Z31,LEN(Z31)*10-SUM(LEN(SUBSTITUTE(Z31,{0,1,2,3,4,5,6,7,8,9},)))),) -> 0 | BD31: 3
B32: 17 | BA32: 2 | BB32: 2 | BC32: =IF(Z32<>"",RIGHT(Z32,LEN(Z32)*10-SUM(LEN(SUBSTITUTE(Z32,{0,1,2,3,4,5,6,7,8,9},)))),) -> 0 | BD32: 3
B33: 18 | BA33: 2 | BB33: 2 | BC33: =IF(Z33<>"",RIGHT(Z33,LEN(Z33)*10-SUM(LEN(SUBSTITUTE(Z33,{0,1,2,3,4,5,6,7,8,9},)))),) -> 0 | BD33: 3
B34: 19 | BA34: 2 | BB34: 2 | BC34: =IF(Z34<>"",RIGHT(Z34,LEN(Z34)*10-SUM(LEN(SUBSTITUTE(Z34,{0,1,2,3,4,5,6,7,8,9},)))),) -> 0 | BD34: 3
B35: 20 | BA35: 2 | BB35: 2 | BC35: =IF(Z35<>"",RIGHT(Z35,LEN(Z35)*10-SUM(LEN(SUBSTITUTE(Z35,{0,1,2,3,4,5,6,7,8,9},)))),) -> 0 | BD35: 3
B36: 21 | BA36: 2 | BB36: 2 | BC36: =IF(Z36<>"",RIGHT(Z36,LEN(Z36)*10-SUM(LEN(SUBSTITUTE(Z36,{0,1,2,3,4,5,6,7,8,9},)))),) -> 0 | BD36: 3
B37: 22 | BA37: 2 | BB37: 2 | BC37: =IF(Z37<>"",RIGHT(Z37,LEN(Z37)*10-SUM(LEN(SUBSTITUTE(Z37,{0,1,2,3,4,5,6,7,8,9},)))),) -> 0 | BD37: 3
B38: 23 | BA38: 2 | BB38: 2 | BC38: =IF(Z38<>"",RIGHT(Z38,LEN(Z38)*10-SUM(LEN(SUBSTITUTE(Z38,{0,1,2,3,4,5,6,7,8,9},)))),) -> 0 | BD38: 3
B39: 24 | BA39: 2 | BB39: 2 | BC39: =IF(Z39<>"",RIGHT(Z39,LEN(Z39)*10-SUM(LEN(SUBSTITUTE(Z39,{0,1,2,3,4,5,6,7,8,9},)))),) -> 0 | BD39: 3
B40: 25 | BA40: 2 | BB40: 2 | BC40: =IF(Z40<>"",RIGHT(Z40,LEN(Z40)*10-SUM(LEN(SUBSTITUTE(Z40,{0,1,2,3,4,5,6,7,8,9},)))),) -> 0 | BD40: 3
B41: 26 | BA41: 2 | BB41: 2 | BC41: =IF(Z41<>"",RIGHT(Z41,LEN(Z41)*10-SUM(LEN(SUBSTITUTE(Z41,{0,1,2,3,4,5,6,7,8,9},)))),) -> 0 | BD41: 3
B42: 27 | BA42: 2 | BB42: 2 | BC42: =IF(Z42<>"",RIGHT(Z42,LEN(Z42)*10-SUM(LEN(SUBSTITUTE(Z42,{0,1,2,3,4,5,6,7,8,9},)))),) -> 0 | BD42: 3
B43: 28 | BA43: 2 | BB43: 2 | BC43: =IF(Z43<>"",RIGHT(Z43,LEN(Z43)*10-SUM(LEN(SUBSTITUTE(Z43,{0,1,2,3,4,5,6,7,8,9},)))),) -> 0 | BD43: 3
B44: 29 | BA44: 2 | BB44: 2 | BC44: =IF(Z44<>"",RIGHT(Z44,LEN(Z44)*10-SUM(LEN(SUBSTITUTE(Z44,{0,1,2,3,4,5,6,7,8,9},)))),) -> 0 | BD44: 3
B45: 30 | BA45: 2 | BB45: 2 | BC45: =IF(Z45<>"",RIGHT(Z45,LEN(Z45)*10-SUM(LEN(SUBSTITUTE(Z45,{0,1,2,3,4,5,6,7,8,9},)))),) -> 0 | BD45: 3
B46: 31 | BA46: 2 | BB46: 2 | BC46: =IF(Z46<>"",RIGHT(Z46,LEN(Z46)*10-SUM(LEN(SUBSTITUTE(Z46,{0,1,2,3,4,5,6,7,8,9},)))),) -> 0 | BD46: 3
B47: 32 | S47: =IF(R47="","",TEXT(R47,"aaa")) ->  | BA47: 2 | BB47: 2 | BC47: =IF(Z47<>"",RIGHT(Z47,LEN(Z47)*10-SUM(LEN(SUBSTITUTE(Z47,{0,1,2,3,4,5,6,7,8,9},)))),) -> 0 | BD47: 3
B48: 33 | R48: =IF($N48<>"",$N48,"") ->  | BA48: 2 | BB48: 2 | BC48: =IF(Z48<>"",RIGHT(Z48,LEN(Z48)*10-SUM(LEN(SUBSTITUTE(Z48,{0,1,2,3,4,5,6,7,8,9},)))),) -> 0 | BD48: 3
B49: 34 | BA49: 2 | BB49: 2 | BC49: =IF(Z49<>"",RIGHT(Z49,LEN(Z49)*10-SUM(LEN(SUBSTITUTE(Z49,{0,1,2,3,4,5,6,7,8,9},)))),) -> 0 | BD49: 3
B50: 35 | BA50: 2 | BB50: 2 | BC50: =IF(Z50<>"",RIGHT(Z50,LEN(Z50)*10-SUM(LEN(SUBSTITUTE(Z50,{0,1,2,3,4,5,6,7,8,9},)))),) -> 0 | BD50: 3
B51: 36 | BA51: 2 | BB51: 2 | BC51: =IF(Z51<>"",RIGHT(Z51,LEN(Z51)*10-SUM(LEN(SUBSTITUTE(Z51,{0,1,2,3,4,5,6,7,8,9},)))),) -> 0 | BD51: 3
B52: 37 | BA52: 2 | BB52: 2 | BC52: =IF(Z52<>"",RIGHT(Z52,LEN(Z52)*10-SUM(LEN(SUBSTITUTE(Z52,{0,1,2,3,4,5,6,7,8,9},)))),) -> 0 | BD52: 3
B53: 38 | BA53: 2 | BB53: 2 | BC53: =IF(Z53<>"",RIGHT(Z53,LEN(Z53)*10-SUM(LEN(SUBSTITUTE(Z53,{0,1,2,3,4,5,6,7,8,9},)))),) -> 0 | BD53: 3
B54: 39 | BA54: 2 | BB54: 2 | BC54: =IF(Z54<>"",RIGHT(Z54,LEN(Z54)*10-SUM(LEN(SUBSTITUTE(Z54,{0,1,2,3,4,5,6,7,8,9},)))),) -> 0 | BD54: 3
B55: 40 | BA55: 2 | BB55: 2 | BC55: =IF(Z55<>"",RIGHT(Z55,LEN(Z55)*10-SUM(LEN(SUBSTITUTE(Z55,{0,1,2,3,4,5,6,7,8,9},)))),) -> 0 | BD55: 3
B56: 41 | BA56: 2 | BB56: 2 | BC56: =IF(Z56<>"",RIGHT(Z56,LEN(Z56)*10-SUM(LEN(SUBSTITUTE(Z56,{0,1,2,3,4,5,6,7,8,9},)))),) -> 0 | BD56: 3
B57: 42 | BA57: 2 | BB57: 2 | BC57: =IF(Z57<>"",RIGHT(Z57,LEN(Z57)*10-SUM(LEN(SUBSTITUTE(Z57,{0,1,2,3,4,5,6,7,8,9},)))),) -> 0 | BD57: 3
B58: 43 | BA58: 2 | BB58: 2 | BC58: =IF(Z58<>"",RIGHT(Z58,LEN(Z58)*10-SUM(LEN(SUBSTITUTE(Z58,{0,1,2,3,4,5,6,7,8,9},)))),) -> 0 | BD58: 3
B59: 44 | BA59: 2 | BB59: 2 | BC59: =IF(Z59<>"",RIGHT(Z59,LEN(Z59)*10-SUM(LEN(SUBSTITUTE(Z59,{0,1,2,3,4,5,6,7,8,9},)))),) -> 0 | BD59: 3
B60: 45 | BA60: 2 | BB60: 2 | BC60: =IF(Z60<>"",RIGHT(Z60,LEN(Z60)*10-SUM(LEN(SUBSTITUTE(Z60,{0,1,2,3,4,5,6,7,8,9},)))),) -> 0 | BD60: 3
B61: 46 | BA61: 2 | BB61: 2 | BC61: =IF(Z61<>"",RIGHT(Z61,LEN(Z61)*10-SUM(LEN(SUBSTITUTE(Z61,{0,1,2,3,4,5,6,7,8,9},)))),) -> 0 | BD61: 3
B62: 47 | BA62: 2 | BB62: 2 | BC62: =IF(Z62<>"",RIGHT(Z62,LEN(Z62)*10-SUM(LEN(SUBSTITUTE(Z62,{0,1,2,3,4,5,6,7,8,9},)))),) -> 0 | BD62: 3
B63: 48 | BA63: 2 | BB63: 2 | BC63: =IF(Z63<>"",RIGHT(Z63,LEN(Z63)*10-SUM(LEN(SUBSTITUTE(Z63,{0,1,2,3,4,5,6,7,8,9},)))),) -> 0 | BD63: 3
B64: 49 | BA64: 2 | BB64: 2 | BC64: =IF(Z64<>"",RIGHT(Z64,LEN(Z64)*10-SUM(LEN(SUBSTITUTE(Z64,{0,1,2,3,4,5,6,7,8,9},)))),) -> 0 | BD64: 3
B65: 50 | BA65: 2 | BB65: 2 | BC65: =IF(Z65<>"",RIGHT(Z65,LEN(Z65)*10-SUM(LEN(SUBSTITUTE(Z65,{0,1,2,3,4,5,6,7,8,9},)))),) -> 0 | BD65: 3
B66: 51 | BA66: 2 | BB66: 2 | BC66: =IF(Z66<>"",RIGHT(Z66,LEN(Z66)*10-SUM(LEN(SUBSTITUTE(Z66,{0,1,2,3,4,5,6,7,8,9},)))),) -> 0 | BD66: 3
B67: 52 | BA67: 2 | BB67: 2 | BC67: =IF(Z67<>"",RIGHT(Z67,LEN(Z67)*10-SUM(LEN(SUBSTITUTE(Z67,{0,1,2,3,4,5,6,7,8,9},)))),) -> 0 | BD67: 3
B68: 53 | BA68: 2 | BB68: 2 | BC68: =IF(Z68<>"",RIGHT(Z68,LEN(Z68)*10-SUM(LEN(SUBSTITUTE(Z68,{0,1,2,3,4,5,6,7,8,9},)))),) -> 0 | BD68: 3
B69: 54 | BA69: 2 | BB69: 2 | BC69: =IF(Z69<>"",RIGHT(Z69,LEN(Z69)*10-SUM(LEN(SUBSTITUTE(Z69,{0,1,2,3,4,5,6,7,8,9},)))),) -> 0 | BD69: 3
B70: 55 | BA70: 2 | BB70: 2 | BC70: =IF(Z70<>"",RIGHT(Z70,LEN(Z70)*10-SUM(LEN(SUBSTITUTE(Z70,{0,1,2,3,4,5,6,7,8,9},)))),) -> 0 | BD70: 3
B71: 56 | BA71: 2 | BB71: 2 | BC71: =IF(Z71<>"",RIGHT(Z71,LEN(Z71)*10-SUM(LEN(SUBSTITUTE(Z71,{0,1,2,3,4,5,6,7,8,9},)))),) -> 0 | BD71: 3
B72: 57 | BA72: 2 | BB72: 2 | BC72: =IF(Z72<>"",RIGHT(Z72,LEN(Z72)*10-SUM(LEN(SUBSTITUTE(Z72,{0,1,2,3,4,5,6,7,8,9},)))),) -> 0 | BD72: 3
B73: 58 | BA73: 2 | BB73: 2 | BC73: =IF(Z73<>"",RIGHT(Z73,LEN(Z73)*10-SUM(LEN(SUBSTITUTE(Z73,{0,1,2,3,4,5,6,7,8,9},)))),) -> 0 | BD73: 3
B74: 59 | BA74: 2 | BB74: 2 | BC74: =IF(Z74<>"",RIGHT(Z74,LEN(Z74)*10-SUM(LEN(SUBSTITUTE(Z74,{0,1,2,3,4,5,6,7,8,9},)))),) -> 0 | BD74: 3
B75: 60 | BA75: 2 | BB75: 2 | BC75: =IF(Z75<>"",RIGHT(Z75,LEN(Z75)*10-SUM(LEN(SUBSTITUTE(Z75,{0,1,2,3,4,5,6,7,8,9},)))),) -> 0 | BD75: 3
B76: 61 | BA76: 2 | BB76: 2 | BC76: =IF(Z76<>"",RIGHT(Z76,LEN(Z76)*10-SUM(LEN(SUBSTITUTE(Z76,{0,1,2,3,4,5,6,7,8,9},)))),) -> 0 | BD76: 3
B77: 62 | BA77: 2 | BB77: 2 | BC77: =IF(Z77<>"",RIGHT(Z77,LEN(Z77)*10-SUM(LEN(SUBSTITUTE(Z77,{0,1,2,3,4,5,6,7,8,9},)))),) -> 0 | BD77: 3
B78: 63 | BA78: 2 | BB78: 2 | BC78: =IF(Z78<>"",RIGHT(Z78,LEN(Z78)*10-SUM(LEN(SUBSTITUTE(Z78,{0,1,2,3,4,5,6,7,8,9},)))),) -> 0 | BD78: 3
B79: 64 | S79: =IF(R79="","",TEXT(R79,"aaa")) ->  | BA79: 2 | BB79: 2 | BC79: =IF(Z79<>"",RIGHT(Z79,LEN(Z79)*10-SUM(LEN(SUBSTITUTE(Z79,{0,1,2,3,4,5,6,7,8,9},)))),) -> 0 | BD79: 3
B80: 65 | R80: =IF($N80<>"",$N80,"") ->  | BA80: 2 | BB80: 2 | BC80: =IF(Z80<>"",RIGHT(Z80,LEN(Z80)*10-SUM(LEN(SUBSTITUTE(Z80,{0,1,2,3,4,5,6,7,8,9},)))),) -> 0 | BD80: 3
B81: 66 | F81: =IF($D$4<>"",$D$4,"") ->  | J81: =IF(I81="","",TEXT(I81,"aaa")) ->  | K81: =IF(OR(E81= "甲種防火新規",E81= "甲乙同時",E81= "防火防災新規"),IF(I81="","",I81+1),IF(I81="","",I81)) ->  | L81: =IF(K81="","",TEXT(K81,"aaa")) ->  | N81: =IF($I81<>"",$I81-41,"") ->  | O81: =IF(N81="","",TEXT(N81,"aaa")) ->  | AY81: =IF(AND(V81<>"",AX81<>""),AX81/V81,"") ->  | AZ81: =$F81 ->  | BA81: =E81&"2" -> 2 | BB81: =$F81&"2" -> 2 | BC81: =IF(Z81<>"",RIGHT(Z81,LEN(Z81)*10-SUM(LEN(SUBSTITUTE(Z81,{0,1,2,3,4,5,6,7,8,9},)))),) -> 0 | BD81: =$F81&"3" -> 3
B82: 67 | AJ82: =IF(AI82="","",IF(AI82="午前","9:00",IF(AI82="午後1","14:00","16:00"))) ->  | AK82: =IF(AI82="","",IF(AI82="午前","12:00",IF(AI82="午後1","16:00","18:00"))) ->  | BA82: 2 | BB82: 2 | BC82: =IF(Z82<>"",RIGHT(Z82,LEN(Z82)*10-SUM(LEN(SUBSTITUTE(Z82,{0,1,2,3,4,5,6,7,8,9},)))),) -> 0 | BD82: 3
B83: 68 | BA83: 2 | BB83: 2 | BC83: =IF(Z83<>"",RIGHT(Z83,LEN(Z83)*10-SUM(LEN(SUBSTITUTE(Z83,{0,1,2,3,4,5,6,7,8,9},)))),) -> 0 | BD83: 3
B84: 69 | BA84: 2 | BB84: 2 | BC84: =IF(Z84<>"",RIGHT(Z84,LEN(Z84)*10-SUM(LEN(SUBSTITUTE(Z84,{0,1,2,3,4,5,6,7,8,9},)))),) -> 0 | BD84: 3
B85: 70 | BA85: 2 | BB85: 2 | BC85: =IF(Z85<>"",RIGHT(Z85,LEN(Z85)*10-SUM(LEN(SUBSTITUTE(Z85,{0,1,2,3,4,5,6,7,8,9},)))),) -> 0 | BD85: 3
B86: 71 | BA86: 2 | BB86: 2 | BC86: =IF(Z86<>"",RIGHT(Z86,LEN(Z86)*10-SUM(LEN(SUBSTITUTE(Z86,{0,1,2,3,4,5,6,7,8,9},)))),) -> 0 | BD86: 3
B87: 72 | BA87: 2 | BB87: 2 | BC87: =IF(Z87<>"",RIGHT(Z87,LEN(Z87)*10-SUM(LEN(SUBSTITUTE(Z87,{0,1,2,3,4,5,6,7,8,9},)))),) -> 0 | BD87: 3
B88: 73 | BA88: 2 | BB88: 2 | BC88: =IF(Z88<>"",RIGHT(Z88,LEN(Z88)*10-SUM(LEN(SUBSTITUTE(Z88,{0,1,2,3,4,5,6,7,8,9},)))),) -> 0 | BD88: 3
B89: 74 | BA89: 2 | BB89: 2 | BC89: =IF(Z89<>"",RIGHT(Z89,LEN(Z89)*10-SUM(LEN(SUBSTITUTE(Z89,{0,1,2,3,4,5,6,7,8,9},)))),) -> 0 | BD89: 3
B90: 75 | BA90: 2 | BB90: 2 | BC90: =IF(Z90<>"",RIGHT(Z90,LEN(Z90)*10-SUM(LEN(SUBSTITUTE(Z90,{0,1,2,3,4,5,6,7,8,9},)))),) -> 0 | BD90: 3
B91: 76 | BA91: 2 | BB91: 2 | BC91: =IF(Z91<>"",RIGHT(Z91,LEN(Z91)*10-SUM(LEN(SUBSTITUTE(Z91,{0,1,2,3,4,5,6,7,8,9},)))),) -> 0 | BD91: 3
B92: 77 | BA92: 2 | BB92: 2 | BC92: =IF(Z92<>"",RIGHT(Z92,LEN(Z92)*10-SUM(LEN(SUBSTITUTE(Z92,{0,1,2,3,4,5,6,7,8,9},)))),) -> 0 | BD92: 3
B93: 78 | BA93: 2 | BB93: 2 | BC93: =IF(Z93<>"",RIGHT(Z93,LEN(Z93)*10-SUM(LEN(SUBSTITUTE(Z93,{0,1,2,3,4,5,6,7,8,9},)))),) -> 0 | BD93: 3
B94: 79 | BA94: 2 | BB94: 2 | BC94: =IF(Z94<>"",RIGHT(Z94,LEN(Z94)*10-SUM(LEN(SUBSTITUTE(Z94,{0,1,2,3,4,5,6,7,8,9},)))),) -> 0 | BD94: 3
B95: 80 | BA95: 2 | BB95: 2 | BC95: =IF(Z95<>"",RIGHT(Z95,LEN(Z95)*10-SUM(LEN(SUBSTITUTE(Z95,{0,1,2,3,4,5,6,7,8,9},)))),) -> 0 | BD95: 3
B96: 81 | BA96: 2 | BB96: 2 | BC96: =IF(Z96<>"",RIGHT(Z96,LEN(Z96)*10-SUM(LEN(SUBSTITUTE(Z96,{0,1,2,3,4,5,6,7,8,9},)))),) -> 0 | BD96: 3
B97: 82 | BA97: 2 | BB97: 2 | BC97: =IF(Z97<>"",RIGHT(Z97,LEN(Z97)*10-SUM(LEN(SUBSTITUTE(Z97,{0,1,2,3,4,5,6,7,8,9},)))),) -> 0 | BD97: 3
B98: 83 | BA98: 2 | BB98: 2 | BC98: =IF(Z98<>"",RIGHT(Z98,LEN(Z98)*10-SUM(LEN(SUBSTITUTE(Z98,{0,1,2,3,4,5,6,7,8,9},)))),) -> 0 | BD98: 3
B99: 84 | BA99: 2 | BB99: 2 | BC99: =IF(Z99<>"",RIGHT(Z99,LEN(Z99)*10-SUM(LEN(SUBSTITUTE(Z99,{0,1,2,3,4,5,6,7,8,9},)))),) -> 0 | BD99: 3
B100: 85 | BA100: 2 | BB100: 2 | BC100: =IF(Z100<>"",RIGHT(Z100,LEN(Z100)*10-SUM(LEN(SUBSTITUTE(Z100,{0,1,2,3,4,5,6,7,8,9},)))),) -> 0 | BD100: 3
B101: 86 | BA101: 2 | BB101: 2 | BC101: =IF(Z101<>"",RIGHT(Z101,LEN(Z101)*10-SUM(LEN(SUBSTITUTE(Z101,{0,1,2,3,4,5,6,7,8,9},)))),) -> 0 | BD101: 3
B102: 87 | BA102: 2 | BB102: 2 | BC102: =IF(Z102<>"",RIGHT(Z102,LEN(Z102)*10-SUM(LEN(SUBSTITUTE(Z102,{0,1,2,3,4,5,6,7,8,9},)))),) -> 0 | BD102: 3
B103: 88 | BA103: 2 | BB103: 2 | BC103: =IF(Z103<>"",RIGHT(Z103,LEN(Z103)*10-SUM(LEN(SUBSTITUTE(Z103,{0,1,2,3,4,5,6,7,8,9},)))),) -> 0 | BD103: 3
B104: 89 | BA104: 2 | BB104: 2 | BC104: =IF(Z104<>"",RIGHT(Z104,LEN(Z104)*10-SUM(LEN(SUBSTITUTE(Z104,{0,1,2,3,4,5,6,7,8,9},)))),) -> 0 | BD104: 3
B105: 90 | BA105: 2 | BB105: 2 | BC105: =IF(Z105<>"",RIGHT(Z105,LEN(Z105)*10-SUM(LEN(SUBSTITUTE(Z105,{0,1,2,3,4,5,6,7,8,9},)))),) -> 0 | BD105: 3
B106: 91 | BA106: 2 | BB106: 2 | BC106: =IF(Z106<>"",RIGHT(Z106,LEN(Z106)*10-SUM(LEN(SUBSTITUTE(Z106,{0,1,2,3,4,5,6,7,8,9},)))),) -> 0 | BD106: 3
B107: 92 | BA107: 2 | BB107: 2 | BC107: =IF(Z107<>"",RIGHT(Z107,LEN(Z107)*10-SUM(LEN(SUBSTITUTE(Z107,{0,1,2,3,4,5,6,7,8,9},)))),) -> 0 | BD107: 3
B108: 93 | BA108: 2 | BB108: 2 | BC108: =IF(Z108<>"",RIGHT(Z108,LEN(Z108)*10-SUM(LEN(SUBSTITUTE(Z108,{0,1,2,3,4,5,6,7,8,9},)))),) -> 0 | BD108: 3
B109: 94 | BA109: 2 | BB109: 2 | BC109: =IF(Z109<>"",RIGHT(Z109,LEN(Z109)*10-SUM(LEN(SUBSTITUTE(Z109,{0,1,2,3,4,5,6,7,8,9},)))),) -> 0 | BD109: 3
B110: 95 | BA110: 2 | BB110: 2 | BC110: =IF(Z110<>"",RIGHT(Z110,LEN(Z110)*10-SUM(LEN(SUBSTITUTE(Z110,{0,1,2,3,4,5,6,7,8,9},)))),) -> 0 | BD110: 3
B111: 96 | S111: =IF(R111="","",TEXT(R111,"aaa")) ->  | BA111: 2 | BB111: 2 | BC111: =IF(Z111<>"",RIGHT(Z111,LEN(Z111)*10-SUM(LEN(SUBSTITUTE(Z111,{0,1,2,3,4,5,6,7,8,9},)))),) -> 0 | BD111: 3
B112: 97 | BA112: 2 | BB112: 2 | BC112: =IF(Z112<>"",RIGHT(Z112,LEN(Z112)*10-SUM(LEN(SUBSTITUTE(Z112,{0,1,2,3,4,5,6,7,8,9},)))),) -> 0 | BD112: 3
B113: 98 | BA113: 2 | BB113: 2 | BC113: =IF(Z113<>"",RIGHT(Z113,LEN(Z113)*10-SUM(LEN(SUBSTITUTE(Z113,{0,1,2,3,4,5,6,7,8,9},)))),) -> 0 | BD113: 3
B114: 99 | BA114: 2 | BB114: 2 | BC114: =IF(Z114<>"",RIGHT(Z114,LEN(Z114)*10-SUM(LEN(SUBSTITUTE(Z114,{0,1,2,3,4,5,6,7,8,9},)))),) -> 0 | BD114: 3
B115: 100 | BA115: 2 | BB115: 2 | BC115: =IF(Z115<>"",RIGHT(Z115,LEN(Z115)*10-SUM(LEN(SUBSTITUTE(Z115,{0,1,2,3,4,5,6,7,8,9},)))),) -> 0 | BD115: 3

Sheet 入力案内
E1: 一般財団法人 日本防火・防災協会 令和6年8月5日
A2: 令和7年度（2025年度） 防火・防災管理講習実施計画のExcelシート入力について
A4: 消防本部（局） | B4: 入力後、自県で協議済の事務担当団体へ2024/9/20までにメール送信 ※メール送信が難しい場合は、印刷しFAXまたは郵送 （入力がない部分は非表示にして印刷するなど体裁は適宜アレンジ可能） ※日本防火・防災協会の直営講習となる場合は日本防火・防災協会まで送信
A5: 事務担当団体 | B5: 自団体で入力、または各消防本部（局）より提出のあったファイルの内容をとりまとめ、自団体のExcelファイルを作成後、日本防火・防災協会へ2024/10/21までにメール送信
A6: 概要および注意点 | B6: ・県単位で作成 ・講習会は「日程順」に入力してください。（講習会番号が日程順でシステムで自動採番） ・プルダウンメニューの項目に手入力は不可。手入力するとファイルが壊れ、講習システムへの取込ができません。 ・他ファイルからコピーする際は値貼り付け。自動反映の部分にご注意下さい。 ・行は増やしても良いが、列は増減不可 ・入力後は保存して閉じてください。 ・後日、追加の講習があった場合はその講習だけのファイルを作成 | E6: ＜問い合わせ先＞ 日本防火・防災協会 業務部 電話 03-6263-9903 FAX03-6205-7851 【東日本１】 担当：納富（のうとみ） 北海道・青森・宮城・秋田・山形・福島・富山・石川・福井・新潟・長野 【東日本２】 担当：内山 茨城・栃木・群馬・埼玉・千葉・神奈川・山梨 【西日本】 担当：藤田 岐阜～沖縄
A8: 項目番号 | B8: 内容 | C8: 消防本部ご担当者 | D8: 事務担当団体 | E8: 補足
A9: 1 | B9: 開催年度 2025年度で固定 | C9: 入力不要 | D9: 入力不要 | E9: 昨年度のフォーマットは使用しないようご注意ください。
A10: 2 | B10: 都道府県を選択（プルダウン） | E10: 6の開催地都道府県に自動反映
A11: 3 | B11: 2で選択しした都道府県に準じた事務担当団体名が表示されるので選択（プルダウン） | C11: 講習の事務担当団体を選択。地域に該当団体がない場合は日本防火・防災協会の直営となりますので日本防火・防災協会を選択。 | D11: 自団体を選択 ※講習により、自団体ではなく日本防火・防災協会の直営講習を希望する場合は日本防火・防災協会を選択 | E11: プルダウンメニューにない新規団体は日本防火・防災協会までお知らせください。
A12: 4 | B12: 一般講習か企業講習を選択（プルダウン） | C12: 一般講習を選択 | D12: 一般講習または企業講習を選択 | E12: 企業より講習要望がある場合は企業講習を選択
A13: 5 | B13: 講習種別を選択（プルダウン）
A14: 6 | B14: 開催地都道府県 | C14: 入力不要 | D14: 入力不要 | E14: ２で選択した都道府県が自動反映
A15: 7 | B15: 開催市町村を選択（プルダウン）
A16: 8 | B16: 「4」で企業講習を選択した場合は企業名を選択（プルダウン） | E16: プルダウンメニューにない企業の場合は日本防火・防災協会までお知らせください。
A17: 9 | B17: 講習日の初日を入力 | E17: 例 2025/4/1 ※曜日は自動反映
A18: 10 | B18: 講習終了日 自動反映 | C18: 入力不要 | D18: 入力不要 | E18: 上書き入力・変更不可
A19: 11 | B19: 日付区分（確定・頃・予定）を選択 （プルダウン） | E19: ※重要です※ 講習日の状況を入力してください。講習日の確定状況の確認、講習案内HPの講習日表示に連動します。 ・「確定」→HPに年月日が表示 例：2025年6月5日（木）～6日（金） ・「頃」→ HPに年月のみ表示 例：2025年6月頃 ・「予定」→HPに年月日・予定が表示 例：2025年6月5日（木）～6日（金）予定
A20: 12～15 | B20: 申込期間 （WEBとFAX申込の開始日・終了日） ※自動反映 ・ 入力厳禁 | C20: 入力不要 | D20: 入力不要 | E20: 自動反映した申込日は仮データのため広報はしないようご注意ください。 後日に日本防火・防災協会で調整の上確定します。
A21: 16 | B21: 講習会場に応じた募集人数を算出し、入力 | E21: スクール形式・２人掛け ※コロナ対策を考慮し3人掛けは×
A22: 17 | B22: 会場を選択（プルダウン） | E22: プルダウンメニューにない新規会場、同会場でも会議室名が異なる、会場名称が変更となっている場合 ①プルダウンメニュー「新規会場（シート入力必須）」を選択 ②本ファイル内の「新規・変更用 会場データ追加」シートへ必要事項を正確に入力ください。特にアクセス情報はHPで多くのお客様が参考にします。 最寄り駅から会場までのアクセス、駐車場の利用可否などを分かりやすく記入ください。
A23: 18 | B23: 会場の予約状況を選択（プルダウン） | E23: ・予約済み →会場に申込 確定済 ・仮予約 →会場に申込 ほぼ確定のため、HPに掲載可能 ・仮予約(HP未掲載) →会場に申込をしているが、会場都合で早期にHPで公開はできない場合 ・未予約 →早期に予約後、事務担当団体または日本防火・防災協会へ即時連絡
A24: 19 | B24: 会場で当年度の講習日に限り、特別に受講者へ案内が必要な事項がある際は入力 （一般的な案内事項は会場マスタに登録済） | C24: △ | D24: △ | E24: ・該当なければ入力不要（後日に連絡も可） 例：講習日は工事期間中のため駐車場に限りがあります。 ※会場マスタは事務担当団体WEBシステムで確認下さい。
A25: 20 | B25: 時間割パターンを選択（プルダウン） | E25: ・講習種別に応じて時間割パターンがプルダウンメニューに表示 ・時間割一覧シートを参照し、希望の時間割パターンを選択 ※時間割一覧シートには日本防火・防災協会が直営で行うオンライン講習専用の時間割も含まれていますので、こちらは選択しないようお願いします。 （甲再4、併催再２）
A26: 21 | B26: 実技などで講習科目を複数講師が担当する場合は、「実技講師数」シートを参考に講師数のパターンを選択してください。実技講師数が1名の場合は、空欄にして下さい。 | C26: △（事務担当団体に決定依頼をする場合は入力不要） | D26: △ | E26: 講習会場で実技可能な場合のみ入力
A27: 22～31 | B27: 事務担当団体が日本防火・防災協会へ講習の資料発送依頼書をシステム内で作成するための情報です。 「テキスト・冊子・ＤＶＤの送付先情報」が決定している場合は入力してください。 | C27: 入力不要 | D27: △ | E27: 計画時は必須ではありません。ただし講習日の１６日前までには事務担当団体WEBシステム内で入力をお願いします。 ・27の配送指定日時が決定済の場合は「あり」を選択。未決定の場合は入力不要 ・29～31 指定時間帯を選択すると自動反映 午前 9：00～12：00 午後１ 14：00～16：00 午後２ 16：00～18：00
A28: 32～41 | B28: 事務担当団体が日本防火・防災協会へ講習の資料発送依頼書をシステム内で作成するための情報です。 「修了証・効果測定の送付先情報」は計画時点では入力不要です。 | C28: 入力不要 | D28: 入力不要 | E28: 計画時点では入力不要です。日本防火・防災協会より講習日前に発送します。
A29: 42～43 | B29: 「修了証・効果測定の送付先情報」の中で主に日本防火・防災協会の直営講習の場合に当協会の担当者が入力する項目です。 | C29: 入力不要 | D29: 入力不要 | E29: プロジェクターなどの資機材は会場で借りるか事務担当団体でご用意ください。いずれも難しく当協会に依頼する場合は（数に限りがありますので）事前に協議の上入力してください。
A30: 44 | B30: 会場使用料を入力（概算でも可） | E30: 会場使用料（会場費、控室、備品レンタル）を可能な範囲で入力ください。
A31: 45 | B31: 会場使用料÷募集人数の結果が自動計算 | C31: 入力不要 | D31: 入力不要 | E31: 上記金額の一人当たりの金額が自動で表示されます。

Sheet ＜新規・変更用＞会場データ追加
C1: ＜新規・変更用＞会場データ追加
F2: 必須 | S2: 必須 | V2: 選択式 | W2: 選択式 | X2: 選択式 | Y2: 選択式 | Z2: 選択式 | AA2: 選択式 | AB2: 選択式 | AC2: 選択式 | AD2: 選択式
F3: 任意 | S3: 任意 | V3: 0:納付書払い | W3: 0:なし | X3: 0:なし | Y3: 0:なし | Z3: 0:なし | AA3: 0:なし | AB3: 0:なし | AC3: 0:レンタル | AD3: 0:会場回収
F4: 入力不要 | S4: 入力不要 | V4: 1:請求書払い | W4: 1:あり | X4: 1:あり | Y4: 1:あり | Z4: 1:あり | AA4: 1:レンタル | AB4: 1:あり | AC4: 1:持込 | AD4: 1:持ち帰り
W5: 2:現金払い | AA5: 2:持込 | AB5: 2:持込
W6: 3:減免
B8: No | C8: 項目名
C9: 新規会場を使用する講習日 | D9: 会場名 | E9: 都道府県名 | F9: 郵便番号 | G9: 住所1 | H9: 住所2（建物名等） | I9: TEL1 | J9: FAX1 | K9: 会場URL | L9: 会場最寄り駅 | M9: 会場担当者 | N9: 会場利用人数 | O9: アクセスおよび注意事項 | P9: 開催地管轄消防本部名 | Q9: 共催・協力等 消防本部名 | R9: 一般的事項 | S9: 当該年度のみの注意事項 | T9: 休館日 | U9: 講師等控室 （再講習は原則不要） | V9: 会場使用料 | W9: 会場追加料金(備品レンタル、冷暖房費等） | X9: 前日準備 | Y9: 会場資機材 演台 | Z9: 会場資機材 ピンマイク | AA9: 会場資機材 プロジェクター | AB9: 会場資機材 スクリーン | AC9: 会場資機材 パソコン （延長コード含む） | AD9: 会場資機材 資機材のゴミ
B10: 例 | C10: 2022/6/10～11 | D10: ◎◎町公民館 | E10: 北海道 | F10: 000-0000 | G10: 北海道◎◎郡◎◎町◎7丁目52番地1 | I10: 0100-00-0000 | L10: ◎◎ | M10: 管理室 A様 | N10: 100 | O10: 公共交通機関が少ないので、お車をご利用下さい(無料駐車場あり)。会場周辺には、食堂・コンビニ等がありませんので、昼食を持参して下さい。 | P10: ◎◎東部消防組合 | Q10: ◎◎北部消防事務組合「共催」 | R10: 会場内にゴミ箱がありません。各自お持ち帰りください。 | T10: 火曜日 | U10: 小研修室１ | V10: 0:納付書払い | W10: 0:なし | X10: 1:あり | Y10: 0:なし | Z10: 1:あり | AA10: 2:持込 | AB10: 1:あり | AC10: 1:持込 | AD10: 0:会場回収
B11: 例 | C11: 2023/1/24～25 | D11: △△市文化会館 ３０４会議室 | E11: 埼玉県 | F11: 111-1111 | G11: 埼玉県△△市△△4-8-1 | I11: 000-000-0000 | L11: △△ | N11: 50 | O11: 駐車場に限りがありますので、公共交通機関をご利用下さい。JR埼京線<△△駅>より徒歩約10分。 | P11: △△市消防本部 | S11: 10月以降は大規模修繕のため使用不可 | T11: 月一回 不定休 | U11: なし | V11: 1:請求書払い | W11: 2:現金払い | X11: 0:なし | Y11: 1:あり | Z11: 0:なし | AA11: 1:レンタル | AB11: 2:持込 | AC11: 1:持込 | AD11: 1:持ち帰り
B12: 1
B13: 2
B14: 3
B15: 4
B16: 5
B17: 6
B18: 7
B19: 8
B20: 9
B21: 10

Sheet 令和5年度受講率
A1: 一般財団法人 日本防火・防災協会 令和5年度（2023年4月～2024年3月）講習 ※企業講習とオンライン講習を除く一般講習
A3: ※初期表示・・・1都道府県コード・3市区町村コード・5 講習開催日順で並び替え
A5: 1 | B5: 2 | C5: 3 | D5: 4 | E5: 5 | F5: 6 | G5: 7 | H5: 8 | I5: 9 | J5: 10 | K5: 11 | L5: 12 | M5: 13 | N5: 14 | O5: 15
A6: 都道府県コード | B6: 都道府県名 | C6: 市区町村コード | D6: 市区町村名 | E6: 講習開催日FROM | F6: 講習開催日To | G6: 講習会番号 | H6: 講習種別名 | I6: 事務担当団体ID | J6: 事務担当団体名 | K6: 会場ID | L6: 会場名 | M6: 募集人数 | N6: 出席数 | O6: 受講率
A7: 01 | B7: 北海道 | C7: 01101 | D7: 札幌市 | E7: 2023-04-13 | F7: 2023-04-14 | G7: 23-1-0102001 | H7: 甲種防火管理新規講習 | I7: J01002 | J7: （公財）札幌市防災協会 | K7: K01021 | L7: 札幌市白石消防署 ４階講堂 | M7: 112 | N7: 109 | O7: =N7/M7 -> 0.9732142857
A8: 01 | B8: 北海道 | C8: 01101 | D8: 札幌市 | E8: 2023-04-18 | F8: 2023-04-19 | G8: 23-6-0102002 | H8: 防火・防災管理新規講習 | I8: J01002 | J8: （公財）札幌市防災協会 | K8: K01021 | L8: 札幌市白石消防署 ４階講堂 | M8: 112 | N8: 109 | O8: =N8/M8 -> 0.9732142857
A9: 01 | B9: 北海道 | C9: 01101 | D9: 札幌市 | E9: 2023-04-25 | F9: 2023-04-26 | G9: 23-1-0102003 | H9: 甲種防火管理新規講習 | I9: J01002 | J9: （公財）札幌市防災協会 | K9: K01021 | L9: 札幌市白石消防署 ４階講堂 | M9: 112 | N9: 108 | O9: 0.9642857143
A10: 01 | B10: 北海道 | C10: 01101 | D10: 札幌市 | E10: 2023-05-09 | F10: 2023-05-09 | G10: 23-4-0102006 | H10: 甲種防火管理再講習 | I10: J01002 | J10: （公財）札幌市防災協会 | K10: K01021 | L10: 札幌市白石消防署 ４階講堂 | M10: 112 | N10: 93 | O10: 0.8303571429
A11: 01 | B11: 北海道 | C11: 01101 | D11: 札幌市 | E11: 2023-05-10 | F11: 2023-05-11 | G11: 23-1-0102004 | H11: 甲種防火管理新規講習 | I11: J01002 | J11: （公財）札幌市防災協会 | K11: K01021 | L11: 札幌市白石消防署 ４階講堂 | M11: 112 | N11: 74 | O11: 0.6607142857
A12: 01 | B12: 北海道 | C12: 01101 | D12: 札幌市 | E12: 2023-05-23 | F12: 2023-05-24 | G12: 23-1-0102005 | H12: 甲種防火管理新規講習 | I12: J01002 | J12: （公財）札幌市防災協会 | K12: K01021 | L12: 札幌市白石消防署 ４階講堂 | M12: 112 | N12: 96 | O12: 0.8571428571
A13: 01 | B13: 北海道 | C13: 01101 | D13: 札幌市 | E13: 2023-06-07 | F13: 2023-06-08 | G13: 23-1-0102007 | H13: 甲種防火管理新規講習 | I13: J01002 | J13: （公財）札幌市防災協会 | K13: K01021 | L13: 札幌市白石消防署 ４階講堂 | M13: 112 | N13: 106 | O13: 0.9464285714
A14: 01 | B14: 北海道 | C14: 01101 | D14: 札幌市 | E14: 2023-06-20 | F14: 2023-06-21 | G14: 23-1-0102008 | H14: 甲種防火管理新規講習 | I14: J01002 | J14: （公財）札幌市防災協会 | K14: K01021 | L14: 札幌市白石消防署 ４階講堂 | M14: 112 | N14: 107 | O14: 0.9553571429
A15: 01 | B15: 北海道 | C15: 01101 | D15: 札幌市 | E15: 2023-06-22 | F15: 2023-06-23 | G15: 23-6-0102009 | H15: 防火・防災管理新規講習 | I15: J01002 | J15: （公財）札幌市防災協会 | K15: K01021 | L15: 札幌市白石消防署 ４階講堂 | M15: 112 | N15: 110 | O15: 0.9821428571
A16: 01 | B16: 北海道 | C16: 01101 | D16: 札幌市 | E16: 2023-07-04 | F16: 2023-07-05 | G16: 23-1-0102010 | H16: 甲種防火管理新規講習 | I16: J01002 | J16: （公財）札幌市防災協会 | K16: K01021 | L16: 札幌市白石消防署 ４階講堂 | M16: 112 | N16: 109 | O16: 0.9732142857
A17: 01 | B17: 北海道 | C17: 01101 | D17: 札幌市 | E17: 2023-07-06 | F17: 2023-07-07 | G17: 23-6-0102011 | H17: 防火・防災管理新規講習 | I17: J01002 | J17: （公財）札幌市防災協会 | K17: K01021 | L17: 札幌市白石消防署 ４階講堂 | M17: 112 | N17: 105 | O17: 0.9375
A18: 01 | B18: 北海道 | C18: 01101 | D18: 札幌市 | E18: 2023-07-20 | F18: 2023-07-21 | G18: 23-1-0102013 | H18: 甲種防火管理新規講習 | I18: J01002 | J18: （公財）札幌市防災協会 | K18: K01021 | L18: 札幌市白石消防署 ４階講堂 | M18: 112 | N18: 103 | O18: 0.9196428571
A19: 01 | B19: 北海道 | C19: 01101 | D19: 札幌市 | E19: 2023-08-01 | F19: 2023-08-01 | G19: 23-4-0102012 | H19: 甲種防火管理再講習 | I19: J01002 | J19: （公財）札幌市防災協会 | K19: K01021 | L19: 札幌市白石消防署 ４階講堂 | M19: 112 | N19: 86 | O19: 0.7678571429
A20: 01 | B20: 北海道 | C20: 01101 | D20: 札幌市 | E20: 2023-08-02 | F20: 2023-08-03 | G20: 23-1-0102014 | H20: 甲種防火管理新規講習 | I20: J01002 | J20: （公財）札幌市防災協会 | K20: K01021 | L20: 札幌市白石消防署 ４階講堂 | M20: 112 | N20: 108 | O20: 0.9642857143
A21: 01 | B21: 北海道 | C21: 01101 | D21: 札幌市 | E21: 2023-08-22 | F21: 2023-08-23 | G21: 23-1-0102016 | H21: 甲種防火管理新規講習 | I21: J01002 | J21: （公財）札幌市防災協会 | K21: K01021 | L21: 札幌市白石消防署 ４階講堂 | M21: 112 | N21: 105 | O21: 0.9375
A22: 01 | B22: 北海道 | C22: 01101 | D22: 札幌市 | E22: 2023-09-04 | F22: 2023-09-04 | G22: 23-8-0102015 | H22: 防火・防災管理再講習 | I22: J01002 | J22: （公財）札幌市防災協会 | K22: K01021 | L22: 札幌市白石消防署 ４階講堂 | M22: 112 | N22: 51 | O22: 0.4553571429
A23: 01 | B23: 北海道 | C23: 01101 | D23: 札幌市 | E23: 2023-09-05 | F23: 2023-09-06 | G23: 23-1-0102017 | H23: 甲種防火管理新規講習 | I23: J01002 | J23: （公財）札幌市防災協会 | K23: K01021 | L23: 札幌市白石消防署 ４階講堂 | M23: 112 | N23: 108 | O23: 0.9642857143
A24: 01 | B24: 北海道 | C24: 01101 | D24: 札幌市 | E24: 2023-09-07 | F24: 2023-09-07 | G24: 23-5-0102018 | H24: 防災管理新規講習 | I24: J01002 | J24: （公財）札幌市防災協会 | K24: K01021 | L24: 札幌市白石消防署 ４階講堂 | M24: 112 | N24: 84 | O24: 0.75
A25: 01 | B25: 北海道 | C25: 01101 | D25: 札幌市 | E25: 2023-09-27 | F25: 2023-09-28 | G25: 23-6-0102019 | H25: 防火・防災管理新規講習 | I25: J01002 | J25: （公財）札幌市防災協会 | K25: K01021 | L25: 札幌市白石消防署 ４階講堂 | M25: 112 | N25: 108 | O25: 0.9642857143
A26: 01 | B26: 北海道 | C26: 01101 | D26: 札幌市 | E26: 2023-10-03 | F26: 2023-10-04 | G26: 23-1-0102020 | H26: 甲種防火管理新規講習 | I26: J01002 | J26: （公財）札幌市防災協会 | K26: K01021 | L26: 札幌市白石消防署 ４階講堂 | M26: 112 | N26: 107 | O26: 0.9553571429
A27: 01 | B27: 北海道 | C27: 01101 | D27: 札幌市 | E27: 2023-10-12 | F27: 2023-10-13 | G27: 23-6-0102021 | H27: 防火・防災管理新規講習 | I27: J01002 | J27: （公財）札幌市防災協会 | K27: K01021 | L27: 札幌市白石消防署 ４階講堂 | M27: 112 | N27: 109 | O27: 0.9732142857
A28: 01 | B28: 北海道 | C28: 01101 | D28: 札幌市 | E28: 2023-10-24 | F28: 2023-10-25 | G28: 23-1-0102022 | H28: 甲種防火管理新規講習 | I28: J01002 | J28: （公財）札幌市防災協会 | K28: K01021 | L28: 札幌市白石消防署 ４階講堂 | M28: 112 | N28: 108 | O28: 0.9642857143
A29: 01 | B29: 北海道 | C29: 01101 | D29: 札幌市 | E29: 2023-11-01 | F29: 2023-11-02 | G29: 23-1-0102024 | H29: 甲種防火管理新規講習 | I29: J01002 | J29: （公財）札幌市防災協会 | K29: K01021 | L29: 札幌市白石消防署 ４階講堂 | M29: 112 | N29: 100 | O29: 0.8928571429
A30: 01 | B30: 北海道 | C30: 01101 | D30: 札幌市 | E30: 2023-11-15 | F30: 2023-11-15 | G30: 23-4-0102023 | H30: 甲種防火管理再講習 | I30: J01002 | J30: （公財）札幌市防災協会 | K30: K01021 | L30: 札幌市白石消防署 ４階講堂 | M30: 112 | N30: 97 | O30: 0.8660714286
A31: 01 | B31: 北海道 | C31: 01101 | D31: 札幌市 | E31: 2023-11-16 | F31: 2023-11-17 | G31: 23-1-0102025 | H31: 甲種防火管理新規講習 | I31: J01002 | J31: （公財）札幌市防災協会 | K31: K01021 | L31: 札幌市白石消防署 ４階講堂 | M31: 112 | N31: 103 | O31: 0.9196428571
A32: 01 | B32: 北海道 | C32: 01101 | D32: 札幌市 | E32: 2023-12-05 | F32: 2023-12-06 | G32: 23-6-0102026 | H32: 防火・防災管理新規講習 | I32: J01002 | J32: （公財）札幌市防災協会 | K32: K01021 | L32: 札幌市白石消防署 ４階講堂 | M32: 112 | N32: 94 | O32: 0.8392857143
A33: 01 | B33: 北海道 | C33: 01101 | D33: 札幌市 | E33: 2023-12-07 | F33: 2023-12-08 | G33: 23-1-0102027 | H33: 甲種防火管理新規講習 | I33: J01002 | J33: （公財）札幌市防災協会 | K33: K01021 | L33: 札幌市白石消防署 ４階講堂 | M33: 112 | N33: 100 | O33: 0.8928571429
A34: 01 | B34: 北海道 | C34: 01101 | D34: 札幌市 | E34: 2023-12-20 | F34: 2023-12-21 | G34: 23-1-0102028 | H34: 甲種防火管理新規講習 | I34: J01002 | J34: （公財）札幌市防災協会 | K34: K01021 | L34: 札幌市白石消防署 ４階講堂 | M34: 112 | N34: 96 | O34: 0.8571428571
A35: 01 | B35: 北海道 | C35: 01101 | D35: 札幌市 | E35: 2024-01-16 | F35: 2024-01-17 | G35: 23-6-0102029 | H35: 防火・防災管理新規講習 | I35: J01002 | J35: （公財）札幌市防災協会 | K35: K01021 | L35: 札幌市白石消防署 ４階講堂 | M35: 112 | N35: 99 | O35: 0.8839285714
A36: 01 | B36: 北海道 | C36: 01101 | D36: 札幌市 | E36: 2024-01-18 | F36: 2024-01-19 | G36: 23-1-0102030 | H36: 甲種防火管理新規講習 | I36: J01002 | J36: （公財）札幌市防災協会 | K36: K01021 | L36: 札幌市白石消防署 ４階講堂 | M36: 112 | N36: 104 | O36: 0.9285714286
A37: 01 | B37: 北海道 | C37: 01101 | D37: 札幌市 | E37: 2024-01-29 | F37: 2024-01-29 | G37: 23-8-0102031 | H37: 防火・防災管理再講習 | I37: J01002 | J37: （公財）札幌市防災協会 | K37: K01021 | L37: 札幌市白石消防署 ４階講堂 | M37: 112 | N37: 42 | O37: 0.375
A38: 01 | B38: 北海道 | C38: 01101 | D38: 札幌市 | E38: 2024-01-30 | F38: 2024-01-31 | G38: 23-1-0102032 | H38: 甲種防火管理新規講習 | I38: J01002 | J38: （公財）札幌市防災協会 | K38: K01021 | L38: 札幌市白石消防署 ４階講堂 | M38: 112 | N38: 77 | O38: 0.6875
A39: 01 | B39: 北海道 | C39: 01101 | D39: 札幌市 | E39: 2024-02-13 | F39: 2024-02-13 | G39: 23-4-0102033 | H39: 甲種防火管理再講習 | I39: J01002 | J39: （公財）札幌市防災協会 | K39: K01021 | L39: 札幌市白石消防署 ４階講堂 | M39: 112 | N39: 81 | O39: 0.7232142857
A40: 01 | B40: 北海道 | C40: 01101 | D40: 札幌市 | E40: 2024-02-14 | F40: 2024-02-15 | G40: 23-1-0102034 | H40: 甲種防火管理新規講習 | I40: J01002 | J40: （公財）札幌市防災協会 | K40: K01021 | L40: 札幌市白石消防署 ４階講堂 | M40: 112 | N40: 89 | O40: 0.7946428571
A41: 01 | B41: 北海道 | C41: 01101 | D41: 札幌市 | E41: 2024-02-28 | F41: 2024-02-29 | G41: 23-1-0102035 | H41: 甲種防火管理新規講習 | I41: J01002 | J41: （公財）札幌市防災協会 | K41: K01021 | L41: 札幌市白石消防署 ４階講堂 | M41: 112 | N41: 109 | O41: 0.9732142857
A42: 01 | B42: 北海道 | C42: 01101 | D42: 札幌市 | E42: 2024-03-05 | F42: 2024-03-06 | G42: 23-1-0102036 | H42: 甲種防火管理新規講習 | I42: J01002 | J42: （公財）札幌市防災協会 | K42: K01021 | L42: 札幌市白石消防署 ４階講堂 | M42: 112 | N42: 90 | O42: 0.8035714286
A43: 01 | B43: 北海道 | C43: 01101 | D43: 札幌市 | E43: 2024-03-13 | F43: 2024-03-14 | G43: 23-1-0102037 | H43: 甲種防火管理新規講習 | I43: J01002 | J43: （公財）札幌市防災協会 | K43: K01021 | L43: 札幌市白石消防署 ４階講堂 | M43: 112 | N43: 102 | O43: 0.9107142857
A44: 01 | B44: 北海道 | C44: 01101 | D44: 札幌市 | E44: 2024-03-15 | F44: 2024-03-15 | G44: 23-2-0102038 | H44: 乙種防火管理講習 | I44: J01002 | J44: （公財）札幌市防災協会 | K44: K01021 | L44: 札幌市白石消防署 ４階講堂 | M44: 112 | N44: 41 | O44: 0.3660714286
A45: 01 | B45: 北海道 | C45: 01202 | D45: 函館市 | E45: 2023-04-20 | F45: 2023-04-21 | G45: 23-1-0101001 | H45: 甲種防火管理新規講習 | I45: J01001 | J45: （一社）北海道消防設備協会 | K45: K01036 | L45: 函館市亀田交流プラザ | M45: 120 | N45: 43 | O45: 0.3583333333
A46: 01 | B46: 北海道 | C46: 01202 | D46: 函館市 | E46: 2023-06-22 | F46: 2023-06-23 | G46: 23-1-0101003 | H46: 甲種防火管理新規講習 | I46: J01001 | J46: （一社）北海道消防設備協会 | K46: K01039 | L46: 函館市民会館 大会議室 | M46: 120 | N46: 116 | O46: 0.9666666667
A47: 01 | B47: 北海道 | C47: 01202 | D47: 函館市 | E47: 2023-11-08 | F47: 2023-11-09 | G47: 23-1-0101020 | H47: 甲種防火管理新規講習 | I47: J01001 | J47: （一社）北海道消防設備協会 | K47: K01039 | L47: 函館市民会館 大会議室 | M47: 120 | N47: 79 | O47: 0.6583333333
A48: 01 | B48: 北海道 | C48: 01205 | D48: 室蘭市 | E48: 2023-07-20 | F48: 2023-07-21 | G48: 23-1-0101007 | H48: 甲種防火管理新規講習 | I48: J01001 | J48: （一社）北海道消防設備協会 | K48: K01012 | L48: 室蘭市市民会館（２階会議室） | M48: 100 | N48: 62 | O48: 0.62
A49: 01 | B49: 北海道 | C49: 01206 | D49: 釧路市 | E49: 2023-06-29 | F49: 2023-06-30 | G49: 23-1-0101004 | H49: 甲種防火管理新規講習 | I49: J01001 | J49: （一社）北海道消防設備協会 | K49: K01006 | L49: 釧路市生涯学習センター（多目的ホール） | M49: 100 | N49: 98 | O49: 0.98
A50: 01 | B50: 北海道 | C50: 01206 | D50: 釧路市 | E50: 2023-11-30 | F50: 2023-12-01 | G50: 23-1-0101022 | H50: 甲種防火管理新規講習 | I50: J01001 | J50: （一社）北海道消防設備協会 | K50: K01006 | L50: 釧路市生涯学習センター（多目的ホール） | M50: 100 | N50: 75 | O50: 0.75
A51: 01 | B51: 北海道 | C51: 01206 | D51: 釧路市 | E51: 2023-11-30 | F51: 2023-11-30 | G51: 23-4-0101023 | H51: 甲種防火管理再講習 | I51: J01001 | J51: （一社）北海道消防設備協会 | K51: K01005 | L51: 釧路市生涯学習センター（学習室７０５・７０６） | M51: 50 | N51: 37 | O51: 0.74
A52: 01 | B52: 北海道 | C52: 01208 | D52: 北見市 | E52: 2023-10-12 | F52: 2023-10-13 | G52: 23-1-0101018 | H52: 甲種防火管理新規講習 | I52: J01001 | J52: （一社）北海道消防設備協会 | K52: K01019 | L52: 北見市民会館 小ホール | M52: 120 | N52: 74 | O52: 0.6166666667
A53: 01 | B53: 北海道 | C53: 01210 | D53: 岩見沢市 | E53: 2023-07-13 | F53: 2023-07-14 | G53: 23-1-0101006 | H53: 甲種防火管理新規講習 | I53: J01001 | J53: （一社）北海道消防設備協会 | K53: K01002 | L53: まなみーる岩見沢市民会館・文化センター（音楽室） | M53: 100 | N53: 71 | O53: 0.71
A54: 01 | B54: 北海道 | C54: 01210 | D54: 岩見沢市 | E54: 2023-11-16 | F54: 2023-11-17 | G54: 23-1-0101021 | H54: 甲種防火管理新規講習 | I54: J01001 | J54: （一社）北海道消防設備協会 | K54: K01002 | L54: まなみーる岩見沢市民会館・文化センター（音楽室） | M54: 100 | N54: 41 | O54: 0.41
A55: 01 | B55: 北海道 | C55: 01213 | D55: 苫小牧市 | E55: 2023-07-06 | F55: 2023-07-07 | G55: 23-1-0101005 | H55: 甲種防火管理新規講習 | I55: J01001 | J55: （一社）北海道消防設備協会 | K55: K01025 | L55: 苫小牧市民会館 小ホール | M55: 140 | N55: 85 | O55: 0.6071428571
A56: 01 | B56: 北海道 | C56: 01213 | D56: 苫小牧市 | E56: 2023-12-14 | F56: 2023-12-15 | G56: 23-1-0101025 | H56: 甲種防火管理新規講習 | I56: J01001 | J56: （一社）北海道消防設備協会 | K56: K01025 | L56: 苫小牧市民会館 小ホール | M56: 140 | N56: 64 | O56: 0.4571428571
A57: 01 | B57: 北海道 | C57: 01217 | D57: 江別市 | E57: 2023-08-24 | F57: 2023-08-25 | G57: 23-1-0101012 | H57: 甲種防火管理新規講習 | I57: J01001 | J57: （一社）北海道消防設備協会 | K57: K01008 | L57: 江別市民会館（小ホール） | M57: 70 | N57: 53 | O57: 0.7571428571
A58: 01 | B58: 北海道 | C58: 01217 | D58: 江別市 | E58: 2023-12-07 | F58: 2023-12-08 | G58: 23-1-0101024 | H58: 甲種防火管理新規講習 | I58: J01001 | J58: （一社）北海道消防設備協会 | K58: K01008 | L58: 江別市民会館（小ホール） | M58: 60 | N58: 50 | O58: 0.8333333333
A59: 01 | B59: 北海道 | C59: 01220 | D59: 士別市 | E59: 2023-09-28 | F59: 2023-09-29 | G59: 23-1-0101017 | H59: 甲種防火管理新規講習 | I59: J01001 | J59: （一社）北海道消防設備協会 | K59: K01011 | L59: 士別市民文化センター（研修室） | M59: 80 | N59: 31 | O59: 0.3875
A60: 01 | B60: 北海道 | C60: 01224 | D60: 千歳市 | E60: 2023-05-31 | F60: 2023-05-31 | G60: 23-4-0101010 | H60: 甲種防火管理再講習 | I60: J01001 | J60: （一社）北海道消防設備協会 | K60: K01014 | L60: 千歳市民文化センター 北ガス文化ホール（４階大会議室） | M60: 100 | N60: 16 | O60: 0.16
A61: 01 | B61: 北海道 | C61: 01224 | D61: 千歳市 | E61: 2023-06-01 | F61: 2023-06-02 | G61: 23-1-0101011 | H61: 甲種防火管理新規講習 | I61: J01001 | J61: （一社）北海道消防設備協会 | K61: K01014 | L61: 千歳市民文化センター 北ガス文化ホール（４階大会議室） | M61: 100 | N61: 40 | O61: 0.4
A62: 01 | B62: 北海道 | C62: 01225 | D62: 滝川市 | E62: 2023-09-14 | F62: 2023-09-15 | G62: 23-1-0101015 | H62: 甲種防火管理新規講習 | I62: J01001 | J62: （一社）北海道消防設備協会 | K62: K01037 | L62: 滝川市民交流プラザ 小ホール | M62: 90 | N62: 46 | O62: 0.5111111111
A63: 01 | B63: 北海道 | C63: 01230 | D63: 登別市 | E63: 2023-12-21 | F63: 2023-12-22 | G63: 23-1-0101026 | H63: 甲種防火管理新規講習 | I63: J01001 | J63: （一社）北海道消防設備協会 | K63: K01015 | L63: 登別市民会館（中ホール） | M63: 80 | N63: 33 | O63: 0.4125
A64: 01 | B64: 北海道 | C64: 01231 | D64: 恵庭市 | E64: 2023-06-08 | F64: 2023-06-09 | G64: 23-1-0101002 | H64: 甲種防火管理新規講習 | I64: J01001 | J64: （一社）北海道消防設備協会 | K64: K01027 | L64: 恵庭市民会館 中ホール | M64: 60 | N64: 32 | O64: 0.5333333333
A65: 01 | B65: 北海道 | C65: 01231 | D65: 恵庭市 | E65: 2023-10-18 | F65: 2023-10-19 | G65: 23-1-0101019 | H65: 甲種防火管理新規講習 | I65: J01001 | J65: （一社）北海道消防設備協会 | K65: K01027 | L65: 恵庭市民会館 中ホール | M65: 60 | N65: 50 | O65: 0.8333333333
A66: 01 | B66: 北海道 | C66: 01233 | D66: 伊達市 | E66: 2023-09-07 | F66: 2023-09-08 | G66: 23-1-0101014 | H66: 甲種防火管理新規講習 | I66: J01001 | J66: （一社）北海道消防設備協会 | K66: K01003 | L66: 伊達市消防防災センター（３階防災教育ホール） | M66: 60 | N66: 55 | O66: 0.9166666667
A67: 01 | B67: 北海道 | C67: 01234 | D67: 北広島市 | E67: 2023-07-27 | F67: 2023-07-28 | G67: 23-1-0101008 | H67: 甲種防火管理新規講習 | I67: J01001 | J67: （一社）北海道消防設備協会 | K67: K01032 | L67: 北広島市芸術文化ホール 活動室１・２ | M67: 75 | N67: 75 | O67: 1
A68: 01 | B68: 北海道 | C68: 01235 | D68: 石狩市 | E68: 2023-08-31 | F68: 2023-09-01 | G68: 23-1-0101013 | H68: 甲種防火管理新規講習 | I68: J01001 | J68: （一社）北海道消防設備協会 | K68: K01004 | L68: 花川北コミュニティセンター | M68: 70 | N68: 55 | O68: 0.7857142857
A69: 01 | B69: 北海道 | C69: 01236 | D69: 北斗市 | E69: 2023-09-13 | F69: 2023-09-14 | G69: 23-1-0001040 | H69: 甲種防火管理新規講習 | I69: J00001 | J69: （一財）日本防火・防災協会 | K69: K01033 | L69: 北斗市総合文化センター 大会議室 | M69: 100 | N69: 58 | O69: 0.58
A70: 01 | B70: 北海道 | C70: 01661 | D70: 釧路郡釧路町 | E70: 2023-09-21 | F70: 2023-09-22 | G70: 23-1-0101016 | H70: 甲種防火管理新規講習 | I70: J01001 | J70: （一社）北海道消防設備協会 | K70: K01007 | L70: 釧路町公民館 | M70: 60 | N70: 60 | O70: 1
A71: 01 | B71: 北海道 | C71: 01692 | D71: 標津郡中標津町 | E71: 2023-08-03 | F71: 2023-08-04 | G71: 23-1-0101009 | H71: 甲種防火管理新規講習 | I71: J01001 | J71: （一社）北海道消防設備協会 | K71: K01038 | L71: 中標津町総合文化会館「しるべっと」コミュニティホール | M71: 70 | N71: 51 | O71: 0.7285714286
A72: 02 | B72: 青森県 | C72: 02201 | D72: 青森市 | E72: 2023-09-21 | F72: 2023-09-22 | G72: 23-1-0201001 | H72: 甲種防火管理新規講習 | I72: J02001 | J72: （一社）青森県消防設備保守協会 | K72: K02003 | L72: 青森県観光物産館アスパム | M72: 75 | N72: 73 | O72: =N72/M72 -> 0.9733333333
A73: 03 | B73: 岩手県 | C73: 03201 | D73: 盛岡市 | E73: 2023-04-26 | F73: 2023-04-27 | G73: 23-1-0301001 | H73: 甲種防火管理新規講習 | I73: J03001 | J73: （一財）岩手県防災保安協会 | K73: K03015 | L73: 岩手県高校教育会館 | M73: 120 | N73: 117 | O73: 0.975
A74: 03 | B74: 岩手県 | C74: 03201 | D74: 盛岡市 | E74: 2023-11-21 | F74: 2023-11-22 | G74: 23-1-0301009 | H74: 甲種防火管理新規講習 | I74: J03001 | J74: （一財）岩手県防災保安協会 | K74: K03007 | L74: いわて県民情報交流センター アイーナ会議室８０４ | M74: 200 | N74: 187 | O74: 0.935
A75: 03 | B75: 岩手県 | C75: 03201 | D75: 盛岡市 | E75: 2024-03-05 | F75: 2024-03-05 | G75: 23-4-0301012 | H75: 甲種防火管理再講習 | I75: J03001 | J75: （一財）岩手県防災保安協会 | K75: K03015 | L75: 岩手県高校教育会館 | M75: 100 | N75: 46 | O75: 0.46
A76: 03 | B76: 岩手県 | C76: 03201 | D76: 盛岡市 | E76: 2024-03-06 | F76: 2024-03-07 | G76: 23-1-0301011 | H76: 甲種防火管理新規講習 | I76: J03001 | J76: （一財）岩手県防災保安協会 | K76: K03007 | L76: いわて県民情報交流センター アイーナ会議室８０４ | M76: 200 | N76: 194 | O76: 0.97
A77: 03 | B77: 岩手県 | C77: 03202 | D77: 宮古市 | E77: 2023-05-25 | F77: 2023-05-26 | G77: 23-1-0301002 | H77: 甲種防火管理新規講習 | I77: J03001 | J77: （一財）岩手県防災保安協会 | K77: K03010 | L77: 宮古市民文化会館 | M77: 100 | N77: 78 | O77: 0.78
A78: 03 | B78: 岩手県 | C78: 03206 | D78: 北上市 | E78: 2023-11-07 | F78: 2023-11-08 | G78: 23-1-0301008 | H78: 甲種防火管理新規講習 | I78: J03001 | J78: （一財）岩手県防災保安協会 | K78: K03013 | L78: 北上市文化交流センター さくらホール | M78: 100 | N78: 95 | O78: 0.95
A79: 03 | B79: 岩手県 | C79: 03207 | D79: 久慈市 | E79: 2023-10-26 | F79: 2023-10-27 | G79: 23-1-0301007 | H79: 甲種防火管理新規講習 | I79: J03001 | J79: （一財）岩手県防災保安協会 | K79: K03009 | L79: 久慈市防災センター | M79: 80 | N79: 62 | O79: 0.775
A80: 03 | B80: 岩手県 | C80: 03208 | D80: 遠野市 | E80: 2023-07-27 | F80: 2023-07-28 | G80: 23-1-0301005 | H80: 甲種防火管理新規講習 | I80: J03001 | J80: （一財）岩手県防災保安協会 | K80: K03001 | L80: あえりあ遠野 | M80: 100 | N80: 80 | O80: 0.8
A81: 03 | B81: 岩手県 | C81: 03211 | D81: 釜石市 | E81: 2023-06-08 | F81: 2023-06-09 | G81: 23-1-0301003 | H81: 甲種防火管理新規講習 | I81: J03001 | J81: （一財）岩手県防災保安協会 | K81: K03004 | L81: 釜石・大槌地域産業育成センター | M81: 66 | N81: 64 | O81: 0.9696969697
A82: 03 | B82: 岩手県 | C82: 03213 | D82: 二戸市 | E82: 2023-12-07 | F82: 2023-12-08 | G82: 23-1-0301010 | H82: 甲種防火管理新規講習 | I82: J03001 | J82: （一財）岩手県防災保安協会 | K82: K03012 | L82: 二戸市民文化会館 | M82: 100 | N82: 58 | O82: 0.58
A83: 03 | B83: 岩手県 | C83: 03215 | D83: 奥州市 | E83: 2023-09-14 | F83: 2023-09-15 | G83: 23-1-0301006 | H83: 甲種防火管理新規講習 | I83: J03001 | J83: （一財）岩手県防災保安協会 | K83: K03003 | L83: 奥州市文化会館 Ｚホール | M83: 120 | N83: 118 | O83: 0.9833333333
A84: 03 | B84: 岩手県 | C84: 03402 | D84: 西磐井郡平泉町 | E84: 2023-06-29 | F84: 2023-06-30 | G84: 23-1-0301004 | H84: 甲種防火管理新規講習 | I84: J03001 | J84: （一財）岩手県防災保安協会 | K84: K03016 | L84: 平泉ホテル武蔵坊 | M84: 150 | N84: 114 | O84: 0.76
A85: 04 | B85: 宮城県 | C85: 04101 | D85: 仙台市 | E85: 2023-04-26 | F85: 2023-04-27 | G85: 23-1-0402001 | H85: 甲種防火管理新規講習 | I85: J04002 | J85: （公社）仙台市防災安全協会 | K85: K04015 | L85: フォレスト仙台 フォレストホール | M85: 168 | N85: 144 | O85: 0.8571428571
A86: 04 | B86: 宮城県 | C86: 04101 | D86: 仙台市 | E86: 2023-05-24 | F86: 2023-05-25 | G86: 23-1-0402002 | H86: 甲種防火管理新規講習 | I86: J04002 | J86: （公社）仙台市防災安全協会 | K86: K04015 | L86: フォレスト仙台 フォレストホール | M86: 168 | N86: 152 | O86: 0.9047619048
A87: 04 | B87: 宮城県 | C87: 04101 | D87: 仙台市 | E87: 2023-05-30 | F87: 2023-05-31 | G87: 23-6-0402003 | H87: 防火・防災管理新規講習 | I87: J04002 | J87: （公社）仙台市防災安全協会 | K87: K04015 | L87: フォレスト仙台 フォレストホール | M87: 168 | N87: 161 | O87: 0.9583333333
A88: 04 | B88: 宮城県 | C88: 04101 | D88: 仙台市 | E88: 2023-06-19 | F88: 2023-06-19 | G88: 23-4-0402004 | H88: 甲種防火管理再講習 | I88: J04002 | J88: （公社）仙台市防災安全協会 | K88: K04015 | L88: フォレスト仙台 フォレストホール | M88: 168 | N88: 52 | O88: 0.3095238095
A89: 04 | B89: 宮城県 | C89: 04101 | D89: 仙台市 | E89: 2023-06-28 | F89: 2023-06-29 | G89: 23-1-0402005 | H89: 甲種防火管理新規講習 | I89: J04002 | J89: （公社）仙台市防災安全協会 | K89: K04015 | L89: フォレスト仙台 フォレストホール | M89: 168 | N89: 164 | O89: 0.9761904762
A90: 04 | B90: 宮城県 | C90: 04101 | D90: 仙台市 | E90: 2023-07-19 | F90: 2023-07-20 | G90: 23-1-0402006 | H90: 甲種防火管理新規講習 | I90: J04002 | J90: （公社）仙台市防災安全協会 | K90: K04015 | L90: フォレスト仙台 フォレストホール | M90: 168 | N90: 144 | O90: 0.8571428571
A91: 04 | B91: 宮城県 | C91: 04101 | D91: 仙台市 | E91: 2023-07-26 | F91: 2023-07-27 | G91: 23-6-0402007 | H91: 防火・防災管理新規講習 | I91: J04002 | J91: （公社）仙台市防災安全協会 | K91: K04015 | L91: フォレスト仙台 フォレストホール | M91: 168 | N91: 159 | O91: 0.9464285714
A92: 04 | B92: 宮城県 | C92: 04101 | D92: 仙台市 | E92: 2023-08-08 | F92: 2023-08-09 | G92: 23-6-0401011 | H92: 防火・防災管理新規講習 | I92: J04001 | J92: （一社）宮城県消防設備協会 | K92: K04004 | L92: 宮城県管工事会館 ９階大会議室 | M92: 80 | N92: 77 | O92: 0.9625
A93: 04 | B93: 宮城県 | C93: 04101 | D93: 仙台市 | E93: 2023-08-23 | F93: 2023-08-24 | G93: 23-1-0402008 | H93: 甲種防火管理新規講習 | I93: J04002 | J93: （公社）仙台市防災安全協会 | K93: K04015 | L93: フォレスト仙台 フォレストホール | M93: 168 | N93: 156 | O93: 0.9285714286
A94: 04 | B94: 宮城県 | C94: 04101 | D94: 仙台市 | E94: 2023-09-08 | F94: 2023-09-08 | G94: 23-8-0402009 | H94: 防火・防災管理再講習 | I94: J04002 | J94: （公社）仙台市防災安全協会 | K94: K04021 | L94: フォレスト仙台 第２フォレストホール | M94: 80 | N94: 78 | O94: 0.975
A95: 04 | B95: 宮城県 | C95: 04101 | D95: 仙台市 | E95: 2023-09-13 | F95: 2023-09-14 | G95: 23-1-0402010 | H95: 甲種防火管理新規講習 | I95: J04002 | J95: （公社）仙台市防災安全協会 | K95: K04015 | L95: フォレスト仙台 フォレストホール | M95: 168 | N95: 136 | O95: 0.8095238095
A96: 04 | B96: 宮城県 | C96: 04101 | D96: 仙台市 | E96: 2023-09-29 | F96: 2023-09-29 | G96: 23-5-0402011 | H96: 防災管理新規講習 | I96: J04002 | J96: （公社）仙台市防災安全協会 | K96: K04021 | L96: フォレスト仙台 第２フォレストホール | M96: 80 | N96: 76 | O96: 0.95
A97: 04 | B97: 宮城県 | C97: 04101 | D97: 仙台市 | E97: 2023-10-04 | F97: 2023-10-05 | G97: 23-1-0402012 | H97: 甲種防火管理新規講習 | I97: J04002 | J97: （公社）仙台市防災安全協会 | K97: K04015 | L97: フォレスト仙台 フォレストホール | M97: 168 | N97: 112 | O97: 0.6666666667
A98: 04 | B98: 宮城県 | C98: 04101 | D98: 仙台市 | E98: 2023-10-24 | F98: 2023-10-24 | G98: 23-4-0402013 | H98: 甲種防火管理再講習 | I98: J04002 | J98: （公社）仙台市防災安全協会 | K98: K04015 | L98: フォレスト仙台 フォレストホール | M98: 168 | N98: 81 | O98: 0.4821428571
A99: 04 | B99: 宮城県 | C99: 04101 | D99: 仙台市 | E99: 2023-11-08 | F99: 2023-11-09 | G99: 23-1-0402014 | H99: 甲種防火管理新規講習 | I99: J04002 | J99: （公社）仙台市防災安全協会 | K99: K04015 | L99: フォレスト仙台 フォレストホール | M99: 168 | N99: 145 | O99: 0.8630952381
A100: 04 | B100: 宮城県 | C100: 04101 | D100: 仙台市 | E100: 2023-11-15 | F100: 2023-11-16 | G100: 23-6-0402015 | H100: 防火・防災管理新規講習 | I100: J04002 | J100: （公社）仙台市防災安全協会 | K100: K04015 | L100: フォレスト仙台 フォレストホール | M100: 160 | N100: 154 | O100: 0.9625
A101: 04 | B101: 宮城県 | C101: 04101 | D101: 仙台市 | E101: 2023-12-20 | F101: 2023-12-21 | G101: 23-1-0402016 | H101: 甲種防火管理新規講習 | I101: J04002 | J101: （公社）仙台市防災安全協会 | K101: K04015 | L101: フォレスト仙台 フォレストホール | M101: 168 | N101: 164 | O101: 0.9761904762
A102: 04 | B102: 宮城県 | C102: 04101 | D102: 仙台市 | E102: 2024-01-30 | F102: 2024-01-31 | G102: 23-1-0402017 | H102: 甲種防火管理新規講習 | I102: J04002 | J102: （公社）仙台市防災安全協会 | K102: K04015 | L102: フォレスト仙台 フォレストホール | M102: 168 | N102: 135 | O102: 0.8035714286
A103: 04 | B103: 宮城県 | C103: 04101 | D103: 仙台市 | E103: 2024-02-14 | F103: 2024-02-15 | G103: 23-1-0402018 | H103: 甲種防火管理新規講習 | I103: J04002 | J103: （公社）仙台市防災安全協会 | K103: K04015 | L103: フォレスト仙台 フォレストホール | M103: 168 | N103: 122 | O103: 0.7261904762
A104: 04 | B104: 宮城県 | C104: 04101 | D104: 仙台市 | E104: 2024-02-27 | F104: 2024-02-27 | G104: 23-8-0402019 | H104: 防火・防災管理再講習 | I104: J04002 | J104: （公社）仙台市防災安全協会 | K104: K04021 | L104: フォレスト仙台 第２フォレストホール | M104: 80 | N104: 77 | O104: 0.9625
A105: 04 | B105: 宮城県 | C105: 04101 | D105: 仙台市 | E105: 2024-02-28 | F105: 2024-02-29 | G105: 23-6-0402020 | H105: 防火・防災管理新規講習 | I105: J04002 | J105: （公社）仙台市防災安全協会 | K105: K04015 | L105: フォレスト仙台 フォレストホール | M105: 168 | N105: 157 | O105: 0.9345238095
A106: 04 | B106: 宮城県 | C106: 04101 | D106: 仙台市 | E106: 2024-03-05 | F106: 2024-03-05 | G106: 23-5-0402021 | H106: 防災管理新規講習 | I106: J04002 | J106: （公社）仙台市防災安全協会 | K106: K04021 | L106: フォレスト仙台 第２フォレストホール | M106: 80 | N106: 75 | O106: 0.9375
A107: 04 | B107: 宮城県 | C107: 04101 | D107: 仙台市 | E107: 2024-03-06 | F107: 2024-03-07 | G107: 23-1-0402022 | H107: 甲種防火管理新規講習 | I107: J04002 | J107: （公社）仙台市防災安全協会 | K107: K04015 | L107: フォレスト仙台 フォレストホール | M107: 168 | N107: 158 | O107: 0.9404761905
A108: 04 | B108: 宮城県 | C108: 04205 | D108: 気仙沼市 | E108: 2023-06-22 | F108: 2023-06-23 | G108: 23-1-0401007 | H108: 甲種防火管理新規講習 | I108: J04001 | J108: （一社）宮城県消防設備協会 | K108: K04003 | L108: 気仙沼市本吉公民館 ２階視聴覚室 | M108: 70 | N108: 58 | O108: 0.8285714286
A109: 04 | B109: 宮城県 | C109: 04205 | D109: 気仙沼市 | E109: 2023-11-21 | F109: 2023-11-22 | G109: 23-1-0401020 | H109: 甲種防火管理新規講習 | I109: J04001 | J109: （一社）宮城県消防設備協会 | K109: K04003 | L109: 気仙沼市本吉公民館 ２階視聴覚室 | M109: 70 | N109: 29 | O109: 0.4142857143
A110: 04 | B110: 宮城県 | C110: 04207 | D110: 名取市 | E110: 2023-08-31 | F110: 2023-09-01 | G110: 23-1-0401013 | H110: 甲種防火管理新規講習 | I110: J04001 | J110: （一社）宮城県消防設備協会 | K110: K04010 | L110: 名取市文化会館 ３階小ホール | M110: 70 | N110: 65 | O110: 0.9285714286
A111: 04 | B111: 宮城県 | C111: 04209 | D111: 多賀城市 | E111: 2023-07-11 | F111: 2023-07-12 | G111: 23-1-0401009 | H111: 甲種防火管理新規講習 | I111: J04001 | J111: （一社）宮城県消防設備協会 | K111: K04013 | L111: 多賀城消防署 会議室 | M111: 50 | N111: 50 | O111: 1
A112: 04 | B112: 宮城県 | C112: 04209 | D112: 多賀城市 | E112: 2023-09-12 | F112: 2023-09-13 | G112: 23-1-0401015 | H112: 甲種防火管理新規講習 | I112: J04001 | J112: （一社）宮城県消防設備協会 | K112: K04013 | L112: 多賀城消防署 会議室 | M112: 50 | N112: 47 | O112: 0.94
A113: 04 | B113: 宮城県 | C113: 04209 | D113: 多賀城市 | E113: 2023-11-16 | F113: 2023-11-17 | G113: 23-1-0401019 | H113: 甲種防火管理新規講習 | I113: J04001 | J113: （一社）宮城県消防設備協会 | K113: K04013 | L113: 多賀城消防署 会議室 | M113: 50 | N113: 47 | O113: 0.94
A114: 04 | B114: 宮城県 | C114: 04211 | D114: 岩沼市 | E114: 2023-05-10 | F114: 2023-05-11 | G114: 23-1-0401001 | H114: 甲種防火管理新規講習 | I114: J04001 | J114: （一社）宮城県消防設備協会 | K114: K04018 | L114: 岩沼市民会館 中ホール | M114: 70 | N114: 57 | O114: 0.8142857143
A115: 04 | B115: 宮城県 | C115: 04211 | D115: 岩沼市 | E115: 2023-12-01 | F115: 2023-12-01 | G115: 23-4-0401022 | H115: 甲種防火管理再講習 | I115: J04001 | J115: （一社）宮城県消防設備協会 | K115: K04018 | L115: 岩沼市民会館 中ホール | M115: 70 | N115: 59 | O115: 0.8428571429
A116: 04 | B116: 宮城県 | C116: 04212 | D116: 登米市 | E116: 2023-06-15 | F116: 2023-06-16 | G116: 23-1-0401006 | H116: 甲種防火管理新規講習 | I116: J04001 | J116: （一社）宮城県消防設備協会 | K116: K04019 | L116: 登米市豊里公民館 中ホール | M116: 60 | N116: 38 | O116: 0.6333333333
A117: 04 | B117: 宮城県 | C117: 04212 | D117: 登米市 | E117: 2023-11-28 | F117: 2023-11-29 | G117: 23-1-0401021 | H117: 甲種防火管理新規講習 | I117: J04001 | J117: （一社）宮城県消防設備協会 | K117: K04019 | L117: 登米市豊里公民館 中ホール | M117: 60 | N117: 55 | O117: 0.9166666667
A118: 04 | B118: 宮城県 | C118: 04213 | D118: 栗原市 | E118: 2023-06-01 | F118: 2023-06-02 | G118: 23-1-0401004 | H118: 甲種防火管理新規講習 | I118: J04001 | J118: （一社）宮城県消防設備協会 | K118: K04005 | L118: 栗原市消防庁舎 ３階大会議室 | M118: 60 | N118: 33 | O118: 0.55
A119: 04 | B119: 宮城県 | C119: 04214 | D119: 東松島市 | E119: 2023-06-13 | F119: 2023-06-14 | G119: 23-1-0401005 | H119: 甲種防火管理新規講習 | I119: J04001 | J119: （一社）宮城県消防設備協会 | K119: K04009 | L119: 東松島市コミュニティセンター ２階会議室 | M119: 70 | N119: 68 | O119: 0.9714285714
A120: 04 | B120: 宮城県 | C120: 04214 | D120: 東松島市 | E120: 2023-11-14 | F120: 2023-11-15 | G120: 23-1-0401024 | H120: 甲種防火管理新規講習 | I120: J04001 | J120: （一社）宮城県消防設備協会 | K120: K04009 | L120: 東松島市コミュニティセンター ２階会議室 | M120: 70 | N120: 62 | O120: 0.8857142857
A121: 04 | B121: 宮城県 | C121: 04215 | D121: 大崎市 | E121: 2023-05-29 | F121: 2023-05-30 | G121: 23-1-0401003 | H121: 甲種防火管理新規講習 | I121: J04001 | J121: （一社）宮城県消防設備協会 | K121: K04007 | L121: 大崎建設産業会館 ２階大会議室 | M121: 80 | N121: 77 | O121: 0.9625
A122: 04 | B122: 宮城県 | C122: 04215 | D122: 大崎市 | E122: 2023-08-23 | F122: 2023-08-24 | G122: 23-1-0401012 | H122: 甲種防火管理新規講習 | I122: J04001 | J122: （一社）宮城県消防設備協会 | K122: K04007 | L122: 大崎建設産業会館 ２階大会議室 | M122: 80 | N122: 75 | O122: 0.9375
A123: 04 | B123: 宮城県 | C123: 04215 | D123: 大崎市 | E123: 2023-09-19 | F123: 2023-09-19 | G123: 23-4-0401016 | H123: 甲種防火管理再講習 | I123: J04001 | J123: （一社）宮城県消防設備協会 | K123: K04007 | L123: 大崎建設産業会館 ２階大会議室 | M123: 80 | N123: 67 | O123: 0.8375
A124: 04 | B124: 宮城県 | C124: 04215 | D124: 大崎市 | E124: 2023-12-06 | F124: 2023-12-07 | G124: 23-1-0401023 | H124: 甲種防火管理新規講習 | I124: J04001 | J124: （一社）宮城県消防設備協会 | K124: K04007 | L124: 大崎建設産業会館 ２階大会議室 | M124: 80 | N124: 75 | O124: 0.9375
A125: 04 | B125: 宮城県 | C125: 04216 | D125: 富谷市 | E125: 2023-07-13 | F125: 2023-07-14 | G125: 23-1-0401010 | H125: 甲種防火管理新規講習 | I125: J04001 | J125: （一社）宮城県消防設備協会 | K125: K04020 | L125: 富谷市総合運動公園富谷武道館 | M125: 100 | N125: 87 | O125: 0.87
A126: 04 | B126: 宮城県 | C126: 04321 | D126: 柴田郡大河原町 | E126: 2023-05-18 | F126: 2023-05-19 | G126: 23-1-0401002 | H126: 甲種防火管理新規講習 | I126: J04001 | J126: （一社）宮城県消防設備協会 | K126: K04006 | L126: 仙南地域広域消防本部 ３階講堂 | M126: 80 | N126: 42 | O126: 0.525
A127: 04 | B127: 宮城県 | C127: 04321 | D127: 柴田郡大河原町 | E127: 2023-07-04 | F127: 2023-07-04 | G127: 23-4-0401008 | H127: 甲種防火管理再講習 | I127: J04001 | J127: （一社）宮城県消防設備協会 | K127: K04006 | L127: 仙南地域広域消防本部 ３階講堂 | M127: 80 | N127: 22 | O127: 0.275
A128: 04 | B128: 宮城県 | C128: 04321 | D128: 柴田郡大河原町 | E128: 2023-11-09 | F128: 2023-11-10 | G128: 23-1-0401017 | H128: 甲種防火管理新規講習 | I128: J04001 | J128: （一社）宮城県消防設備協会 | K128: K04006 | L128: 仙南地域広域消防本部 ３階講堂 | M128: 80 | N128: 76 | O128: 0.95
A129: 04 | B129: 宮城県 | C129: 04361 | D129: 亘理郡亘理町 | E129: 2023-09-06 | F129: 2023-09-07 | G129: 23-1-0401014 | H129: 甲種防火管理新規講習 | I129: J04001 | J129: （一社）宮城県消防設備協会 | K129: K04022 | L129: 亘理町農村環境改善センター（吉田公民館） | M129: 50 | N129: 49 | O129: 0.98
A130: 05 | B130: 秋田県 | C130: 05204 | D130: 大館市 | E130: 2023-08-02 | F130: 2023-08-03 | G130: 23-1-0001041 | H130: 甲種防火管理新規講習 | I130: J00001 | J130: （一財）日本防火・防災協会 | K130: K05001 | L130: プラザ杉の子 ３階 飛天の間 | M130: 150 | N130: 105 | O130: 0.7
A131: 05 | B131: 秋田県 | C131: 05204 | D131: 大館市 | E131: 2023-11-15 | F131: 2023-11-16 | G131: 23-1-0001042 | H131: 甲種防火管理新規講習 | I131: J00001 | J131: （一財）日本防火・防災協会 | K131: K05001 | L131: プラザ杉の子 ３階 飛天の間 | M131: 150 | N131: 67 | O131: 0.4466666667
A132: 05 | B132: 秋田県 | C132: 05204 | D132: 大館市 | E132: 2023-11-17 | F132: 2023-11-17 | G132: 23-4-0001316 | H132: 甲種防火管理再講習 | I132: J00001 | J132: （一財）日本防火・防災協会 | K132: K05002 | L132: プラザ杉の子 ２階 芙蓉の間 | M132: 80 | N132: 29 | O132: 0.3625
A133: 06 | B133: 山形県 | C133: 06201 | D133: 山形市 | E133: 2023-05-23 | F133: 2023-05-24 | G133: 23-6-0601001 | H133: 防火・防災管理新規講習 | I133: J06001 | J133: （一社）山形県消防設備協会 | K133: K06004 | L133: 山形ビッグウイング ４階中会議室 | M133: 96 | N133: 41 | O133: 0.4270833333
A134: 06 | B134: 山形県 | C134: 06201 | D134: 山形市 | E134: 2023-06-13 | F134: 2023-06-14 | G134: 23-1-0601002 | H134: 甲種防火管理新規講習 | I134: J06001 | J134: （一社）山形県消防設備協会 | K134: K06002 | L134: 山形ビッグウイング ２階大会議室 | M134: 200 | N134: 179 | O134: 0.895
A135: 06 | B135: 山形県 | C135: 06201 | D135: 山形市 | E135: 2023-08-02 | F135: 2023-08-03 | G135: 23-1-0601006 | H135: 甲種防火管理新規講習 | I135: J06001 | J135: （一社）山形県消防設備協会 | K135: K06002 | L135: 山形ビッグウイング ２階大会議室 | M135: 200 | N135: 163 | O135: 0.815
A136: 06 | B136: 山形県 | C136: 06201 | D136: 山形市 | E136: 2023-11-24 | F136: 2023-11-24 | G136: 23-4-0601010 | H136: 甲種防火管理再講習 | I136: J06001 | J136: （一社）山形県消防設備協会 | K136: K06004 | L136: 山形ビッグウイング ４階中会議室 | M136: 96 | N136: 86 | O136: =N136/M136 -> 0.8958333333
A137: 06 | B137: 山形県 | C137: 06201 | D137: 山形市 | E137: 2023-12-12 | F137: 2023-12-13 | G137: 23-1-0601011 | H137: 甲種防火管理新規講習 | I137: J06001 | J137: （一社）山形県消防設備協会 | K137: K06002 | L137: 山形ビッグウイング ２階大会議室 | M137: 200 | N137: 168 | O137: 0.84
A138: 06 | B138: 山形県 | C138: 06201 | D138: 山形市 | E138: 2024-03-05 | F138: 2024-03-06 | G138: 23-1-0601012 | H138: 甲種防火管理新規講習 | I138: J06001 | J138: （一社）山形県消防設備協会 | K138: K06002 | L138: 山形ビッグウイング ２階大会議室 | M138: 200 | N138: 148 | O138: 0.74
A139: 06 | B139: 山形県 | C139: 06202 | D139: 米沢市 | E139: 2023-09-05 | F139: 2023-09-06 | G139: 23-1-0601007 | H139: 甲種防火管理新規講習 | I139: J06001 | J139: （一社）山形県消防設備協会 | K139: K06008 | L139: 米沢市すこやかセンター ２階大会議室 | M139: 100 | N139: 91 | O139: 0.91
A140: 06 | B140: 山形県 | C140: 06203 | D140: 鶴岡市 | E140: 2023-06-29 | F140: 2023-06-30 | G140: 23-1-0601004 | H140: 甲種防火管理新規講習 | I140: J06001 | J140: （一社）山形県消防設備協会 | K140: K06010 | L140: 鶴岡市勤労者会館 １階大ホール | M140: 88 | N140: 85 | O140: 0.9659090909
A141: 06 | B141: 山形県 | C141: 06203 | D141: 鶴岡市 | E141: 2023-10-27 | F141: 2023-10-27 | G141: 23-4-0601008 | H141: 甲種防火管理再講習 | I141: J06001 | J141: （一社）山形県消防設備協会 | K141: K06010 | L141: 鶴岡市勤労者会館 １階大ホール | M141: 88 | N141: 39 | O141: 0.4431818182
A142: 06 | B142: 山形県 | C142: 06203 | D142: 鶴岡市 | E142: 2023-11-08 | F142: 2023-11-09 | G142: 23-1-0601009 | H142: 甲種防火管理新規講習 | I142: J06001 | J142: （一社）山形県消防設備協会 | K142: K06010 | L142: 鶴岡市勤労者会館 １階大ホール | M142: 98 | N142: 75 | O142: 0.7653061224
A143: 06 | B143: 山形県 | C143: 06204 | D143: 酒田市 | E143: 2023-06-08 | F143: 2023-06-09 | G143: 23-3-0001043 | H143: 甲乙同時防火管理講習 | I143: J00001 | J143: （一財）日本防火・防災協会 | K143: K06005 | L143: 酒田勤労者福祉センター ３階多目的ホール | M143: 100 | N143: 56 | O143: 0.56
A144: 06 | B144: 山形県 | C144: 06204 | D144: 酒田市 | E144: 2023-12-06 | F144: 2023-12-07 | G144: 23-3-0001044 | H144: 甲乙同時防火管理講習 | I144: J00001 | J144: （一財）日本防火・防災協会 | K144: K06005 | L144: 酒田勤労者福祉センター ３階多目的ホール | M144: 100 | N144: 69 | O144: 0.69
A145: 06 | B145: 山形県 | C145: 06205 | D145: 新庄市 | E145: 2023-06-22 | F145: 2023-06-23 | G145: 23-1-0601003 | H145: 甲種防火管理新規講習 | I145: J06001 | J145: （一社）山形県消防設備協会 | K145: K06001 | L145: 最上広域交流センターゆめりあ ２階会議室 | M145: 64 | N145: 40 | O145: 0.625
A146: 06 | B146: 山形県 | C146: 06209 | D146: 長井市 | E146: 2023-07-12 | F146: 2023-07-13 | G146: 23-1-0601005 | H146: 甲種防火管理新規講習 | I146: J06001 | J146: （一社）山形県消防設備協会 | K146: K06013 | L146: 長井市民文化会館 大会議室 | M146: 48 | N146: 44 | O146: 0.9166666667
A147: 07 | B147: 福島県 | C147: 07201 | D147: 福島市 | E147: 2023-05-23 | F147: 2023-05-24 | G147: 23-1-0701001 | H147: 甲種防火管理新規講習 | I147: J07001 | J147: （一社）福島県消防設備協会 | K147: K07007 | L147: 福島県文化センター ２階 会議室兼展示室 | M147: 140 | N147: 66 | O147: 0.4714285714
A148: 07 | B148: 福島県 | C148: 07201 | D148: 福島市 | E148: 2023-07-26 | F148: 2023-07-26 | G148: 23-4-0701004 | H148: 甲種防火管理再講習 | I148: J07001 | J148: （一社）福島県消防設備協会 | K148: K07007 | L148: 福島県文化センター ２階 会議室兼展示室 | M148: 140 | N148: 75 | O148: 0.5357142857
A149: 07 | B149: 福島県 | C149: 07201 | D149: 福島市 | E149: 2023-12-05 | F149: 2023-12-06 | G149: 23-1-0701011 | H149: 甲種防火管理新規講習 | I149: J07001 | J149: （一社）福島県消防設備協会 | K149: K07007 | L149: 福島県文化センター ２階 会議室兼展示室 | M149: 140 | N149: 51 | O149: 0.3642857143
A150: 07 | B150: 福島県 | C150: 07203 | D150: 郡山市 | E150: 2023-08-31 | F150: 2023-09-01 | G150: 23-6-0701005 | H150: 防火・防災管理新規講習 | I150: J07001 | J150: （一社）福島県消防設備協会 | K150: K07003 | L150: 郡山ユラックス熱海 ２階 大会議室 | M150: 150 | N150: 74 | O150: 0.4933333333
A151: 07 | B151: 福島県 | C151: 07203 | D151: 郡山市 | E151: 2023-10-12 | F151: 2023-10-12 | G151: 23-4-0701008 | H151: 甲種防火管理再講習 | I151: J07001 | J151: （一社）福島県消防設備協会 | K151: K07003 | L151: 郡山ユラックス熱海 ２階 大会議室 | M151: 150 | N151: 91 | O151: 0.6066666667
A152: 07 | B152: 福島県 | C152: 07203 | D152: 郡山市 | E152: 2023-11-20 | F152: 2023-11-21 | G152: 23-1-0701010 | H152: 甲種防火管理新規講習 | I152: J07001 | J152: （一社）福島県消防設備協会 | K152: K07003 | L152: 郡山ユラックス熱海 ２階 大会議室 | M152: 150 | N152: 76 | O152: 0.5066666667
A153: 07 | B153: 福島県 | C153: 07203 | D153: 郡山市 | E153: 2024-03-06 | F153: 2024-03-07 | G153: 23-1-0701012 | H153: 甲種防火管理新規講習 | I153: J07001 | J153: （一社）福島県消防設備協会 | K153: K07003 | L153: 郡山ユラックス熱海 ２階 大会議室 | M153: 150 | N153: 143 | O153: 0.9533333333
A154: 07 | B154: 福島県 | C154: 07204 | D154: いわき市 | E154: 2023-10-04 | F154: 2023-10-05 | G154: 23-1-0701007 | H154: 甲種防火管理新規講習 | I154: J07001 | J154: （一社）福島県消防設備協会 | K154: K07001 | L154: いわき新舞子ハイツ 多目的ホール | M154: 130 | N154: 65 | O154: 0.5
A155: 07 | B155: 福島県 | C155: 07207 | D155: 須賀川市 | E155: 2023-07-20 | F155: 2023-07-21 | G155: 23-1-0701003 | H155: 甲種防火管理新規講習 | I155: J07001 | J155: （一社）福島県消防設備協会 | K155: K07004 | L155: 須賀川市民温泉 ２階 大会議室 | M155: 100 | N155: 98 | O155: 0.98
A156: 07 | B156: 福島県 | C156: 07207 | D156: 須賀川市 | E156: 2023-11-09 | F156: 2023-11-10 | G156: 23-1-0701009 | H156: 甲種防火管理新規講習 | I156: J07001 | J156: （一社）福島県消防設備協会 | K156: K07004 | L156: 須賀川市民温泉 ２階 大会議室 | M156: 100 | N156: 66 | O156: 0.66
A157: 07 | B157: 福島県 | C157: 07461 | D157: 西白河郡西郷村 | E157: 2023-06-01 | F157: 2023-06-02 | G157: 23-1-0701002 | H157: 甲種防火管理新規講習 | I157: J07001 | J157: （一社）福島県消防設備協会 | K157: K07010 | L157: 西郷村文化センター １階 大研修室 | M157: 100 | N157: 63 | O157: 0.63
A158: 07 | B158: 福島県 | C158: 07461 | D158: 西白河郡西郷村 | E158: 2023-09-06 | F158: 2023-09-07 | G158: 23-1-0701006 | H158: 甲種防火管理新規講習 | I158: J07001 | J158: （一社）福島県消防設備協会 | K158: K07010 | L158: 西郷村文化センター １階 大研修室 | M158: 100 | N158: 68 | O158: 0.68
A159: 08 | B159: 茨城県 | C159: 08201 | D159: 水戸市 | E159: 2023-06-08 | F159: 2023-06-09 | G159: 23-1-0801001 | H159: 甲種防火管理新規講習 | I159: J08001 | J159: （一社）茨城県消防設備協会 | K159: K08005 | L159: 茨城県建設技術研修センター ３階 大ホール | M159: 150 | N159: 138 | O159: 0.92
A160: 08 | B160: 茨城県 | C160: 08201 | D160: 水戸市 | E160: 2023-07-18 | F160: 2023-07-19 | G160: 23-3-0001050 | H160: 甲乙同時防火管理講習 | I160: J00001 | J160: （一財）日本防火・防災協会 | K160: K08004 | L160: 茨城県トラック総合会館（見川町） 研修室１ | M160: 140 | N160: 138 | O160: 0.9857142857
A161: 08 | B161: 茨城県 | C161: 08201 | D161: 水戸市 | E161: 2023-10-08 | F161: 2023-10-09 | G161: 23-3-0001053 | H161: 甲乙同時防火管理講習 | I161: J00001 | J161: （一財）日本防火・防災協会 | K161: K08004 | L161: 茨城県トラック総合会館（見川町） 研修室１ | M161: 140 | N161: 132 | O161: 0.9428571429
A162: 08 | B162: 茨城県 | C162: 08201 | D162: 水戸市 | E162: 2023-10-31 | F162: 2023-11-01 | G162: 23-6-0801002 | H162: 防火・防災管理新規講習 | I162: J08001 | J162: （一社）茨城県消防設備協会 | K162: K08005 | L162: 茨城県建設技術研修センター ３階 大ホール | M162: 150 | N162: 137 | O162: 0.9133333333
A163: 08 | B163: 茨城県 | C163: 08201 | D163: 水戸市 | E163: 2023-11-18 | F163: 2023-11-18 | G163: 23-4-0001057 | H163: 甲種防火管理再講習 | I163: J00001 | J163: （一財）日本防火・防災協会 | K163: K08004 | L163: 茨城県トラック総合会館（見川町） 研修室１ | M163: 140 | N163: 54 | O163: 0.3857142857
A164: 08 | B164: 茨城県 | C164: 08201 | D164: 水戸市 | E164: 2024-02-01 | F164: 2024-02-02 | G164: 23-3-0001059 | H164: 甲乙同時防火管理講習 | I164: J00001 | J164: （一財）日本防火・防災協会 | K164: K08004 | L164: 茨城県トラック総合会館（見川町） 研修室１ | M164: 140 | N164: 132 | O164: 0.9428571429
A165: 08 | B165: 茨城県 | C165: 08201 | D165: 水戸市 | E165: 2024-03-18 | F165: 2024-03-19 | G165: 23-3-0001061 | H165: 甲乙同時防火管理講習 | I165: J00001 | J165: （一財）日本防火・防災協会 | K165: K08004 | L165: 茨城県トラック総合会館（見川町） 研修室１ | M165: 140 | N165: 135 | O165: 0.9642857143
A166: 08 | B166: 茨城県 | C166: 08202 | D166: 日立市 | E166: 2023-09-20 | F166: 2023-09-21 | G166: 23-3-0001052 | H166: 甲乙同時防火管理講習 | I166: J00001 | J166: （一財）日本防火・防災協会 | K166: K08012 | L166: 日立地区産業支援センター 大研修室 | M166: 50 | N166: 46 | O166: 0.92
A167: 08 | B167: 茨城県 | C167: 08202 | D167: 日立市 | E167: 2023-11-09 | F167: 2023-11-10 | G167: 23-3-0001055 | H167: 甲乙同時防火管理講習 | I167: J00001 | J167: （一財）日本防火・防災協会 | K167: K08012 | L167: 日立地区産業支援センター 大研修室 | M167: 50 | N167: 48 | O167: 0.96
A168: 08 | B168: 茨城県 | C168: 08202 | D168: 日立市 | E168: 2024-02-20 | F168: 2024-02-21 | G168: 23-3-0001063 | H168: 甲乙同時防火管理講習 | I168: J00001 | J168: （一財）日本防火・防災協会 | K168: K08012 | L168: 日立地区産業支援センター 大研修室 | M168: 50 | N168: 46 | O168: 0.92
A169: 08 | B169: 茨城県 | C169: 08205 | D169: 石岡市 | E169: 2023-07-07 | F169: 2023-07-08 | G169: 23-1-0001049 | H169: 甲種防火管理新規講習 | I169: J00001 | J169: （一財）日本防火・防災協会 | K169: K08019 | L169: ふれあいの里 石岡 ひまわりの館 ふれあいホール | M169: 80 | N169: 79 | O169: 0.9875
A170: 08 | B170: 茨城県 | C170: 08207 | D170: 結城市 | E170: 2023-05-19 | F170: 2023-05-20 | G170: 23-1-0802001 | H170: 甲種防火管理新規講習 | I170: J08002 | J170: 筑西広域防火管理協議会 | K170: K08007 | L170: 結城市民情報センター 多目的ホール | M170: 100 | N170: 94 | O170: 0.94
A171: 08 | B171: 茨城県 | C171: 08207 | D171: 結城市 | E171: 2023-07-14 | F171: 2023-07-14 | G171: 23-4-0802002 | H171: 甲種防火管理再講習 | I171: J08002 | J171: 筑西広域防火管理協議会 | K171: K08009 | L171: 結城市民文化センターアクロス 展示室 | M171: 50 | N171: 39 | O171: 0.78
A172: 08 | B172: 茨城県 | C172: 08207 | D172: 結城市 | E172: 2023-10-18 | F172: 2023-10-19 | G172: 23-1-0802003 | H172: 甲種防火管理新規講習 | I172: J08002 | J172: 筑西広域防火管理協議会 | K172: K08007 | L172: 結城市民情報センター 多目的ホール | M172: 100 | N172: 99 | O172: 0.99
A173: 08 | B173: 茨城県 | C173: 08211 | D173: 常総市 | E173: 2023-06-05 | F173: 2023-06-06 | G173: 23-3-0001047 | H173: 甲乙同時防火管理講習 | I173: J00001 | J173: （一財）日本防火・防災協会 | K173: K08015 | L173: 茨城職業能力開発促進センター（ポリテクセンター茨城） ２階 研修室４ | M173: 54 | N173: 50 | O173: 0.9259259259
A174: 08 | B174: 茨城県 | C174: 08217 | D174: 取手市 | E174: 2023-12-05 | F174: 2023-12-06 | G174: 23-3-0001058 | H174: 甲乙同時防火管理講習 | I174: J00001 | J174: （一財）日本防火・防災協会 | K174: K08016 | L174: 取手市立福祉会館 ３階講座室ＡＢ | M174: 120 | N174: 110 | O174: 0.9166666667
A175: 08 | B175: 茨城県 | C175: 08220 | D175: つくば市 | E175: 2023-05-23 | F175: 2023-05-24 | G175: 23-3-0001045 | H175: 甲乙同時防火管理講習 | I175: J00001 | J175: （一財）日本防火・防災協会 | K175: K08001 | L175: つくば市茎崎交流センター ２階大会議室 | M175: 100 | N175: 91 | O175: 0.91
A176: 08 | B176: 茨城県 | C176: 08220 | D176: つくば市 | E176: 2023-10-10 | F176: 2023-10-11 | G176: 23-3-0001054 | H176: 甲乙同時防火管理講習 | I176: J00001 | J176: （一財）日本防火・防災協会 | K176: K08001 | L176: つくば市茎崎交流センター ２階大会議室 | M176: 100 | N176: 94 | O176: 0.94
A177: 08 | B177: 茨城県 | C177: 08220 | D177: つくば市 | E177: 2023-11-15 | F177: 2023-11-16 | G177: 23-6-0001056 | H177: 防火・防災管理新規講習 | I177: J00001 | J177: （一財）日本防火・防災協会 | K177: K08001 | L177: つくば市茎崎交流センター ２階大会議室 | M177: 100 | N177: 97 | O177: 0.97
A178: 08 | B178: 茨城県 | C178: 08220 | D178: つくば市 | E178: 2024-02-06 | F178: 2024-02-07 | G178: 23-3-0001060 | H178: 甲乙同時防火管理講習 | I178: J00001 | J178: （一財）日本防火・防災協会 | K178: K08001 | L178: つくば市茎崎交流センター ２階大会議室 | M178: 100 | N178: 90 | O178: 0.9
A179: 08 | B179: 茨城県 | C179: 08221 | D179: ひたちなか市 | E179: 2023-05-27 | F179: 2023-05-28 | G179: 23-1-0001046 | H179: 甲種防火管理新規講習 | I179: J00001 | J179: （一財）日本防火・防災協会 | K179: K08002 | L179: ワークプラザ勝田 大会議室 | M179: 100 | N179: 96 | O179: 0.96
A180: 08 | B180: 茨城県 | C180: 08221 | D180: ひたちなか市 | E180: 2023-06-24 | F180: 2023-06-24 | G180: 23-4-0001048 | H180: 甲種防火管理再講習 | I180: J00001 | J180: （一財）日本防火・防災協会 | K180: K08002 | L180: ワークプラザ勝田 大会議室 | M180: 100 | N180: 40 | O180: 0.4
A181: 08 | B181: 茨城県 | C181: 08221 | D181: ひたちなか市 | E181: 2023-08-05 | F181: 2023-08-06 | G181: 23-1-0001051 | H181: 甲種防火管理新規講習 | I181: J00001 | J181: （一財）日本防火・防災協会 | K181: K08002 | L181: ワークプラザ勝田 大会議室 | M181: 100 | N181: 95 | O181: 0.95
A182: 08 | B182: 茨城県 | C182: 08221 | D182: ひたちなか市 | E182: 2024-02-17 | F182: 2024-02-18 | G182: 23-6-0001062 | H182: 防火・防災管理新規講習 | I182: J00001 | J182: （一財）日本防火・防災協会 | K182: K08002 | L182: ワークプラザ勝田 大会議室 | M182: 100 | N182: 96 | O182: 0.96
A183: 08 | B183: 茨城県 | C183: 08309 | D183: 東茨城郡大洗町 | E183: 2023-09-27 | F183: 2023-09-28 | G183: 23-1-0001309 | H183: 甲種防火管理新規講習 | I183: J00001 | J183: （一財）日本防火・防災協会 | K183: K08020 | L183: トヨペットスマイルホール大洗（大洗文化センター） 大会議室 | M183: 60 | N183: 53 | O183: 0.8833333333
A184: 09 | B184: 栃木県 | C184: 09201 | D184: 宇都宮市 | E184: 2023-07-06 | F184: 2023-07-07 | G184: 23-1-0901001 | H184: 甲種防火管理新規講習 | I184: J09001 | J184: （一財）栃木県消防設備保安協会 | K184: K09009 | L184: 栃木県自治会館 ４階 大会議室 | M184: 70 | N184: 68 | O184: 0.9714285714
A185: 09 | B185: 栃木県 | C185: 09201 | D185: 宇都宮市 | E185: 2023-07-27 | F185: 2023-07-28 | G185: 23-6-0901002 | H185: 防火・防災管理新規講習 | I185: J09001 | J185: （一財）栃木県消防設備保安協会 | K185: K09009 | L185: 栃木県自治会館 ４階 大会議室 | M185: 70 | N185: 67 | O185: 0.9571428571
A186: 09 | B186: 栃木県 | C186: 09201 | D186: 宇都宮市 | E186: 2023-09-04 | F186: 2023-09-04 | G186: 23-4-0901003 | H186: 甲種防火管理再講習 | I186: J09001 | J186: （一財）栃木県消防設備保安協会 | K186: K09009 | L186: 栃木県自治会館 ４階 大会議室 | M186: 70 | N186: 70 | O186: 1
A187: 09 | B187: 栃木県 | C187: 09201 | D187: 宇都宮市 | E187: 2023-09-21 | F187: 2023-09-22 | G187: 23-1-0901004 | H187: 甲種防火管理新規講習 | I187: J09001 | J187: （一財）栃木県消防設備保安協会 | K187: K09009 | L187: 栃木県自治会館 ４階 大会議室 | M187: 70 | N187: 67 | O187: 0.9571428571
A188: 09 | B188: 栃木県 | C188: 09201 | D188: 宇都宮市 | E188: 2023-12-14 | F188: 2023-12-15 | G188: 23-1-0901005 | H188: 甲種防火管理新規講習 | I188: J09001 | J188: （一財）栃木県消防設備保安協会 | K188: K09009 | L188: 栃木県自治会館 ４階 大会議室 | M188: 70 | N188: 67 | O188: 0.9571428571
A189: 09 | B189: 栃木県 | C189: 09201 | D189: 宇都宮市 | E189: 2024-01-17 | F189: 2024-01-18 | G189: 23-1-0901006 | H189: 甲種防火管理新規講習 | I189: J09001 | J189: （一財）栃木県消防設備保安協会 | K189: K09009 | L189: 栃木県自治会館 ４階 大会議室 | M189: 70 | N189: 69 | O189: 0.9857142857
A190: 09 | B190: 栃木県 | C190: 09201 | D190: 宇都宮市 | E190: 2024-02-21 | F190: 2024-02-22 | G190: 23-1-0901007 | H190: 甲種防火管理新規講習 | I190: J09001 | J190: （一財）栃木県消防設備保安協会 | K190: K09009 | L190: 栃木県自治会館 ４階 大会議室 | M190: 70 | N190: 67 | O190: 0.9571428571
A191: 09 | B191: 栃木県 | C191: 09202 | D191: 足利市 | E191: 2023-05-11 | F191: 2023-05-12 | G191: 23-1-0001160 | H191: 甲種防火管理新規講習 | I191: J00001 | J191: （一財）日本防火・防災協会 | K191: K09007 | L191: あしかがフラワーパークプラザ（足利市民プラザ） 西館 小ホール | M191: 100 | N191: 87 | O191: 0.87
A192: 09 | B192: 栃木県 | C192: 09202 | D192: 足利市 | E192: 2023-08-03 | F192: 2023-08-04 | G192: 23-1-0001167 | H192: 甲種防火管理新規講習 | I192: J00001 | J192: （一財）日本防火・防災協会 | K192: K09007 | L192: あしかがフラワーパークプラザ（足利市民プラザ） 西館 小ホール | M192: 100 | N192: 94 | O192: 0.94
A193: 09 | B193: 栃木県 | C193: 09202 | D193: 足利市 | E193: 2023-12-07 | F193: 2023-12-08 | G193: 23-1-0001179 | H193: 甲種防火管理新規講習 | I193: J00001 | J193: （一財）日本防火・防災協会 | K193: K09007 | L193: あしかがフラワーパークプラザ（足利市民プラザ） 西館 小ホール | M193: 100 | N193: 90 | O193: 0.9
A194: 09 | B194: 栃木県 | C194: 09202 | D194: 足利市 | E194: 2024-03-07 | F194: 2024-03-08 | G194: 23-1-0001183 | H194: 甲種防火管理新規講習 | I194: J00001 | J194: （一財）日本防火・防災協会 | K194: K09007 | L194: あしかがフラワーパークプラザ（足利市民プラザ） 西館 小ホール | M194: 100 | N194: 91 | O194: 0.91
A195: 09 | B195: 栃木県 | C195: 09203 | D195: 栃木市 | E195: 2023-07-13 | F195: 2023-07-14 | G195: 23-1-0001166 | H195: 甲種防火管理新規講習 | I195: J00001 | J195: （一財）日本防火・防災協会 | K195: K09010 | L195: 栃木市国府公民館 大交流室 | M195: 80 | N195: 74 | O195: 0.925
A196: 09 | B196: 栃木県 | C196: 09204 | D196: 佐野市 | E196: 2023-11-16 | F196: 2023-11-17 | G196: 23-1-0001178 | H196: 甲種防火管理新規講習 | I196: J00001 | J196: （一財）日本防火・防災協会 | K196: K09001 | L196: 佐野市勤労者会館 ２階 ＡＢＣ会議室 | M196: 80 | N196: 65 | O196: 0.8125
A197: 09 | B197: 栃木県 | C197: 09205 | D197: 鹿沼市 | E197: 2023-08-24 | F197: 2023-08-25 | G197: 23-1-0001169 | H197: 甲種防火管理新規講習 | I197: J00001 | J197: （一財）日本防火・防災協会 | K197: K09002 | L197: 鹿沼市民文化センター 大会議室 | M197: 72 | N197: 70 | O197: 0.9722222222
A198: 09 | B198: 栃木県 | C198: 09205 | D198: 鹿沼市 | E198: 2023-09-14 | F198: 2023-09-15 | G198: 23-1-0001171 | H198: 甲種防火管理新規講習 | I198: J00001 | J198: （一財）日本防火・防災協会 | K198: K09002 | L198: 鹿沼市民文化センター 大会議室 | M198: 72 | N198: 60 | O198: 0.8333333333
A199: 09 | B199: 栃木県 | C199: 09205 | D199: 鹿沼市 | E199: 2023-11-09 | F199: 2023-11-10 | G199: 23-1-0001176 | H199: 甲種防火管理新規講習 | I199: J00001 | J199: （一財）日本防火・防災協会 | K199: K09002 | L199: 鹿沼市民文化センター 大会議室 | M199: 72 | N199: 50 | O199: 0.6944444444
A200: 09 | B200: 栃木県 | C200: 09205 | D200: 鹿沼市 | E200: 2023-11-13 | F200: 2023-11-13 | G200: 23-4-0001177 | H200: 甲種防火管理再講習 | I200: J00001 | J200: （一財）日本防火・防災協会 | K200: K09002 | L200: 鹿沼市民文化センター 大会議室 | M200: 72 | N200: 62 | O200: =N200/M200 -> 0.8611111111
A201: 09 | B201: 栃木県 | C201: 09206 | D201: 日光市 | E201: 2023-05-29 | F201: 2023-05-29 | G201: 23-4-0001162 | H201: 甲種防火管理再講習 | I201: J00001 | J201: （一財）日本防火・防災協会 | K201: K09013 | L201: 日光市大沢公民館 会議室１・２・３ | M201: 80 | N201: 52 | O201: 0.65
A202: 09 | B202: 栃木県 | C202: 09206 | D202: 日光市 | E202: 2023-05-30 | F202: 2023-05-31 | G202: 23-1-0001163 | H202: 甲種防火管理新規講習 | I202: J00001 | J202: （一財）日本防火・防災協会 | K202: K09013 | L202: 日光市大沢公民館 会議室１・２・３ | M202: 80 | N202: 74 | O202: 0.925
... 940 more rows

Sheet ※入力禁止※時間割一覧
B1: 時間割一覧 | J1: ★背景色がオレンジの時間割はオンライン講習用です
B3: 講習種別 | F3: 講習種別 | J3: 時間割 パターン | M3: 時間割詳細
B4: 防火 | F4: 甲種新規 | J4: 甲新1 | M4: 【第１日目】 9:00～9：30 9:30～ 9：40 9:40～11：40 11:40～12:40 12:30～12:40 12:40～14:40 14:40～14:50 14:50～16:20 16:20～16:30頃 【第２日目】 9:00～9：30 9:30～11:40 11:40～12:40 12:40～14:40 14:40～14:50 14:50～15:35頃 | R4: 受付 オリエンテーション ①防火管理の意義と制度の概要（120分） 昼休憩 受付［※科目免除者のみ］ ②火気取扱いの基本知識と出火防止対策（120分） 休憩 ③施設・設備の維持管理（90分） 事務連絡等 受付 ④自衛消防（130分） 昼休憩 ⑤防火管理の進め方と消防計画（120分） 休憩 効果測定（20分）、修了証交付、事務連絡等
J25: 甲新2 | M25: 【第１日目】 9:20～9:50 9:50～10:00 10:00～12:00 12:00～13:00 12:50～13:00 13:00～15:00 15:00～15:10 15:10～16:40 16:40～16:50頃 【第２日目】 9:20～9:50 9:50～12:00 12:00～13:00 13:00～15:00 15:00～15:10 15:10～15:55頃 | R25: 受付 オリエンテーション ①防火管理の意義と制度の概要（120分） 昼休憩 受付［※科目免除者のみ］ ②火気取扱いの基本知識と出火防止対策（120分） 休憩 ③施設・設備の維持管理（90分） 事務連絡等 受付 ④自衛消防（130分） 昼休憩 ⑤防火管理の進め方と消防計画（120分） 休憩 効果測定（20分）、修了証交付、事務連絡等
J46: 甲新3 | M46: 【第１日目】 9:40～10:10 10:10～10:20 10:20～12:20 12:20～13:20 13:10～13:20 13:20～15:20 15:20～15:30 15:30～17:00 17:00～17:10頃 【第２日目】 9:40～10:10 10:10～12:20 12:20～13:20 13:20～15:20 15:20～15:30 15:30～16:15頃 | R46: 受付 オリエンテーション ①防火管理の意義と制度の概要（120分） 昼休憩 受付［※科目免除者のみ］ ②火気取扱いの基本知識と出火防止対策（120分） 休憩 ③施設・設備の維持管理（90分） 事務連絡等 受付 ④自衛消防（130分） 昼休憩 ⑤防火管理の進め方と消防計画（120分） 休憩 効果測定（20分）、修了証交付、事務連絡等
J67: 甲新4 | M67: 【第１日目】 10:00～10:30 10:30～10:40 10:40～12:40 12:40～13:40 13:30～13:40 13:40～15:40 15:40～15:50 15:50～17:20 17:20～17:30頃 【第２日目】 10:00～10:30 10:30～12:40 12:40～13:40 13:40～15:40 15:40～15:50 15:50～16:35頃 | R67: 受付 オリエンテーション ①防火管理の意義と制度の概要（120分） 昼休憩 受付［※科目免除者のみ］ ②火気取扱いの基本知識と出火防止対策（120分） 休憩 ③施設・設備の維持管理(90分） 事務連絡等 受付 ④自衛消防（130分） 昼休憩 ⑤防火管理の進め方と消防計画（120分） 休憩 効果測定（20分）、修了証交付、事務連絡等
J88: 甲新5 | M88: 【第１日目】 10:20～10:50 10:50～11:00 11:00～13:00 13:00～14:00 13:50～14:00 14:00～16:00 16:00～16:10 16:10～17:40 17:40～17:50頃 【第２日目】 10:20～10:50 10:50～13:00 13:00～14:00 14:00～16:00 16:00～16:10 16:10～16:55頃 | R88: 受付 オリエンテーション ①防火管理の意義と制度の概要（120分） 昼休憩 受付［※科目免除者のみ］ ②火気取扱いの基本知識と出火防止対策（120分） 休憩 ③施設・設備の維持管理(90分） 事務連絡等 受付 ④自衛消防（130分） 昼休憩 ⑤防火管理の進め方と消防計画（120分） 休憩 効果測定（20分）、修了証交付、事務連絡等
J109: 甲新6 | M109: 【第１日目】 9:20～9:50 9:50～10:00 10:00～12:00 12:00～13:00 12:50～13:00 13:00～14:30 14:30～14:40 14:40～16:50 16:50～17:00頃 【第２日目】 9:30～10:00 10:00～12:00 12:00～13:00 13:00～15:00 15:00～15:10 15:10～15:55頃 | R109: 受付 オリエンテーション ①防火管理の意義と制度の概要（120分） 昼休憩 受付［※科目免除者のみ］ ②施設・設備の維持管理（90分） 休憩 ③自衛消防（実技含む）（130分） 事務連絡等 受付 ④火気取扱いの基本知識と出火防止対策（120分） 昼休憩 ⑤防火管理の進め方と消防計画（120分） 休憩 効果測定（20分）、修了証交付、事務連絡等
J130: 甲新7 | M130: 【第１日目】 9:00～9:30 9:30～9:40 9:40～11:40 11:40～12:40 12:30～12:40 12:40～14:40 14:40～14:50 14:50～16:50 16:50～17:00頃 【第２日目】 9:10～9:40 9:40～11:40 11:40～12:40 12:40～14:40 14:40～14:50 14:50～15:35頃 | R130: 受付 オリエンテーション ①防火管理の意義と制度の概要（120分） 昼休憩 受付［※科目免除者のみ］ ②火気取扱いの基本知識と出火防止対策（120分） 休憩 ③施設・設備の維持管理（120分） 事務連絡等 受付 ④防火管理の進め方と消防計画（120分） 昼休憩 ⑤自衛消防（実技含む）（120分） 休憩 効果測定（20分）、修了証交付、事務連絡等
J151: 甲新8 | M151: 【第１日目】 9:20～9:50 9:50～10:00 10:00～12:00 12:00～13:00 12:50～13:00 13:00～15:00 15:00～15:10 15:10～16:40 16:40～16:50頃 【第２日目】 9:20～9:50 9:50～12:00 12:00～13:00 13:00～15:00 15:00～15:10 15:10～15:55頃 | R151: 受付 オリエンテーション ①防火管理の意義と制度の概要（120分） 昼休憩 受付［※科目免除者のみ］ ②火気取扱いの基本知識と出火防止対策（120分） 休憩 ③自衛消防（90分） 事務連絡等 受付 ④施設・設備の維持管理（130分） 昼休憩 ⑤防火管理の進め方と消防計画（120分） 休憩 効果測定（20分）、修了証交付、事務連絡等
J172: 甲新9 | M172: 【第１日目】 9:30～10:00 10:00～10:10 10:10～12:10 12:10～13:10 13:00～13:10 13:10～15:10 15:10～15:20 15:20～16:50 16:50～17:00頃 【第２日目】 9:30～10:00 10:00～12:10 12:10～13:10 13:10～15:10 15:10～15:20 15:20～16:05頃 | R172: 受付 オリエンテーション ①防火管理の意義と制度の概要（120分） 昼休憩 受付［※科目免除者のみ］ ②火気取扱いの基本知識と出火防止対策（120分） 休憩 ③自衛消防（90分） 事務連絡等 受付 ④施設・設備の維持管理（130分） 昼休憩 ⑤防火管理の進め方と消防計画（120分） 休憩 効果測定（20分）、修了証交付、事務連絡等
J193: 甲新10 | M193: 【第１日目】 9:00～9:30 9:30～9:40 9:40～11:40 11:40～11:50 11:50～12:20 12:20～13:10 13:10～15:50 15:50～16:00頃 【第２日目】 9:00～9:30 9:30～10:30 10:30～10:40 10:40～12:10 12:10～13:00 13:00～15:40 15:40～15:50 15:50～16:10 16:10～16:20頃 | R193: 受付 オリエンテーション ①防火管理の意義と制度の概要（120分） 休憩・受付［※科目免除者のみ］ ②火災の基礎知識（30分） 昼休憩 ③火気管理、危険物の安全管理、地震対策（160分） 事務連絡等 受付 ④施設・設備の維持管理（60分） 休憩 ⑤自衛消防（90分） 昼休憩 ⑥防火管理の進め方と消防計画（160分） 休憩 効果測定・問題解説 修了証交付、事務連絡等
J215: 甲新11 | M215: 【第１日目】 9:00～9:30 9:30～9:40 9:40～10:40 10:40～10:50 10:50～11:50 11:50～12:50 12:40～12:50 12:50～13:50 13:50～14:00 14:00～15:00 15:00～15:10 15:10～16:40 16:40～16:50頃 【第２日目】 9:00～9:30 9:30～10:30 10:30～10:40 10:40～11:50 11:50～12:50 12:50～13:50 13:50～14:00 14:00～15:00 15:00～15:10 15:10～15:40 15:40～15:50頃 | R215: 受付 オリエンテーション ①防火管理の意義と制度の概要（60分） 休憩 ②防火管理の意義と制度の概要（60分） 休憩 受付［※科目免除者のみ］ ③火気取扱いの基本知識と出火防止対策１（60分） 休憩 ④火気取扱いの基本知識と出火防止対策２（60分） 休憩 ⑤施設・設備の維持管理 事務連絡等 受付 ⑥自衛消防（60分） 休憩 ⑦自衛消防（70分） 休憩 ⑧防火管理に係る消防計画（60分） 休憩 ⑨防火管理に係る消防計画（60分） 休憩 効果測定 修了証交付、事務連絡等
J243: 甲新12 | M243: 【第１日目】 9:10～9:40 9:40～9:50 9:50～12:00 12:00～13:00 12:40～12:50 13:00～14:00 14:10～15:10 15:20～16:20 16:20～16:30頃 【第２日目】 9:10～9:40 9:40～10:50 11:00～12:00 12:00～13:00 13:00～14:20 14:30～15:40 15:50～16:10 16:10～16:20頃 | R243: 受付 オリエンテーション ①防火管理の意義と制度の概要（130分） 昼休憩 受付［※科目免除者のみ］ ②火災の基礎知識（60分） ③火気管理（60分） ④危険物の安全管理・地震対策（60分） 事務連絡等 受付 ⑤施設・設備の維持管理（70分） ⑥消防用設備の操作要領（60分） 昼休憩 ⑦自衛消防（80分） ⑧防火管理の進め方と消防計画（70分） 効果測定 修了証交付、事務連絡等
J266: 甲新13 | M266: 【第１日目】 10:00～10:30 10:30～10:40 10:40～12:40 12:40～13:40 13:30～13:40 13:40～15:40 15:40～15:50 15:50～17:20 17:20～17:30頃 【第２日目】 9:20～9:50 9:50～12:00 12:00～13:00 13:00～15:00 15:00～15:10 15:10～15:55頃 | R266: 受付 オリエンテーション ①防火管理の意義と制度の概要（120分） 昼休憩 受付［※科目免除者のみ］ ②火気取扱いの基本知識と出火防止対策（120分） 休憩 ③施設・設備の維持管理(90分） 事務連絡等 受付 ④自衛消防（130分） 昼休憩 ⑤防火管理の進め方と消防計画（120分） 休憩 効果測定（20分）、修了証交付、事務連絡等
J287: 甲新14 | M287: 【第１日目】 10:20～10:50 10:50～11:00 11:00～13:00 13:00～14:00 13:50～14:00 14:00～16:00 16:00～16:10 16:10～17:40 17:40～17:50頃 【第２日目】 9:20～9:50 9:50～12:00 12:00～13:00 13:00～15:00 15:00～15:10 15:10～15:55頃 | R287: 受付 オリエンテーション ①防火管理の意義と制度の概要（120分） 昼休憩 受付［※科目免除者のみ］ ②火気取扱いの基本知識と出火防止対策（120分） 休憩 ③施設・設備の維持管理(90分） 事務連絡等 受付 ④自衛消防（130分） 昼休憩 ⑤防火管理の進め方と消防計画（120分） 休憩 効果測定（20分）、修了証交付、事務連絡等
J308: 甲新15 | M308: 【第１日目】 9:10～9：25 9:25～ 9：30 9:30～11：30 11:30～12:20 12:10～12:20 12:20～14:20 14:20～14:30 14:30～16:00 16:00～16:10頃 【第２日目】 9:10～9：30 9:30～11:40 11:40～12:40 12:40～14:40 14:40～14:50 14:50～15:35頃 | R308: 受付 オリエンテーション ①防火管理の意義と制度の概要（120分） 昼休憩 受付［※科目免除者のみ］ ②火気取扱いの基本知識と出火防止対策（120分） 休憩 ③施設・設備の維持管理（90分） 事務連絡等 受付 ④自衛消防（130分） 昼休憩 ⑤防火管理の進め方と消防計画（120分） 休憩 効果測定（20分）、修了証交付、事務連絡等
J329: 甲新16 | M329: 【第１日目】 9:40～10:00 10:00～10:10 10:10～12:10 12:10～13:10 13:00～13:10 13:10～15:10 15:10～15:20 15:20～16:50 16:50～17:00頃 【第２日目】 9:20～9:50 9:50～12:00 12:00～13:00 13:00～15:00 15:00～15:10 15:10～15:55頃 | R329: 受付 オリエンテーション ①防火管理の意義と制度の概要（120分） 昼休憩 受付［※科目免除者のみ］ ②火気取扱いの基本知識と出火防止対策（120分） 休憩 ③施設・設備の維持管理（90分） 事務連絡等 受付 ④自衛消防（130分） 昼休憩 ⑤防火管理の進め方と消防計画（120分） 休憩 効果測定（20分）、修了証交付、事務連絡等
F350: 甲乙同時 | J350: 甲乙10 | M350: 【第１日目】 9:00～9:25 9:25～9:30 9:30～10:30 10:30～10:40 10:40～11:50 11:50～12:40 12:40～13:30 13:30～13:40 13:40～14:30 14:30～14:40 14:40～15:40 15:40～15:50 15:50～16:35頃 【第２日目】 9:00～9:20 9:20～10:20 10:20～10:30 10:30～11:40 11:40～12:30 12:30～13:20 13:20～13:30 13:30～14:20 14:20～14:30 14:30～15:30 15:30～15:40 15:40～16:25頃 | R350: 受付 オリエンテーション ①防火管理の意義と制度の概要（60分） 休憩・受付［※科目免除者のみ］ ②火気取扱いの基本知識と出火防止対策（70分） （危険物管理、地震対策を含む。) 昼休憩 ③施設・設備の維持管理Ⅰ（50分） 休憩 ④自衛消防Ⅰ（50分） 休憩 ⑤防火管理の進め方と消防計画Ⅰ（60分） 休憩・【甲種受講者の第１日目終了】 効果測定（20分）、修了証交付、事務連絡等 【乙種受講者のみ】 ※甲種受講者のみ 受付 ⑥甲種防火管理者の責務と留意事項（60分） 休憩・受付［※科目免除者のみ］ ⑦火災事例研究と火気管理（70分） 昼休憩 ⑧施設・設備の維持管理Ⅱ（50分） 休憩 ⑨自衛消防Ⅱ（50分） 休憩 ⑩防火管理の進め方と消防計画Ⅱ（60分） 休憩 効果測定（20分）、修了証交付、事務連絡等
J382: 甲乙11 | M382: 【第１日目】 9:20～9:45 9:45～9:50 9:50～10:50 10:50～11:00 11:00～12:10 12:10～13:00 13:00～13:50 13:50～14:00 14:00～14:50 14:50～15:00 15:00～16:00 16:00～16:10 16:10～16:55頃 【第２日目】 9:20～9:40 9:40～10:40 10:40～10:50 10:50～12:00 12:00～12:50 12:50～13:40 13:40～13:50 13:50～14:40 14:40～14:50 14:50～15:50 15:50～16:00 16:00～16：45頃 | R382: 受付 オリエンテーション ①防火管理の意義と制度の概要（60分） 休憩・受付［※科目免除者のみ］ ②火気取扱いの基本知識と出火防止対策（70分） （危険物管理、地震対策を含む。) 昼休憩 ③施設・設備の維持管理Ⅰ（50分） 休憩 ④自衛消防Ⅰ（50分） 休憩 ⑤防火管理の進め方と消防計画Ⅰ（60分） 休憩・【甲種受講者の第１日目終了】 効果測定（20分）、修了証交付、事務連絡等 【乙種受講者のみ】 ※甲種受講者のみ 受付 ⑥甲種防火管理者の責務と留意事項（60分） 休憩・受付［※科目免除者のみ］ ⑦火災事例研究と火気管理（70分） 昼休憩 ⑧施設・設備の維持管理Ⅱ（50分） 休憩 ⑨自衛消防Ⅱ（50分） 休憩 ⑩防火管理の進め方と消防計画Ⅱ（60分） 休憩 効果測定（20分）、修了証交付、事務連絡等
J414: 甲乙12 | M414: 【第１日目】 9:40～10:05 10:05～10:10 10:10～11:10 11:10～11:20 11:20～12:30 12:30～13:20 13:20～14:10 14:10～14:20 14:20～15:10 15:10～15:20 15:20～16:20 16:20～16:30 16:30～17:15頃 【第２日目】 9:40～10:00 10:00～11:00 11:00～11:10 11:10～12:20 12:20～13:10 13:10～14:00 14:00～14:10 14:10～15:00 15:00～15:10 15:10～16:10 16:10～16:20 16:20～17:05頃 | R414: 受付 オリエンテーション ①防火管理の意義と制度の概要（60分） 休憩・受付［※科目免除者のみ］ ②火気取扱いの基本知識と出火防止対策（70分） （危険物管理、地震対策を含む。) 昼休憩 ③施設・設備の維持管理Ⅰ（50分） 休憩 ④自衛消防Ⅰ（50分） 休憩 ⑤防火管理の進め方と消防計画Ⅰ（60分） 休憩・【甲種受講者の第１日目終了】 効果測定（20分）、修了証交付、事務連絡等 【乙種受講者のみ】 ※甲種受講者のみ 受付 ⑥甲種防火管理者の責務と留意事項（60分） 休憩・受付［※科目免除者のみ］ ⑦火災事例研究と火気管理（70分） 昼休憩 ⑧施設・設備の維持管理Ⅱ（50分） 休憩 ⑨自衛消防Ⅱ（50分） 休憩 ⑩防火管理の進め方と消防計画Ⅱ（60分） 休憩 効果測定（20分）、修了証交付、事務連絡等
J446: 甲乙13 | M446: 【第１日目】 10:00～10:25 10:25～10:30 10:30～11:30 11:30～11:40 11:40～12:50 12:50～13:40 13:40～14:30 14:30～14:40 14:40～15:30 15:30～15:40 15:40～16:40 16:40～16:50 16:50～17:35頃 【第２日目】 10:00～10:20 10:20～11:20 11:20～11:30 11:30～12:40 12:40～13:30 13:30～14:20 14:20～14:30 14:30～15:20 15:20～15:30 15:30～16:30 16:30～16:40 16:40～17:25頃 | R446: 受付 オリエンテーション ①防火管理の意義と制度の概要（60分） 休憩・受付［※科目免除者のみ］ ②火気取扱いの基本知識と出火防止対策（70分） （危険物管理、地震対策を含む。) 昼休憩 ③施設・設備の維持管理Ⅰ（50分） 休憩 ④自衛消防Ⅰ（50分） 休憩 ⑤防火管理の進め方と消防計画Ⅰ（60分） 休憩・【甲種受講者の第１日目終了】 効果測定（20分）、修了証交付、事務連絡等 【乙種受講者のみ】 ※甲種受講者のみ 受付 ⑥甲種防火管理者の責務と留意事項（60分） 休憩・受付［※科目免除者のみ］ ⑦火災事例研究と火気管理（70分） 昼休憩 ⑧施設・設備の維持管理Ⅱ（50分） 休憩 ⑨自衛消防Ⅱ（50分） 休憩 ⑩防火管理の進め方と消防計画Ⅱ（60分） 休憩 効果測定（20分）、修了証交付、事務連絡等
J478: 甲乙14 | M478: 【第１日目】 10:20～10:45 10:45～10:50 10:50～11:50 11:50～12:00 12:00～13:10 13:10～14:00 14:00～14:50 14:50～15:00 15:00～15:50 15:50～16:00 16:00～17:00 17:00～17:10 17:10～17:55頃 【第２日目】 10:20～10:40 10:40～11:40 11:40～11:50 11:50～13:00 13:00～13:50 13:50～14:40 14:40～14:50 14:50～15:40 15:40～15:50 15:50～16:50 16:50～17:00 17:00～17:45頃 | R478: 受付 オリエンテーション ①防火管理の意義と制度の概要（60分） 休憩・受付［※科目免除者のみ］ ②火気取扱いの基本知識と出火防止対策（70分） （危険物管理、地震対策を含む。) 昼休憩 ③施設・設備の維持管理Ⅰ（50分） 休憩 ④自衛消防Ⅰ（50分） 休憩 ⑤防火管理の進め方と消防計画Ⅰ（60分） 休憩・【甲種受講者の第１日目終了】 効果測定（20分）、修了証交付、事務連絡等 【乙種受講者のみ】 ※甲種受講者のみ 受付 ⑥甲種防火管理者の責務と留意事項（60分） 休憩・受付［※科目免除者のみ］ ⑦火災事例研究と火気管理（70分） 昼休憩 ⑧施設・設備の維持管理Ⅱ（50分） 休憩 ⑨自衛消防Ⅱ（50分） 休憩 ⑩防火管理の進め方と消防計画Ⅱ（60分） 休憩 効果測定（20分）、修了証交付、事務連絡等
J510: 甲乙15 | M510: 【第１日目】 10:00～10:25 10:25～10:30 10:30～11:30 11:30～11:40 11:40～12:50 12:50～13:40 13:40～14:30 14:30～14:40 14:40～15:30 15:30～15:40 15:40～16:40 16:40～16:50 16:50～17:35頃 【第２日目】 9:20～9:40 9:40～10:40 10:40～10:50 10:50～12:00 12:00～12:50 12:50～13:40 13:40～13:50 13:50～14:40 14:40～14:50 14:50～15:50 15:50～16:00 16:00～16：45頃 | R510: 受付 オリエンテーション ①防火管理の意義と制度の概要（60分） 休憩・受付［※科目免除者のみ］ ②火気取扱いの基本知識と出火防止対策（70分） （危険物管理、地震対策を含む。) 昼休憩 ③施設・設備の維持管理Ⅰ（50分） 休憩 ④自衛消防Ⅰ（50分） 休憩 ⑤防火管理の進め方と消防計画Ⅰ（60分） 休憩・【甲種受講者の第１日目終了】 効果測定（20分）、修了証交付、事務連絡等 【乙種受講者のみ】 ※甲種受講者のみ 受付 ⑥甲種防火管理者の責務と留意事項（60分） 休憩・受付［※科目免除者のみ］ ⑦火災事例研究と火気管理（70分） 昼休憩 ⑧施設・設備の維持管理Ⅱ（50分） 休憩 ⑨自衛消防Ⅱ（50分） 休憩 ⑩防火管理の進め方と消防計画Ⅱ（60分） 休憩 効果測定（20分）、修了証交付、事務連絡等
J542: 甲乙16 | M542: 【第１日目】 10:00～10:25 10:25～10:30 10:30～11:30 11:30～11:40 11:40～12:50 12:50～13:40 13:40～14:30 14:30～14:40 14:40～15:30 15:30～15:40 15:40～16:40 16:40～16:50 16:50～17:35頃 【第２日目】 9:20～9:40 9:40～10:40 10:40～10:50 10:50～12:00 12:00～12:50 12:50～13:40 13:40～13:50 13:50～14:40 14:40～14:50 14:50～15:50 15:50～16:00 16:00～16:45頃 | R542: 受付 オリエンテーション ①防火管理の意義と制度の概要（60分） 休憩・受付［※科目免除者のみ］ ②火気取扱いの基本知識と出火防止対策（70分） （危険物管理、地震対策を含む。) 昼休憩 ③施設・設備の維持管理Ⅰ（50分） 休憩 ④自衛消防Ⅰ（50分） 休憩 ⑤防火管理の進め方と消防計画Ⅰ（60分） 休憩・【甲種受講者の第１日目終了】 効果測定（20分）、修了証交付、事務連絡 【乙種受講者のみ】 ※甲種受講者のみ 受付 ⑥甲種防火管理者の責務と留意事項（60分） 休憩・受付［※科目免除者のみ］ ⑦火災事例研究と火気管理（70分） 昼休憩 ⑧施設・設備の維持管理Ⅱ（50分） 休憩 ⑨自衛消防Ⅱ（50分） 休憩 ⑩防火管理の進め方と消防計画Ⅱ（60分） 休憩 効果測定（20分）、修了証交付、事務連絡
J576: 甲乙6 | M576: 【第１日目】 9:00～9:30 9:30～9:40 9:40～10:40 10:40～10:50 10:50～12:00 12:00～13:00 13:00～13:50 13:50～14:00 14:00～14:50 14:50～15:00 15:00～16:00 16:00～16:10 16:10～16:55頃 【第２日目】 9:00～9:30 9:30～10:30 10:30～10:40 10:40～11:10 11:10～11:40 11:40～12:30 12:30～13:30 13:30～15:30 15:30～15:40 15:40～16:25頃 | R576: 受付 オリエンテーション ①防火管理の意義と制度の概要（60分） 休憩・受付［※科目免除者のみ］ ②火気取扱いの基本知識と出火防止対策（70分） （危険物管理、地震対策を含む。) 昼休憩 ③施設・設備の維持管理Ⅰ（50分） 休憩 ④自衛消防Ⅰ（50分） 休憩 ⑤防火管理の進め方と消防計画Ⅰ（60分） 休憩・【甲種受講者の第１日目終了】 効果測定（20分）、修了証交付、事務連絡等【乙種受講者のみ】 ※甲種受講者のみ 受付 ⑥甲種防火管理者の責務と留意事項（60分） 休憩・受付［※科目免除者のみ］ ⑦施設・設備の維持管理Ⅱ（30分） ⑧自衛消防Ⅱ（30分） ⑨防火管理の進め方と消防計画Ⅱ（50分） 昼休憩 ⑩自衛消防Ⅲ（実技含む）（120分） 休憩 効果測定（20分）、修了証交付、事務連絡等
J608: 甲乙7 | M608: 【第１日目】 9:10～9:40 9:40～9:50 9:50～10:50 10:50～11:00 11:00～12:10 12:10～13:00 13:00～13:50 13:50～14:00 14:00～14:50 14:50～15:00 15:00～16:00 16:00～16:10 16:10～16:25 16:25～16:40頃 【第２日目】 9:00～9:20 9:20～10:20 10:20～10:30 10:30～11:40 11:40～12:30 12:30～13:20 13:20～13:25 13:25～14:15 14:15～14:20 14:20～15:20 15:20～15:40 15:40～15:55頃 | R608: 受付 オリエンテーション ①防火管理の意義と制度の概要（60分） 休憩・受付［※科目免除者のみ］ ②火気取扱いの基本知識と出火防止対策（70分） （危険物管理、地震対策を含む。) 昼休憩 ③施設・設備の維持管理Ⅰ（50分） 休憩 ④自衛消防Ⅰ（50分） 休憩 ⑤防火管理の進め方と消防計画Ⅰ（60分） 休憩・【甲種受講者の第１日目終了】 効果測定【乙種受講者のみ】 修了証交付、事務連絡等【乙種受講者のみ】 ※甲種受講者のみ 受付 ⑥甲種防火管理者の責務と留意事項（60分） 休憩・受付［※科目免除者のみ］ ⑦火災事例研究と火気管理（70分） 昼休憩 ⑧施設・設備の維持管理Ⅱ（50分） 休憩 ⑨自衛消防Ⅱ（50分） 休憩 ⑩防火管理の進め方と消防計画Ⅱ（60分） 休憩 効果測定（20分）、修了証交付、事務連絡等 | AH608: ★甲乙7については、削除しました。
J640: 甲乙8 | M640: 【第１日目】 9:10～9:35 9:35～9:40 9:40～10:40 10:40～10:50 10:50～12:00 12:00～13:00 13:00～13:50 13:50～14:00 14:00～14:50 14:50～15:00 15:00～16:00 16:00～16:10 16:10～16:25 16:25～16:40頃 【第２日目】 9:10～9:30 9:30～10:30 10:30～10:40 10:40～11:50 11:50～12:50 12:50～13:40 13:40～13:50 13:50～14:40 14:40～14:50 14:50～15:50 15:50～16:00 16:00～16:20 16:20～16:35頃 | R640: 受付 オリエンテーション ①防火管理の意義と制度の概要（60分） 休憩・受付［※科目免除者のみ］ ②火気取扱いの基本知識と出火防止対策（70分） （危険物管理、地震対策を含む。) 昼休憩 ③施設・設備の維持管理Ⅰ（50分） 休憩 ④自衛消防Ⅰ（50分） 休憩 ⑤防火管理の進め方と消防計画Ⅰ（60分） 休憩・【甲種受講者の第１日目終了】 効果測定【乙種受講者のみ】 修了証交付、事務連絡等【乙種受講者のみ】 ※甲種受講者のみ 受付 ⑥甲種防火管理者の責務と留意事項（60分） 休憩・受付［※科目免除者のみ］ ⑦火災事例研究と火気管理（70分） 昼休憩 ⑧施設・設備の維持管理Ⅱ（50分） 休憩 ⑨自衛消防Ⅱ（50分） 休憩 ⑩防火管理の進め方と消防計画Ⅱ（60分） 休憩 効果測定 修了証交付、事務連絡等
J674: 甲乙9 | M674: 【第１日目】 10:10～10:35 10:35～10:40 10:40～11:40 11:40～11:50 11:50～13:00 13:00～13:50 13:50～14:40 14:40～14:50 14:50～15:40 15:40～15:50 15:50～16:50 16:50～17:00 17:00～17:15 17:15～17:30頃 【第２日目】 10:10～10:30 10:30～11:30 11:30～11:40 11:40～12:40 12:40～13:30 13:30～14:20 14:20～14:30 14:30～15:20 15:20～15:30 15:30～16:30 16:30～16:40 16:40～17:00 17:00～17:15頃 | R674: 受付 オリエンテーション ①防火管理の意義と制度の概要（60分） 休憩・受付［※科目免除者のみ］ ②火気取扱いの基本知識と出火防止対策（70分） （危険物管理、地震対策を含む。) 昼休憩 ③施設・設備の維持管理Ⅰ（50分） 休憩 ④自衛消防Ⅰ（50分） 休憩 ⑤防火管理の進め方と消防計画Ⅰ（60分） 休憩・【甲種受講者の第１日目終了】 効果測定【乙種受講者のみ】 修了証交付、事務連絡等【乙種受講者のみ】 ※甲種受講者のみ 受付 ⑥防火管理の意義と制度の概要（60分） 休憩・受付［※科目免除者のみ］ ⑦火災事例研究と火気管理（60分） 昼休憩 ⑧施設・設備の維持管理Ⅱ（50分） 休憩 ⑨自衛消防Ⅱ（50分） 休憩 ⑩防火管理の進め方と消防計画Ⅱ（60分） 休憩 効果測定 修了証交付、事務連絡等
F708: 乙種 | J708: 乙1 | M708: 9:00～9:30 9:30～9:40 9:40～10:40 10:40～10:50 10:50～12:00 12:00～13:00 13:00～13:50 13:50～14:00 14:00～14:50 14:50～15:00 15:00～16:00 16:00～16:10 16:10～16:55頃 | R708: 受付 オリエンテーション ①防火管理の意義と制度の概要（60分） 休憩 ②火気取扱いの基本知識と出火防止対策（70分） 昼休憩 ③施設・設備の維持管理（50分） 休憩 ④自衛消防（50分） 休憩 ⑤防火管理の進め方と消防計画（60分） 休憩 効果測定（20分）、修了証交付、事務連絡等
J725: 乙2 | M725: 9:20～9：50 9:50～10：00 10:00～11:00 11:00～11:10 11:10～12:20 12:20～13:20 13:20～14:10 14:10～14:20 14:20～15:10 15:10～15:20 15:20～16:20 16:20～16:30 16:30～17:15頃 | R725: 受付 オリエンテーション ①防火管理の意義と制度の概要（60分） 休憩 ②火気取扱いの基本知識と出火防止対策（70分） 昼休憩 ③施設・設備の維持管理（50分） 休憩 ④自衛消防（50分） 休憩 ⑤防火管理の進め方と消防計画（60分） 休憩 効果測定（20分）、修了証交付、事務連絡等
F742: 甲種再講習 | J742: 甲再1 | M742: 9:00～9:30 9:30～9:40 9:40～10:40 10:40～10:50 10:50～11:50 11:50～12:10頃 | R742: 受付 オリエンテーション ①最近における法令改正概要（60分） 休憩 ②火災事例と防火管理（60分） 修了証交付、事務連絡等
J749: 甲再2 | M749: 13:00～13:30 13:30～13:40 13:40～14:40 14:40～14:50 14:50～15:50 15:50～16:10頃 | R749: 受付 オリエンテーション ①最近における法令改正概要（60分） 休憩 ②火災事例と防火管理（60分） 修了証交付、事務連絡等
J756: 甲再3 | M756: 13:30～14:00 14:00～14:10 14:10～15:10 15:10～15:20 15:20～16:20 16:20～16:40頃 | R756: 受付 オリエンテーション ①最近における法令改正概要（60分） 休憩 ②火災事例と防火管理（60分） 修了証交付、事務連絡等
J763: 甲再4 | M763: 13:30～14:20 14:20～14:30 14:30～15:30 15:30～15:40頃 | R763: ①最近における法令改正概要（50分） 休憩 ②火災事例と防火管理（60分） アンケート
J770: 甲再5 | M770: 8:30～9:00 9:00～9:05 9:05～10:05 10:05～10:15 10:15～11:15 11:15～11:35頃 | R770: 受付 オリエンテーション ①最近における法令改正概要（60分） 休憩 ②火災事例と防火管理（60分） 修了証交付、事務連絡等
B777: 防災 | F777: 防災新規 | J777: 防災新1 | M777: 9:00～9:30 9:30～9:40 9:40～11:10 11:10～11:20 11:20～12:00 12:00～13:00 13:00～14:20 14:20～14:30 14:30～15:30 15:30～15:40 15:40～16:25頃 | R777: 受付 オリエンテーション ①防災管理の意義と制度の概要（90分） 休憩・受付［※科目免除者のみ］ ②施設・設備の維持管理（40分） 昼休憩 ③防災管理上の教育・訓練（80分） 休憩 ④防災管理の進め方と消防計画（60分） 休憩 効果測定（20分）、修了証交付、事務連絡等
J791: 防災新2 | M791: 9:10～9:40 9:40～9:50 9:50～11:20 11:20～11:30 11:30～12:10 12:10～13:10 13:10～14:30 14:30～14:40 14:40～15:40 15:40～15:50 15:50～16:35頃 | R791: 受付 オリエンテーション ①防災管理の意義と制度の概要（90分） 休憩・受付［※科目免除者のみ］ ②施設・設備の維持管理（40分） 昼休憩 ③防災管理上の教育・訓練（80分） 休憩 ④防災管理の進め方と消防計画（60分） 休憩 効果測定（20分）、修了証交付、事務連絡等
J805: 防災新3 | M805: 9:20～9:50 9:50～10:00 10:00～11:30 11:30～11:40 11:40～12:20 12:20～13:20 13:20～14:40 14:40～14:50 14:50～15:50 15:50～16:00 16:00～16:45頃 | R805: 受付 オリエンテーション ①防災管理の意義と制度の概要（90分） 休憩・受付［※科目免除者のみ］ ②施設・設備の維持管理（40分） 昼休憩 ③防災管理上の教育・訓練（80分） 休憩 ④防災管理の進め方と消防計画（60分） 休憩 効果測定（20分）、修了証交付、事務連絡等
J819: 防災新4 | M819: 9:40～10:10 10:10～10:20 10:20～11:50 11:50～12:00 12:00～12:40 12:40～13:40 13:40～15:00 15:00～15:10 15:10～16:10 16:10～16:20 16:20～17:05頃 | R819: 受付 オリエンテーション ①防災管理の意義と制度の概要（90分） 休憩・受付［※科目免除者のみ］ ②施設・設備の維持管理（40分） 昼休憩 ③防災管理上の教育・訓練（80分） 休憩 ④防災管理の進め方と消防計画（60分） 休憩 効果測定（20分）、修了証交付、事務連絡等
J833: 防災新5 | M833: 10:20～10:50 10:50～11:00 11:00～12:30 12:30～13:30 13:20～13:30 13:30～14:10 14:10～14:20 14:20～15:40 15:40～15:50 15:50～16:50 16:50～17:00 17:00～17:45頃 | R833: 受付 オリエンテーション ①防災管理の意義と制度の概要（90分） 昼休憩 休憩・受付［※科目免除者のみ］ ②施設・設備の維持管理（40分） 休憩 ③防災管理上の教育・訓練（80分） 休憩 ④防災管理の進め方と消防計画（60分） 休憩 効果測定（20分）、修了証交付、事務連絡等
B847: 併催 | F847: 併催新規 | J847: 併催新1 | M847: 【第１日目】 9:00～9:30 9:30～9:40 9:40～12:10 12:10～13:00 12:50～13:00 13:00～15:00 15:00～15:10 15:10～16:40 16:40～16:50頃 【第２日目】 9:00～9:30 9:30～12:00 12:00～13:00 13:00～15:30 15:30～15:40 15:40～16:25頃 | R847: 受付 オリエンテーション ①防火・防災管理の意義と制度の概要（150分） 昼休憩 ［※②③の両科目免除者は、第１日目終了］ 受付［※①の科目免除者のみ］ ②火気取扱いの基本知識と出火防止対策（120分） 休憩・受付［※①②の両科目免除者のみ］ ［※③の科目免除者は、第１日目終了］ ③施設・設備等の維持管理（90分） 事務連絡等 受付 ④教育・訓練（150分） 昼休憩 ⑤防火・防災管理の進め方と消防計画（150分） 休憩 効果測定（20分）、修了証交付、事務連絡等
J870: 併催新2 | M870: 【第１日目】 9:20～9:50 9:50～10:00 10:00～12:30 12:30～13:20 13:10～13:20 13:20～15:20 15:20～15:30 15:30～17:00 17:00～17:10頃 【第２日目】 9:20～9:50 9:50～12:20 12:20～13:20 13:20～15:50 15:50～16:00 16:00～16:45頃 | R870: 受付 オリエンテーション ①防火・防災管理の意義と制度の概要（150分） 昼休憩 ［※②③の両科目免除者は、第１日目終了］ 受付［※①の科目免除者のみ］ ②火気取扱いの基本知識と出火防止対策（120分） 休憩・受付［※①②の両科目免除者のみ］ ［※③の科目免除者は、第１日目終了］ ③施設・設備等の維持管理（90分） 事務連絡等 受付 ④教育・訓練（150分） 昼休憩 ⑤防火・防災管理の進め方と消防計画（150分） 休憩 効果測定（20分）、修了証交付、事務連絡等
J893: 併催新3 | M893: 【第１日目】 9:40～10:10 10:10～10:20 10:20～12:50 12:50～13:40 13:30～13:40 13:40～15:40 15:40～15:50 15:50～17:20 17:20～17:30頃 【第２日目】 9:40～10:10 10:10～12:40 12:40～13:40 13:40～16:10 16:10～16:20 16:20～17:05頃 | R893: 受付 オリエンテーション ①防火・防災管理の意義と制度の概要（150分） 昼休憩 ［※②③の両科目免除者は、第１日目終了］ 受付［※①の科目免除者のみ］ ②火気取扱いの基本知識と出火防止対策（120分） 休憩・受付［※①②の両科目免除者のみ］ ［※③の科目免除者は、第１日目終了］ ③施設・設備等の維持管理（90分） 事務連絡等 受付 ④教育・訓練（150分） 昼休憩 ⑤防火・防災管理の進め方と消防計画（150分） 休憩 効果測定（20分）、修了証交付、事務連絡等
J916: 併催新4 | M916: 【第１日目】 10:00～10:30 10:30～10:40 10:40～13:10 13:10～14:00 13:50～14:00 14:00～16:00 16:00～16:10 16:10～17:40 17:40～17:50頃 【第２日目】 10:00～10:30 10:30～13:00 13:00～14:00 14:00～16:30 16:30～16:40 16:40～17:25頃 | R916: 受付 オリエンテーション ①防火・防災管理の意義と制度の概要（150分） 昼休憩 ［※②③の両科目免除者は、第１日目終了］ 受付［※①の科目免除者のみ］ ②火気取扱いの基本知識と出火防止対策（120分） 休憩・受付［※①②の両科目免除者のみ］ ［※③の科目免除者は、第１日目終了］ ③施設・設備等の維持管理（90分） 事務連絡等 受付 ④教育・訓練（150分） 昼休憩 ⑤防火・防災管理の進め方と消防計画（150分） 休憩 効果測定（20分）、修了証交付、事務連絡等
J939: 併催新5 | M939: 【第１日目】 10:20～10:50 10:50～11:00 11:00～13:30 13:30～14:20 14:10～14:20 14:20～16:20 16:20～16:30 16:30～18:00 18:00～18:10頃 【第２日目】 10:20～10:50 10:50～13:20 13:20～14:20 14:20～16:50 16:50～17:00 17:00～17:45頃 | R939: 受付 オリエンテーション ①防火・防災管理の意義と制度の概要（150分） 昼休憩 ［※②③の両科目免除者は、第１日目終了］ 受付［※①の科目免除者のみ］ ②火気取扱いの基本知識と出火防止対策（120分） 休憩・受付［※①②の両科目免除者のみ］ ［※③の科目免除者は、第１日目終了］ ③施設・設備等の維持管理（90分） 事務連絡等 受付 ④教育・訓練（150分） 昼休憩 ⑤防火・防災管理の進め方と消防計画（150分） 休憩 効果測定（20分）、修了証交付、事務連絡等
J962: 併催新6 | M962: 【第１日目】 8:50～9:10 9:10～9:20 9:20～11:50 11:50～12:40 12:30～12:40 12:40～14:40 14:40～14:50 14:50～16:50 16:50～17:00頃 【第２日目】 8:50～9:10 9:10～12:10 12:10～13:10 13:10～15:10 15:10～15:20 15:20～16:05頃 | R962: 受付 オリエンテーション ①防火・防災管理の意義と制度の概要（150分） 昼休憩 ［※②③の両科目免除者は、第１日目終了］ 受付［※①の科目免除者のみ］ ②火気取扱いの基本知識と出火防止対策（120分） 休憩・受付［※①②の両科目免除者のみ］ ［※③の科目免除者は、第１日目終了］ ③施設・設備等の維持管理（120分） 事務連絡等 受付 ④防火・防災管理の進め方と消防計画（180分） 昼休憩 ⑤教育・訓練（実技含む）（120分） 休憩 効果測定（20分）、修了証交付、事務連絡等
J985: 併催新7 | M985: 【第１日目】 9:10～9:40 9:40～9:50 9:50～12:20 12:20～13:10 13:00～13:10 13:10～15:10 15:10～15:20 15:20～16:50 16:50～17:00頃 【第２日目】 9:10～9:40 9:40～12:10 12:10～13:10 13:10～15:40 15:40～15:50 15:50～16:35頃 | R985: 受付 オリエンテーション ①防火・防災管理の意義と制度の概要(150分） 昼休憩 ［※②③の両科目免除者は、第１日目終了］ 受付［※①の科目免除者のみ］ ②火気取扱いの基本知識と出火防止対策（120分） 休憩・受付［※①②の両科目免除者のみ］ ［※③の科目免除者は、第１日目終了］ ③施設・設備等の維持管理（90分） 事務連絡等 受付 ④教育・訓練（150分） 昼休憩 ⑤防火・防災管理の進め方と消防計画（150分） 休憩 効果測定（20分）、修了証交付、事務連絡等
J1008: 併催新8 | M1008: 【第１日目】 9:40～10:00 10:00～10:10 10:10～12:40 12:40～13:40 13:30～13:40 13:40～15:40 15:40～15:50 15:50～17:20 17:20～17:30頃 【第２日目】 9:40～10:00 10:00～12:30 12:30～13:30 13:30～16:00 16:00～16:10 16:10～16:55頃 | R1008: 受付 オリエンテーション ①防火・防災管理の意義と制度の概要(150分） 昼休憩 ［※②③の両科目免除者は、第１日目終了］ 受付［※①の科目免除者のみ］ ②火気取扱いの基本知識と出火防止対策（120分） 休憩・受付［※①②の両科目免除者のみ］ ［※③の科目免除者は、第１日目終了］ ③施設・設備等の維持管理（90分） 事務連絡等 受付 ④教育・訓練（150分） 昼休憩 ⑤防火・防災管理の進め方と消防計画（150分） 休憩 効果測定（20分）、修了証交付、事務連絡等
J1031: 併催新9 | M1031: 【第１日目】 12:10～12:40 12:40～12:50 12:50～15:20 15:20～15:30 15:30～17:30 17:30～17:40 17:40～19:10 19:10～19:20頃 【第２日目】 9:00～9:30 9:30～12:00 12:00～13:00 13:00～15:30 15:30～15:40 15:40～16:25頃 | R1031: 受付 オリエンテーション ①防火・防災管理の意義と制度の概要（150分） 休憩・受付 ［※②③の両科目免除者は、第１日目終了］ ［※①の科目免除者のみ］ ②火気取扱いの基本知識と出火防止対策（120分） 休憩・受付［※①②の両科目免除者のみ］ ［※③の科目免除者は、第１日目終了］ ③施設・設備等の維持管理（90分） 事務連絡等 受付 ④教育・訓練（150分） 昼休憩 ⑤防火・防災管理の進め方と消防計画（150分） 休憩 効果測定（20分）、修了証交付、事務連絡等
J1054: 併催新10 | M1054: 【第１日目】 9:20～9:45 9:45～9:50 9:50～12:20 12:20～13:10 13:00～13:10 13:10～15:10 15:10～15:20 15:20～16:50 16:50～17:00頃 【第２日目】 9:20～9:40 9:40～12:10 12:10～13:00 13:00～15:30 15:40～16:25頃 | R1054: 受付 オリエンテーション ①防火・防災管理の意義と制度の概要（150分） 昼休憩 受付 ［※科目免除者のみ］ ②火気取扱いの基本知識と出火防止対策（120分） 受付 ［※科目免除者のみ］ ③施設・設備等の維持管理（90分） 事務連絡等 受付 ④教育・訓練（150分） 昼休憩 ⑤防火・防災管理の進め方と消防計画（150分） 効果測定（20分）、修了証交付、事務連絡等
J1077: 併催新11 | M1077: 【第１日目】 10:00～10:30 10:30～10:40 10:40～13:10 13:10～14:00 13:50～14:00 14:00～16:00 16:00～16:10 16:10～17:40 17:40～17:50頃 【第２日目】 9:20～9:50 9:50～12:20 12:20～13:20 13:20～15:50 15:50～16:00 16:00～16:45頃 | R1077: 受付 オリエンテーション ①防火・防災管理の意義と制度の概要（150分） 昼休憩 ［※②③の両科目免除者は、第１日目終了］ 受付［※①の科目免除者のみ］ ②火気取扱いの基本知識と出火防止対策（120分） 休憩・受付［※①②の両科目免除者のみ］ ［※③の科目免除者は、第１日目終了］ ③施設・設備等の維持管理（90分） 事務連絡等 受付 ④教育・訓練（150分） 昼休憩 ⑤防火・防災管理の進め方と消防計画（150分） 休憩 効果測定（20分）、修了証交付、事務連絡等
J1100: 併催新12 | M1100: 【第１日目】 10:20～10:50 10:50～11:00 11:00～13:30 13:30～14:20 14:10～14:20 14:20～16:20 16:20～16:30 16:30～18:00 18:00～18:10頃 【第２日目】 9:20～9:50 9:50～12:20 12:20～13:20 13:20～15:50 15:50～16:00 16:00～16:45頃 | R1100: 受付 オリエンテーション ①防火・防災管理の意義と制度の概要（150分） 昼休憩 ［※②③の両科目免除者は、第１日目終了］ 受付［※①の科目免除者のみ］ ②火気取扱いの基本知識と出火防止対策（120分） 休憩・受付［※①②の両科目免除者のみ］ ［※③の科目免除者は、第１日目終了］ ③施設・設備等の維持管理（90分） 事務連絡等 受付 ④教育・訓練（150分） 昼休憩 ⑤防火・防災管理の進め方と消防計画（150分） 休憩 効果測定（20分）、修了証交付、事務連絡等
J1123: 併催新13 | M1123: 【第１日目】 9:25～9:45 9:45～9:50 9:50～12:20 12:20～13:10 13:00～13:10 13:10～15:10 15:10～15:20 15:20～16:50 16:50～17:00頃 【第２日目】 9:00～9:30 9:30～12:00 12:00～13:00 13:00～15:30 15:30～15:40 15:40～16:15頃 | R1123: 受付 オリエンテーション ①防火・防災管理の意義と制度の概要（150分） 昼休憩 ［※②③の両科目免除者は、第１日目終了］ 受付［※①の科目免除者のみ］ ②火気取扱いの基本知識と出火防止対策（120分） 休憩・受付［※①②の両科目免除者のみ］ ［※③の科目免除者は、第１日目終了］ ③施設・設備等の維持管理（90分） 事務連絡等 受付 ④教育・訓練（150分） 昼休憩 ⑤防火・防災管理の進め方と消防計画（150分） 休憩 効果測定（20分）、修了証交付、事務連絡等
J1146: 併催新14 | M1146: 【第１日目】 9:20～9:50 9:50～10:00 10:00～12:30 12:30～13:20 13:10～13:20 13:20～15:20 15:20～15:30 15:30～17:00 17:00～17:10 17:10～19:40 19:40～19：50頃 【第２日目】 9:00～9:30 9:30～12:00 12:00～12:10 12:10～12:45頃 | R1146: 受付 オリエンテーション ①防火・防災管理の意義と制度の概要（150分） 昼休憩 ［※②③の両科目免除者は、第１日目終了］ 受付［※①の科目免除者のみ］ ②火気取扱いの基本知識と出火防止対策（120分） 休憩・受付［※①②の両科目免除者のみ］ ［※③の科目免除者は、第１日目終了］ ③施設・設備等の維持管理（90分） 休憩 ④教育・訓練（150分） 事務連絡等 受付 ⑤防火・防災管理の進め方と消防計画（150分） 休憩 効果測定（20分）、修了証交付、事務連絡等
J1169: 併催新15 | M1169: 【第１日目】 10:10～10:40 10:40～10:50 10:50～13:20 13:20～14:10 14:10～16:10 16:10～16:20 16:20～17:50 17:50～18:00頃 【第２日目】 10:10～10:40 10:40～13:10 13:10～14:10 14:10～16:40 16:40～16:50 16:50～17:35頃 | R1169: 受付 オリエンテーション ①防火・防災管理の意義と制度の概要（150分） 昼休憩 ②火気取扱いの基本知識と出火防止対策（120分） 休憩 ③施設・設備等の維持管理（90分） 事務連絡等 受付 ④教育・訓練（150分） 昼休憩 ⑤防火・防災管理の進め方と消防計画（150分） 休憩 効果測定（20分）、修了証交付、事務連絡等
J1192: 併催新16 | M1192: 【第１日目】 9:30～10:00 10:00～10:10 10:10～12:40 12:40～13:40 13:40～15:40 15:40～15:50 15:50～17:20 17:20～17:30頃 【第２日目】 9:30～10:00 10:00～12:30 12:30～13:30 13:30～16:00 16:00～16:10 16:10～17:00頃 | R1192: 受付 オリエンテーション ①防火・防災管理の意義と制度の概要（150分） 昼休憩 ②火気取扱いの基本知識と出火防止対策（120分） 休憩 ③施設・設備等の維持管理（90分） 事務連絡等 受付 ④教育・訓練（150分） 昼休憩 ⑤防火・防災管理の進め方と消防計画（150分） 休憩 効果測定（20分）、修了証交付、事務連絡等
F1215: 防火防災 再講習 | J1215: 併催再1 | M1215: 13:00～13:25 13:25～13:30 13:30～14:55 14:55～15:05 15:05～16:30 16:30～16:50頃 | R1215: 受付 オリエンテーション ①最近における法令改正概要（85分） 休憩 ②火災・災害事例研究（85分） 修了証交付、事務連絡等
J1223: 併催再2 | M1223: 13:30～14:40 14:40～14:50 14:50～16:10 16:10～16:20頃 | R1223: ①最近における法令改正概要（70分） 休憩 ②火災・災害事例研究（80分） アンケート
J1231: 併催再3 | M1231: 14:00～14:25 14:25～14:30 14:30～15:55 15:55～16:05 16:05～17:30 17:30～17:50頃 | R1231: 受付 オリエンテーション ①最近における法令改正概要（85分） 休憩 ②火災・災害事例研究（85分） 修了証交付、事務連絡等

Sheet ※入力禁止※実技講師数
B1: 実技講師数
B3: 講習種別 | F3: 講習種別 | J3: 実技科目 | O3: 実技講師 パターン | S3: 実技講師数
B4: 防火 | F4: 甲種新規講習 | J4: 自衛消防 | O4: 1 | S4: 2
O5: 2 | S5: 4
O6: 3 | S6: 5
F8: 乙種講習 | J8: 自衛消防
F11: 甲乙同時講習 | J11: 自衛消防Ⅰ
J14: 自衛消防Ⅱ
J17: 自衛消防Ⅲ | O17: 1 | S17: 5
B20: 防災 | F20: 防災新規講習 | J20: 防災管理に係る 教育・訓練
B23: 併催 | F23: 防火防災 新規講習 | J23: 教育・訓練 | O23: 1 | S23: 5

Sheet マスタ設定値（マスタ設定値全般） (hidden)
B1: マスタ設定値全般
B4: No | C4: 講習種別 | D4: 区分 | E4: 予定区分 | F4: 予約状況 | G4: 指定有無 | H4: 午前/午後
B5: 1 | C5: 甲種防火新規 | D5: 一般講習 | E5: 確定 | F5: 予約済 | G5: あり | H5: 午前
B6: 2 | C6: 乙種防火 | D6: 企業講習 | E6: 頃 | F6: 仮予約 | H6: 午後1
B7: 3 | C7: 甲乙同時 | D7: オンライン講習 | E7: 予定 | F7: 仮予約(HP未掲載) | H7: 午後2
B8: 4 | C8: 甲種防火再 | F8: 未予約
B9: 5 | C9: 防災新規
B10: 6 | C10: 防災再
B11: 7 | C11: 防火防災新規
B12: 8 | C12: 防火防災再
B13: 9
B14: 10

Sheet マスタ設定値（市町村） (hidden)
A1: 市町村
B2: 都道府県2 | C2: 市町村名
B3: 北海道2 | C3: 札幌市 | D3: 函館市 | E3: 小樽市 | F3: 旭川市 | G3: 室蘭市 | H3: 釧路市 | I3: 帯広市 | J3: 北見市 | K3: 夕張市 | L3: 岩見沢市 | M3: 網走市 | N3: 留萌市 | O3: 苫小牧市 | P3: 稚内市 | Q3: 美唄市 | R3: 芦別市 | S3: 江別市 | T3: 赤平市 | U3: 紋別市 | V3: 士別市 | W3: 名寄市 | X3: 三笠市 | Y3: 根室市 | Z3: 千歳市 | AA3: 滝川市 | AB3: 砂川市 | AC3: 歌志内市 | AD3: 深川市 | AE3: 富良野市 | AF3: 登別市 | AG3: 恵庭市 | AH3: 伊達市 | AI3: 北広島市 | AJ3: 石狩市 | AK3: 北斗市 | AL3: 石狩郡当別町 | AM3: 石狩郡新篠津村 | AN3: 松前郡松前町 | AO3: 松前郡福島町 | AP3: 上磯郡知内町 | AQ3: 上磯郡木古内町 | AR3: 亀田郡七飯町 | AS3: 茅部郡鹿部町 | AT3: 茅部郡森町 | AU3: 二海郡八雲町 | AV3: 山越郡長万部町 | AW3: 檜山郡江差町 | AX3: 檜山郡上ノ国町 | AY3: 檜山郡厚沢部町 | AZ3: 爾志郡乙部町 | BA3: 奥尻郡奥尻町 | BB3: 瀬棚郡今金町 | BC3: 久遠郡せたな町 | BD3: 島牧郡島牧村 | BE3: 寿都郡寿都町 | BF3: 寿都郡黒松内町 | BG3: 磯谷郡蘭越町 | BH3: 虻田郡ニセコ町 | BI3: 虻田郡真狩村 | BJ3: 虻田郡留寿都村 | BK3: 虻田郡喜茂別町 | BL3: 虻田郡京極町 | BM3: 虻田郡倶知安町 | BN3: 岩内郡共和町 | BO3: 岩内郡岩内町 | BP3: 古宇郡泊村 | BQ3: 古宇郡神恵内村 | BR3: 積丹郡積丹町 | BS3: 古平郡古平町 | BT3: 余市郡仁木町 | BU3: 余市郡余市町 | BV3: 余市郡赤井川村 | BW3: 空知郡南幌町 | BX3: 空知郡奈井江町 | BY3: 空知郡上砂川町 | BZ3: 夕張郡由仁町 | CA3: 夕張郡長沼町 | CB3: 夕張郡栗山町 | CC3: 樺戸郡月形町 | CD3: 樺戸郡浦臼町 | CE3: 樺戸郡新十津川町 | CF3: 雨竜郡妹背牛町 | CG3: 雨竜郡秩父別町 | CH3: 雨竜郡雨竜町 | CI3: 雨竜郡北竜町 | CJ3: 雨竜郡沼田町 | CK3: 上川郡鷹栖町 | CL3: 上川郡東神楽町 | CM3: 上川郡当麻町 | CN3: 上川郡比布町 | CO3: 上川郡愛別町 | CP3: 上川郡上川町 | CQ3: 上川郡東川町 | CR3: 上川郡美瑛町 | CS3: 空知郡上富良野町 | CT3: 空知郡中富良野町 | CU3: 空知郡南富良野町 | CV3: 勇払郡占冠村 | CW3: 上川郡和寒町 | CX3: 上川郡剣淵町 | CY3: 上川郡下川町 | CZ3: 中川郡美深町 | DA3: 中川郡音威子府村 | DB3: 中川郡中川町 | DC3: 雨竜郡幌加内町 | DD3: 増毛郡増毛町 | DE3: 留萌郡小平町 | DF3: 苫前郡苫前町 | DG3: 苫前郡羽幌町 | DH3: 苫前郡初山別村 | DI3: 天塩郡遠別町 | DJ3: 天塩郡天塩町 | DK3: 宗谷郡猿払村 | DL3: 枝幸郡浜頓別町 | DM3: 枝幸郡中頓別町 | DN3: 枝幸郡枝幸町 | DO3: 天塩郡豊富町 | DP3: 礼文郡礼文町 | DQ3: 利尻郡利尻町 | DR3: 利尻郡利尻富士町 | DS3: 天塩郡幌延町 | DT3: 網走郡美幌町 | DU3: 網走郡津別町 | DV3: 斜里郡斜里町 | DW3: 斜里郡清里町 | DX3: 斜里郡小清水町 | DY3: 常呂郡訓子府町 | DZ3: 常呂郡置戸町 | EA3: 常呂郡佐呂間町 | EB3: 紋別郡遠軽町 | EC3: 紋別郡湧別町 | ED3: 紋別郡滝上町 | EE3: 紋別郡興部町 | EF3: 紋別郡西興部村 | EG3: 紋別郡雄武町 | EH3: 網走郡大空町 | EI3: 虻田郡豊浦町 | EJ3: 有珠郡壮瞥町 | EK3: 白老郡白老町 | EL3: 勇払郡厚真町 | EM3: 虻田郡洞爺湖町 | EN3: 勇払郡安平町 | EO3: 勇払郡むかわ町 | EP3: 沙流郡日高町 | EQ3: 沙流郡平取町 | ER3: 新冠郡新冠町 | ES3: 浦河郡浦河町 | ET3: 様似郡様似町 | EU3: 幌泉郡えりも町 | EV3: 日高郡新ひだか町 | EW3: 河東郡音更町 | EX3: 河東郡士幌町 | EY3: 河東郡上士幌町 | EZ3: 河東郡鹿追町 | FA3: 上川郡新得町 | FB3: 上川郡清水町 | FC3: 河西郡芽室町 | FD3: 河西郡中札内村 | FE3: 河西郡更別村 | FF3: 広尾郡大樹町 | FG3: 広尾郡広尾町 | FH3: 中川郡幕別町 | FI3: 中川郡池田町 | FJ3: 中川郡豊頃町 | FK3: 中川郡本別町 | FL3: 足寄郡足寄町 | FM3: 足寄郡陸別町 | FN3: 十勝郡浦幌町 | FO3: 釧路郡釧路町 | FP3: 厚岸郡厚岸町 | FQ3: 厚岸郡浜中町 | FR3: 川上郡標茶町 | FS3: 川上郡弟子屈町 | FT3: 阿寒郡鶴居村 | FU3: 白糠郡白糠町 | FV3: 野付郡別海町 | FW3: 標津郡中標津町 | FX3: 標津郡標津町 | FY3: 目梨郡羅臼町
B4: 青森県2 | C4: 青森市 | D4: 弘前市 | E4: 八戸市 | F4: 黒石市 | G4: 五所川原市 | H4: 十和田市 | I4: 三沢市 | J4: むつ市 | K4: つがる市 | L4: 平川市 | M4: 東津軽郡平内町 | N4: 東津軽郡今別町 | O4: 東津軽郡蓬田村 | P4: 東津軽郡外ヶ浜町 | Q4: 西津軽郡鰺ヶ沢町 | R4: 西津軽郡深浦町 | S4: 中津軽郡西目屋村 | T4: 南津軽郡藤崎町 | U4: 南津軽郡大鰐町 | V4: 南津軽郡田舎館村 | W4: 北津軽郡板柳町 | X4: 北津軽郡鶴田町 | Y4: 北津軽郡中泊町 | Z4: 上北郡野辺地町 | AA4: 上北郡七戸町 | AB4: 上北郡六戸町 | AC4: 上北郡横浜町 | AD4: 上北郡東北町 | AE4: 上北郡六ヶ所村 | AF4: 上北郡おいらせ町 | AG4: 下北郡大間町 | AH4: 下北郡東通村 | AI4: 下北郡風間浦村 | AJ4: 下北郡佐井村 | AK4: 三戸郡三戸町 | AL4: 三戸郡五戸町 | AM4: 三戸郡田子町 | AN4: 三戸郡南部町 | AO4: 三戸郡階上町 | AP4: 三戸郡新郷村
B5: 岩手県2 | C5: 盛岡市 | D5: 宮古市 | E5: 大船渡市 | F5: 花巻市 | G5: 北上市 | H5: 久慈市 | I5: 遠野市 | J5: 一関市 | K5: 陸前高田市 | L5: 釜石市 | M5: 二戸市 | N5: 八幡平市 | O5: 奥州市 | P5: 滝沢市 | Q5: 岩手郡雫石町 | R5: 岩手郡葛巻町 | S5: 岩手郡岩手町 | T5: 紫波郡紫波町 | U5: 紫波郡矢巾町 | V5: 和賀郡西和賀町 | W5: 胆沢郡金ケ崎町 | X5: 西磐井郡平泉町 | Y5: 気仙郡住田町 | Z5: 上閉伊郡大槌町 | AA5: 下閉伊郡山田町 | AB5: 下閉伊郡岩泉町 | AC5: 下閉伊郡田野畑村 | AD5: 下閉伊郡普代村 | AE5: 九戸郡軽米町 | AF5: 九戸郡野田村 | AG5: 九戸郡九戸村 | AH5: 九戸郡洋野町 | AI5: 二戸郡一戸町
B6: 宮城県2 | C6: 仙台市 | D6: 石巻市 | E6: 塩竈市 | F6: 気仙沼市 | G6: 白石市 | H6: 名取市 | I6: 角田市 | J6: 多賀城市 | K6: 岩沼市 | L6: 登米市 | M6: 栗原市 | N6: 東松島市 | O6: 大崎市 | P6: 富谷市 | Q6: 刈田郡蔵王町 | R6: 刈田郡七ヶ宿町 | S6: 柴田郡大河原町 | T6: 柴田郡村田町 | U6: 柴田郡柴田町 | V6: 柴田郡川崎町 | W6: 伊具郡丸森町 | X6: 亘理郡亘理町 | Y6: 亘理郡山元町 | Z6: 宮城郡松島町 | AA6: 宮城郡七ヶ浜町 | AB6: 宮城郡利府町 | AC6: 黒川郡大和町 | AD6: 黒川郡大郷町 | AE6: 黒川郡大衡村 | AF6: 加美郡色麻町 | AG6: 加美郡加美町 | AH6: 遠田郡涌谷町 | AI6: 遠田郡美里町 | AJ6: 牡鹿郡女川町 | AK6: 本吉郡南三陸町
B7: 秋田県2 | C7: 秋田市 | D7: 能代市 | E7: 横手市 | F7: 大館市 | G7: 男鹿市 | H7: 湯沢市 | I7: 鹿角市 | J7: 由利本荘市 | K7: 潟上市 | L7: 大仙市 | M7: 北秋田市 | N7: にかほ市 | O7: 仙北市 | P7: 鹿角郡小坂町 | Q7: 北秋田郡上小阿仁村 | R7: 山本郡藤里町 | S7: 山本郡三種町 | T7: 山本郡八峰町 | U7: 南秋田郡五城目町 | V7: 南秋田郡八郎潟町 | W7: 南秋田郡井川町 | X7: 南秋田郡大潟村 | Y7: 仙北郡美郷町 | Z7: 雄勝郡羽後町 | AA7: 雄勝郡東成瀬村
B8: 山形県2 | C8: 山形市 | D8: 米沢市 | E8: 鶴岡市 | F8: 酒田市 | G8: 新庄市 | H8: 寒河江市 | I8: 上山市 | J8: 村山市 | K8: 長井市 | L8: 天童市 | M8: 東根市 | N8: 尾花沢市 | O8: 南陽市 | P8: 東村山郡山辺町 | Q8: 東村山郡中山町 | R8: 西村山郡河北町 | S8: 西村山郡西川町 | T8: 西村山郡朝日町 | U8: 西村山郡大江町 | V8: 北村山郡大石田町 | W8: 最上郡金山町 | X8: 最上郡最上町 | Y8: 最上郡舟形町 | Z8: 最上郡真室川町 | AA8: 最上郡大蔵村 | AB8: 最上郡鮭川村 | AC8: 最上郡戸沢村 | AD8: 東置賜郡高畠町 | AE8: 東置賜郡川西町 | AF8: 西置賜郡小国町 | AG8: 西置賜郡白鷹町 | AH8: 西置賜郡飯豊町 | AI8: 東田川郡三川町 | AJ8: 東田川郡庄内町 | AK8: 飽海郡遊佐町
B9: 福島県2 | C9: 福島市 | D9: 会津若松市 | E9: 郡山市 | F9: いわき市 | G9: 白河市 | H9: 須賀川市 | I9: 喜多方市 | J9: 相馬市 | K9: 二本松市 | L9: 田村市 | M9: 南相馬市 | N9: 伊達市 | O9: 本宮市 | P9: 伊達郡桑折町 | Q9: 伊達郡国見町 | R9: 伊達郡川俣町 | S9: 安達郡大玉村 | T9: 岩瀬郡鏡石町 | U9: 岩瀬郡天栄村 | V9: 南会津郡下郷町 | W9: 南会津郡檜枝岐村 | X9: 南会津郡只見町 | Y9: 南会津郡南会津町 | Z9: 耶麻郡北塩原村 | AA9: 耶麻郡西会津町 | AB9: 耶麻郡磐梯町 | AC9: 耶麻郡猪苗代町 | AD9: 河沼郡会津坂下町 | AE9: 河沼郡湯川村 | AF9: 河沼郡柳津町 | AG9: 大沼郡三島町 | AH9: 大沼郡金山町 | AI9: 大沼郡昭和村 | AJ9: 大沼郡会津美里町 | AK9: 西白河郡西郷村 | AL9: 西白河郡泉崎村 | AM9: 西白河郡中島村 | AN9: 西白河郡矢吹町 | AO9: 東白川郡棚倉町 | AP9: 東白川郡矢祭町 | AQ9: 東白川郡塙町 | AR9: 東白川郡鮫川村 | AS9: 石川郡石川町 | AT9: 石川郡玉川村 | AU9: 石川郡平田村 | AV9: 石川郡浅川町 | AW9: 石川郡古殿町 | AX9: 田村郡三春町 | AY9: 田村郡小野町 | AZ9: 双葉郡広野町 | BA9: 双葉郡楢葉町 | BB9: 双葉郡富岡町 | BC9: 双葉郡川内村 | BD9: 双葉郡大熊町 | BE9: 双葉郡双葉町 | BF9: 双葉郡浪江町 | BG9: 双葉郡葛尾村 | BH9: 相馬郡新地町 | BI9: 相馬郡飯舘村
B10: 茨城県2 | C10: 水戸市 | D10: 日立市 | E10: 土浦市 | F10: 古河市 | G10: 石岡市 | H10: 結城市 | I10: 龍ケ崎市 | J10: 下妻市 | K10: 常総市 | L10: 常陸太田市 | M10: 高萩市 | N10: 北茨城市 | O10: 笠間市 | P10: 取手市 | Q10: 牛久市 | R10: つくば市 | S10: ひたちなか市 | T10: 鹿嶋市 | U10: 潮来市 | V10: 守谷市 | W10: 常陸大宮市 | X10: 那珂市 | Y10: 筑西市 | Z10: 坂東市 | AA10: 稲敷市 | AB10: かすみがうら市 | AC10: 桜川市 | AD10: 神栖市 | AE10: 行方市 | AF10: 鉾田市 | AG10: つくばみらい市 | AH10: 小美玉市 | AI10: 東茨城郡茨城町 | AJ10: 東茨城郡大洗町 | AK10: 東茨城郡城里町 | AL10: 那珂郡東海村 | AM10: 久慈郡大子町 | AN10: 稲敷郡美浦村 | AO10: 稲敷郡阿見町 | AP10: 稲敷郡河内町 | AQ10: 結城郡八千代町 | AR10: 猿島郡五霞町 | AS10: 猿島郡境町 | AT10: 北相馬郡利根町
B11: 栃木県2 | C11: 宇都宮市 | D11: 足利市 | E11: 栃木市 | F11: 佐野市 | G11: 鹿沼市 | H11: 日光市 | I11: 小山市 | J11: 真岡市 | K11: 大田原市 | L11: 矢板市 | M11: 那須塩原市 | N11: さくら市 | O11: 那須烏山市 | P11: 下野市 | Q11: 河内郡上三川町 | R11: 芳賀郡益子町 | S11: 芳賀郡茂木町 | T11: 芳賀郡市貝町 | U11: 芳賀郡芳賀町 | V11: 下都賀郡壬生町 | W11: 下都賀郡野木町 | X11: 塩谷郡塩谷町 | Y11: 塩谷郡高根沢町 | Z11: 那須郡那須町 | AA11: 那須郡那珂川町
B12: 群馬県2 | C12: 前橋市 | D12: 高崎市 | E12: 桐生市 | F12: 伊勢崎市 | G12: 太田市 | H12: 沼田市 | I12: 館林市 | J12: 渋川市 | K12: 藤岡市 | L12: 富岡市 | M12: 安中市 | N12: みどり市 | O12: 北群馬郡榛東村 | P12: 北群馬郡吉岡町 | Q12: 多野郡上野村 | R12: 多野郡神流町 | S12: 甘楽郡下仁田町 | T12: 甘楽郡南牧村 | U12: 甘楽郡甘楽町 | V12: 吾妻郡中之条町 | W12: 吾妻郡長野原町 | X12: 吾妻郡嬬恋村 | Y12: 吾妻郡草津町 | Z12: 吾妻郡高山村 | AA12: 吾妻郡東吾妻町 | AB12: 利根郡片品村 | AC12: 利根郡川場村 | AD12: 利根郡昭和村 | AE12: 利根郡みなかみ町 | AF12: 佐波郡玉村町 | AG12: 邑楽郡板倉町 | AH12: 邑楽郡明和町 | AI12: 邑楽郡千代田町 | AJ12: 邑楽郡大泉町 | AK12: 邑楽郡邑楽町
B13: 埼玉県2 | C13: さいたま市 | D13: 川越市 | E13: 熊谷市 | F13: 川口市 | G13: 行田市 | H13: 秩父市 | I13: 所沢市 | J13: 飯能市 | K13: 加須市 | L13: 本庄市 | M13: 東松山市 | N13: 春日部市 | O13: 狭山市 | P13: 羽生市 | Q13: 鴻巣市 | R13: 深谷市 | S13: 上尾市 | T13: 草加市 | U13: 越谷市 | V13: 蕨市 | W13: 戸田市 | X13: 入間市 | Y13: 朝霞市 | Z13: 志木市 | AA13: 和光市 | AB13: 新座市 | AC13: 桶川市 | AD13: 久喜市 | AE13: 北本市 | AF13: 八潮市 | AG13: 富士見市 | AH13: 三郷市 | AI13: 蓮田市 | AJ13: 坂戸市 | AK13: 幸手市 | AL13: 鶴ヶ島市 | AM13: 日高市 | AN13: 吉川市 | AO13: ふじみ野市 | AP13: 白岡市 | AQ13: 北足立郡伊奈町 | AR13: 入間郡三芳町 | AS13: 入間郡毛呂山町 | AT13: 入間郡越生町 | AU13: 比企郡滑川町 | AV13: 比企郡嵐山町 | AW13: 比企郡小川町 | AX13: 比企郡川島町 | AY13: 比企郡吉見町 | AZ13: 比企郡鳩山町 | BA13: 比企郡ときがわ町 | BB13: 秩父郡横瀬町 | BC13: 秩父郡皆野町 | BD13: 秩父郡長瀞町 | BE13: 秩父郡小鹿野町 | BF13: 秩父郡東秩父村 | BG13: 児玉郡美里町 | BH13: 児玉郡神川町 | BI13: 児玉郡上里町 | BJ13: 大里郡寄居町 | BK13: 南埼玉郡宮代町 | BL13: 北葛飾郡杉戸町 | BM13: 北葛飾郡松伏町
B14: 千葉県2 | C14: 千葉市 | D14: 銚子市 | E14: 市川市 | F14: 船橋市 | G14: 館山市 | H14: 木更津市 | I14: 松戸市 | J14: 野田市 | K14: 茂原市 | L14: 成田市 | M14: 佐倉市 | N14: 東金市 | O14: 旭市 | P14: 習志野市 | Q14: 柏市 | R14: 勝浦市 | S14: 市原市 | T14: 流山市 | U14: 八千代市 | V14: 我孫子市 | W14: 鴨川市 | X14: 鎌ケ谷市 | Y14: 君津市 | Z14: 富津市 | AA14: 浦安市 | AB14: 四街道市 | AC14: 袖ケ浦市 | AD14: 八街市 | AE14: 印西市 | AF14: 白井市 | AG14: 富里市 | AH14: 南房総市 | AI14: 匝瑳市 | AJ14: 香取市 | AK14: 山武市 | AL14: いすみ市 | AM14: 大網白里市 | AN14: 印旛郡酒々井町 | AO14: 印旛郡栄町 | AP14: 香取郡神崎町 | AQ14: 香取郡多古町 | AR14: 香取郡東庄町 | AS14: 山武郡九十九里町 | AT14: 山武郡芝山町 | AU14: 山武郡横芝光町 | AV14: 長生郡一宮町 | AW14: 長生郡睦沢町 | AX14: 長生郡長生村 | AY14: 長生郡白子町 | AZ14: 長生郡長柄町 | BA14: 長生郡長南町 | BB14: 夷隅郡大多喜町 | BC14: 夷隅郡御宿町 | BD14: 安房郡鋸南町
B15: 東京都2 | C15: 千代田区 | D15: 中央区 | E15: 港区 | F15: 新宿区 | G15: 文京区 | H15: 台東区 | I15: 墨田区 | J15: 江東区 | K15: 品川区 | L15: 目黒区 | M15: 大田区 | N15: 世田谷区 | O15: 渋谷区 | P15: 中野区 | Q15: 杉並区 | R15: 豊島区 | S15: 北区 | T15: 荒川区 | U15: 板橋区 | V15: 練馬区 | W15: 足立区 | X15: 葛飾区 | Y15: 江戸川区 | Z15: 八王子市 | AA15: 立川市 | AB15: 武蔵野市 | AC15: 三鷹市 | AD15: 青梅市 | AE15: 府中市 | AF15: 昭島市 | AG15: 調布市 | AH15: 町田市 | AI15: 小金井市 | AJ15: 小平市 | AK15: 日野市 | AL15: 東村山市 | AM15: 国分寺市 | AN15: 国立市 | AO15: 福生市 | AP15: 狛江市 | AQ15: 東大和市 | AR15: 清瀬市 | AS15: 東久留米市 | AT15: 武蔵村山市 | AU15: 多摩市 | AV15: 稲城市 | AW15: 羽村市 | AX15: あきる野市 | AY15: 西東京市 | AZ15: 西多摩郡瑞穂町 | BA15: 西多摩郡日の出町 | BB15: 西多摩郡檜原村 | BC15: 西多摩郡奥多摩町 | BD15: 大島町 | BE15: 利島村 | BF15: 新島村 | BG15: 神津島村 | BH15: 三宅島三宅村 | BI15: 御蔵島村 | BJ15: 八丈島八丈町 | BK15: 青ヶ島村 | BL15: 小笠原村
B16: 神奈川県2 | C16: 横浜市 | D16: 川崎市 | E16: 相模原市 | F16: 横須賀市 | G16: 平塚市 | H16: 鎌倉市 | I16: 藤沢市 | J16: 小田原市 | K16: 茅ヶ崎市 | L16: 逗子市 | M16: 三浦市 | N16: 秦野市 | O16: 厚木市 | P16: 大和市 | Q16: 伊勢原市 | R16: 海老名市 | S16: 座間市 | T16: 南足柄市 | U16: 綾瀬市 | V16: 三浦郡葉山町 | W16: 高座郡寒川町 | X16: 中郡大磯町 | Y16: 中郡二宮町 | Z16: 足柄上郡中井町 | AA16: 足柄上郡大井町 | AB16: 足柄上郡松田町 | AC16: 足柄上郡山北町 | AD16: 足柄上郡開成町 | AE16: 足柄下郡箱根町 | AF16: 足柄下郡真鶴町 | AG16: 足柄下郡湯河原町 | AH16: 愛甲郡愛川町 | AI16: 愛甲郡清川村
B17: 新潟県2 | C17: 新潟市 | D17: 長岡市 | E17: 三条市 | F17: 柏崎市 | G17: 新発田市 | H17: 小千谷市 | I17: 加茂市 | J17: 十日町市 | K17: 見附市 | L17: 村上市 | M17: 燕市 | N17: 糸魚川市 | O17: 妙高市 | P17: 五泉市 | Q17: 上越市 | R17: 阿賀野市 | S17: 佐渡市 | T17: 魚沼市 | U17: 南魚沼市 | V17: 胎内市 | W17: 北蒲原郡聖籠町 | X17: 西蒲原郡弥彦村 | Y17: 南蒲原郡田上町 | Z17: 東蒲原郡阿賀町 | AA17: 三島郡出雲崎町 | AB17: 南魚沼郡湯沢町 | AC17: 中魚沼郡津南町 | AD17: 刈羽郡刈羽村 | AE17: 岩船郡関川村 | AF17: 岩船郡粟島浦村
B18: 富山県2 | C18: 富山市 | D18: 高岡市 | E18: 魚津市 | F18: 氷見市 | G18: 滑川市 | H18: 黒部市 | I18: 砺波市 | J18: 小矢部市 | K18: 南砺市 | L18: 射水市 | M18: 中新川郡舟橋村 | N18: 中新川郡上市町 | O18: 中新川郡立山町 | P18: 下新川郡入善町 | Q18: 下新川郡朝日町
B19: 石川県2 | C19: 金沢市 | D19: 七尾市 | E19: 小松市 | F19: 輪島市 | G19: 珠洲市 | H19: 加賀市 | I19: 羽咋市 | J19: かほく市 | K19: 白山市 | L19: 能美市 | M19: 野々市市 | N19: 能美郡川北町 | O19: 河北郡津幡町 | P19: 河北郡内灘町 | Q19: 羽咋郡志賀町 | R19: 羽咋郡宝達志水町 | S19: 鹿島郡中能登町 | T19: 鳳珠郡穴水町 | U19: 鳳珠郡能登町
B20: 福井県2 | C20: 福井市 | D20: 敦賀市 | E20: 小浜市 | F20: 大野市 | G20: 勝山市 | H20: 鯖江市 | I20: あわら市 | J20: 越前市 | K20: 坂井市 | L20: 吉田郡永平寺町 | M20: 今立郡池田町 | N20: 南条郡南越前町 | O20: 丹生郡越前町 | P20: 三方郡美浜町 | Q20: 大飯郡高浜町 | R20: 大飯郡おおい町 | S20: 三方上中郡若狭町
B21: 山梨県2 | C21: 甲府市 | D21: 富士吉田市 | E21: 都留市 | F21: 山梨市 | G21: 大月市 | H21: 韮崎市 | I21: 南アルプス市 | J21: 北杜市 | K21: 甲斐市 | L21: 笛吹市 | M21: 上野原市 | N21: 甲州市 | O21: 中央市 | P21: 西八代郡市川三郷町 | Q21: 南巨摩郡早川町 | R21: 南巨摩郡身延町 | S21: 南巨摩郡南部町 | T21: 南巨摩郡富士川町 | U21: 中巨摩郡昭和町 | V21: 南都留郡道志村 | W21: 南都留郡西桂町 | X21: 南都留郡忍野村 | Y21: 南都留郡山中湖村 | Z21: 南都留郡鳴沢村 | AA21: 南都留郡富士河口湖町 | AB21: 北都留郡小菅村 | AC21: 北都留郡丹波山村
B22: 長野県2 | C22: 長野市 | D22: 松本市 | E22: 上田市 | F22: 岡谷市 | G22: 飯田市 | H22: 諏訪市 | I22: 須坂市 | J22: 小諸市 | K22: 伊那市 | L22: 駒ヶ根市 | M22: 中野市 | N22: 大町市 | O22: 飯山市 | P22: 茅野市 | Q22: 塩尻市 | R22: 佐久市 | S22: 千曲市 | T22: 東御市 | U22: 安曇野市 | V22: 南佐久郡小海町 | W22: 南佐久郡川上村 | X22: 南佐久郡南牧村 | Y22: 南佐久郡南相木村 | Z22: 南佐久郡北相木村 | AA22: 南佐久郡佐久穂町 | AB22: 北佐久郡軽井沢町 | AC22: 北佐久郡御代田町 | AD22: 北佐久郡立科町 | AE22: 小県郡青木村 | AF22: 小県郡長和町 | AG22: 諏訪郡下諏訪町 | AH22: 諏訪郡富士見町 | AI22: 諏訪郡原村 | AJ22: 上伊那郡辰野町 | AK22: 上伊那郡箕輪町 | AL22: 上伊那郡飯島町 | AM22: 上伊那郡南箕輪村 | AN22: 上伊那郡中川村 | AO22: 上伊那郡宮田村 | AP22: 下伊那郡松川町 | AQ22: 下伊那郡高森町 | AR22: 下伊那郡阿南町 | AS22: 下伊那郡阿智村 | AT22: 下伊那郡平谷村 | AU22: 下伊那郡根羽村 | AV22: 下伊那郡下條村 | AW22: 下伊那郡売木村 | AX22: 下伊那郡天龍村 | AY22: 下伊那郡泰阜村 | AZ22: 下伊那郡喬木村 | BA22: 下伊那郡豊丘村 | BB22: 下伊那郡大鹿村 | BC22: 木曽郡上松町 | BD22: 木曽郡南木曽町 | BE22: 木曽郡木祖村 | BF22: 木曽郡王滝村 | BG22: 木曽郡大桑村 | BH22: 木曽郡木曽町 | BI22: 東筑摩郡麻績村 | BJ22: 東筑摩郡生坂村 | BK22: 東筑摩郡山形村 | BL22: 東筑摩郡朝日村 | BM22: 東筑摩郡筑北村 | BN22: 北安曇郡池田町 | BO22: 北安曇郡松川村 | BP22: 北安曇郡白馬村 | BQ22: 北安曇郡小谷村 | BR22: 埴科郡坂城町 | BS22: 上高井郡小布施町 | BT22: 上高井郡高山村 | BU22: 下高井郡山ノ内町 | BV22: 下高井郡木島平村 | BW22: 下高井郡野沢温泉村 | BX22: 上水内郡信濃町 | BY22: 上水内郡小川村 | BZ22: 上水内郡飯綱町 | CA22: 下水内郡栄村
B23: 岐阜県2 | C23: 岐阜市 | D23: 大垣市 | E23: 高山市 | F23: 多治見市 | G23: 関市 | H23: 中津川市 | I23: 美濃市 | J23: 瑞浪市 | K23: 羽島市 | L23: 恵那市 | M23: 美濃加茂市 | N23: 土岐市 | O23: 各務原市 | P23: 可児市 | Q23: 山県市 | R23: 瑞穂市 | S23: 飛騨市 | T23: 本巣市 | U23: 郡上市 | V23: 下呂市 | W23: 海津市 | X23: 羽島郡岐南町 | Y23: 羽島郡笠松町 | Z23: 養老郡養老町 | AA23: 不破郡垂井町 | AB23: 不破郡関ケ原町 | AC23: 安八郡神戸町 | AD23: 安八郡輪之内町 | AE23: 安八郡安八町 | AF23: 揖斐郡揖斐川町 | AG23: 揖斐郡大野町 | AH23: 揖斐郡池田町 | AI23: 本巣郡北方町 | AJ23: 加茂郡坂祝町 | AK23: 加茂郡富加町 | AL23: 加茂郡川辺町 | AM23: 加茂郡七宗町 | AN23: 加茂郡八百津町 | AO23: 加茂郡白川町 | AP23: 加茂郡東白川村 | AQ23: 可児郡御嵩町 | AR23: 大野郡白川村
B24: 静岡県2 | C24: 静岡市 | D24: 浜松市 | E24: 沼津市 | F24: 熱海市 | G24: 三島市 | H24: 富士宮市 | I24: 伊東市 | J24: 島田市 | K24: 富士市 | L24: 磐田市 | M24: 焼津市 | N24: 掛川市 | O24: 藤枝市 | P24: 御殿場市 | Q24: 袋井市 | R24: 下田市 | S24: 裾野市 | T24: 湖西市 | U24: 伊豆市 | V24: 御前崎市 | W24: 菊川市 | X24: 伊豆の国市 | Y24: 牧之原市 | Z24: 賀茂郡東伊豆町 | AA24: 賀茂郡河津町 | AB24: 賀茂郡南伊豆町 | AC24: 賀茂郡松崎町 | AD24: 賀茂郡西伊豆町 | AE24: 田方郡函南町 | AF24: 駿東郡清水町 | AG24: 駿東郡長泉町 | AH24: 駿東郡小山町 | AI24: 榛原郡吉田町 | AJ24: 榛原郡川根本町 | AK24: 周智郡森町
B25: 愛知県2 | C25: 名古屋市 | D25: 豊橋市 | E25: 岡崎市 | F25: 一宮市 | G25: 瀬戸市 | H25: 半田市 | I25: 春日井市 | J25: 豊川市 | K25: 津島市 | L25: 碧南市 | M25: 刈谷市 | N25: 豊田市 | O25: 安城市 | P25: 西尾市 | Q25: 蒲郡市 | R25: 犬山市 | S25: 常滑市 | T25: 江南市 | U25: 小牧市 | V25: 稲沢市 | W25: 新城市 | X25: 東海市 | Y25: 大府市 | Z25: 知多市 | AA25: 知立市 | AB25: 尾張旭市 | AC25: 高浜市 | AD25: 岩倉市 | AE25: 豊明市 | AF25: 日進市 | AG25: 田原市 | AH25: 愛西市 | AI25: 清須市 | AJ25: 北名古屋市 | AK25: 弥富市 | AL25: みよし市 | AM25: あま市 | AN25: 長久手市 | AO25: 愛知郡東郷町 | AP25: 西春日井郡豊山町 | AQ25: 丹羽郡大口町 | AR25: 丹羽郡扶桑町 | AS25: 海部郡大治町 | AT25: 海部郡蟹江町 | AU25: 海部郡飛島村 | AV25: 知多郡阿久比町 | AW25: 知多郡東浦町 | AX25: 知多郡南知多町 | AY25: 知多郡美浜町 | AZ25: 知多郡武豊町 | BA25: 額田郡幸田町 | BB25: 北設楽郡設楽町 | BC25: 北設楽郡東栄町 | BD25: 北設楽郡豊根村
B26: 三重県2 | C26: 津市 | D26: 四日市市 | E26: 伊勢市 | F26: 松阪市 | G26: 桑名市 | H26: 鈴鹿市 | I26: 名張市 | J26: 尾鷲市 | K26: 亀山市 | L26: 鳥羽市 | M26: 熊野市 | N26: いなべ市 | O26: 志摩市 | P26: 伊賀市 | Q26: 桑名郡木曽岬町 | R26: 員弁郡東員町 | S26: 三重郡菰野町 | T26: 三重郡朝日町 | U26: 三重郡川越町 | V26: 多気郡多気町 | W26: 多気郡明和町 | X26: 多気郡大台町 | Y26: 度会郡玉城町 | Z26: 度会郡度会町 | AA26: 度会郡大紀町 | AB26: 度会郡南伊勢町 | AC26: 北牟婁郡紀北町 | AD26: 南牟婁郡御浜町 | AE26: 南牟婁郡紀宝町
B27: 滋賀県2 | C27: 大津市 | D27: 彦根市 | E27: 長浜市 | F27: 近江八幡市 | G27: 草津市 | H27: 守山市 | I27: 栗東市 | J27: 甲賀市 | K27: 野洲市 | L27: 湖南市 | M27: 高島市 | N27: 東近江市 | O27: 米原市 | P27: 蒲生郡日野町 | Q27: 蒲生郡竜王町 | R27: 愛知郡愛荘町 | S27: 犬上郡豊郷町 | T27: 犬上郡甲良町 | U27: 犬上郡多賀町
B28: 京都府2 | C28: 京都市 | D28: 福知山市 | E28: 舞鶴市 | F28: 綾部市 | G28: 宇治市 | H28: 宮津市 | I28: 亀岡市 | J28: 城陽市 | K28: 向日市 | L28: 長岡京市 | M28: 八幡市 | N28: 京田辺市 | O28: 京丹後市 | P28: 南丹市 | Q28: 木津川市 | R28: 乙訓郡大山崎町 | S28: 久世郡久御山町 | T28: 綴喜郡井手町 | U28: 綴喜郡宇治田原町 | V28: 相楽郡笠置町 | W28: 相楽郡和束町 | X28: 相楽郡精華町 | Y28: 相楽郡南山城村 | Z28: 船井郡京丹波町 | AA28: 与謝郡伊根町 | AB28: 与謝郡与謝野町
B29: 大阪府2 | C29: 大阪市 | D29: 堺市 | E29: 岸和田市 | F29: 豊中市 | G29: 池田市 | H29: 吹田市 | I29: 泉大津市 | J29: 高槻市 | K29: 貝塚市 | L29: 守口市 | M29: 枚方市 | N29: 茨木市 | O29: 八尾市 | P29: 泉佐野市 | Q29: 富田林市 | R29: 寝屋川市 | S29: 河内長野市 | T29: 松原市 | U29: 大東市 | V29: 和泉市 | W29: 箕面市 | X29: 柏原市 | Y29: 羽曳野市 | Z29: 門真市 | AA29: 摂津市 | AB29: 高石市 | AC29: 藤井寺市 | AD29: 東大阪市 | AE29: 泉南市 | AF29: 四條畷市 | AG29: 交野市 | AH29: 大阪狭山市 | AI29: 阪南市 | AJ29: 三島郡島本町 | AK29: 豊能郡豊能町 | AL29: 豊能郡能勢町 | AM29: 泉北郡忠岡町 | AN29: 泉南郡熊取町 | AO29: 泉南郡田尻町 | AP29: 泉南郡岬町 | AQ29: 南河内郡太子町 | AR29: 南河内郡河南町 | AS29: 南河内郡千早赤阪村
B30: 兵庫県2 | C30: 神戸市 | D30: 姫路市 | E30: 尼崎市 | F30: 明石市 | G30: 西宮市 | H30: 洲本市 | I30: 芦屋市 | J30: 伊丹市 | K30: 相生市 | L30: 豊岡市 | M30: 加古川市 | N30: 赤穂市 | O30: 西脇市 | P30: 宝塚市 | Q30: 三木市 | R30: 高砂市 | S30: 川西市 | T30: 小野市 | U30: 三田市 | V30: 加西市 | W30: 丹波篠山市 | X30: 養父市 | Y30: 丹波市 | Z30: 南あわじ市 | AA30: 朝来市 | AB30: 淡路市 | AC30: 宍粟市 | AD30: 加東市 | AE30: たつの市 | AF30: 川辺郡猪名川町 | AG30: 多可郡多可町 | AH30: 加古郡稲美町 | AI30: 加古郡播磨町 | AJ30: 神崎郡市川町 | AK30: 神崎郡福崎町 | AL30: 神崎郡神河町 | AM30: 揖保郡太子町 | AN30: 赤穂郡上郡町 | AO30: 佐用郡佐用町 | AP30: 美方郡香美町 | AQ30: 美方郡新温泉町
B31: 奈良県2 | C31: 奈良市 | D31: 大和高田市 | E31: 大和郡山市 | F31: 天理市 | G31: 橿原市 | H31: 桜井市 | I31: 五條市 | J31: 御所市 | K31: 生駒市 | L31: 香芝市 | M31: 葛城市 | N31: 宇陀市 | O31: 山辺郡山添村 | P31: 生駒郡平群町 | Q31: 生駒郡三郷町 | R31: 生駒郡斑鳩町 | S31: 生駒郡安堵町 | T31: 磯城郡川西町 | U31: 磯城郡三宅町 | V31: 磯城郡田原本町 | W31: 宇陀郡曽爾村 | X31: 宇陀郡御杖村 | Y31: 高市郡高取町 | Z31: 高市郡明日香村 | AA31: 北葛城郡上牧町 | AB31: 北葛城郡王寺町 | AC31: 北葛城郡広陵町 | AD31: 北葛城郡河合町 | AE31: 吉野郡吉野町 | AF31: 吉野郡大淀町 | AG31: 吉野郡下市町 | AH31: 吉野郡黒滝村 | AI31: 吉野郡天川村 | AJ31: 吉野郡野迫川村 | AK31: 吉野郡十津川村 | AL31: 吉野郡下北山村 | AM31: 吉野郡上北山村 | AN31: 吉野郡川上村 | AO31: 吉野郡東吉野村
B32: 和歌山県2 | C32: 和歌山市 | D32: 海南市 | E32: 橋本市 | F32: 有田市 | G32: 御坊市 | H32: 田辺市 | I32: 新宮市 | J32: 紀の川市 | K32: 岩出市 | L32: 海草郡紀美野町 | M32: 伊都郡かつらぎ町 | N32: 伊都郡九度山町 | O32: 伊都郡高野町 | P32: 有田郡湯浅町 | Q32: 有田郡広川町 | R32: 有田郡有田川町 | S32: 日高郡美浜町 | T32: 日高郡日高町 | U32: 日高郡由良町 | V32: 日高郡印南町 | W32: 日高郡みなべ町 | X32: 日高郡日高川町 | Y32: 西牟婁郡白浜町 | Z32: 西牟婁郡上富田町 | AA32: 西牟婁郡すさみ町 | AB32: 東牟婁郡那智勝浦町 | AC32: 東牟婁郡太地町 | AD32: 東牟婁郡古座川町 | AE32: 東牟婁郡北山村 | AF32: 東牟婁郡串本町
B33: 鳥取県2 | C33: 鳥取市 | D33: 米子市 | E33: 倉吉市 | F33: 境港市 | G33: 岩美郡岩美町 | H33: 八頭郡若桜町 | I33: 八頭郡智頭町 | J33: 八頭郡八頭町 | K33: 東伯郡三朝町 | L33: 東伯郡湯梨浜町 | M33: 東伯郡琴浦町 | N33: 東伯郡北栄町 | O33: 西伯郡日吉津村 | P33: 西伯郡大山町 | Q33: 西伯郡南部町 | R33: 西伯郡伯耆町 | S33: 日野郡日南町 | T33: 日野郡日野町 | U33: 日野郡江府町
B34: 島根県2 | C34: 松江市 | D34: 浜田市 | E34: 出雲市 | F34: 益田市 | G34: 大田市 | H34: 安来市 | I34: 江津市 | J34: 雲南市 | K34: 仁多郡奥出雲町 | L34: 飯石郡飯南町 | M34: 邑智郡川本町 | N34: 邑智郡美郷町 | O34: 邑智郡邑南町 | P34: 鹿足郡津和野町 | Q34: 鹿足郡吉賀町 | R34: 隠岐郡海士町 | S34: 隠岐郡西ノ島町 | T34: 隠岐郡知夫村 | U34: 隠岐郡隠岐の島町
B35: 岡山県2 | C35: 岡山市 | D35: 倉敷市 | E35: 津山市 | F35: 玉野市 | G35: 笠岡市 | H35: 井原市 | I35: 総社市 | J35: 高梁市 | K35: 新見市 | L35: 備前市 | M35: 瀬戸内市 | N35: 赤磐市 | O35: 真庭市 | P35: 美作市 | Q35: 浅口市 | R35: 和気郡和気町 | S35: 都窪郡早島町 | T35: 浅口郡里庄町 | U35: 小田郡矢掛町 | V35: 真庭郡新庄村 | W35: 苫田郡鏡野町 | X35: 勝田郡勝央町 | Y35: 勝田郡奈義町 | Z35: 英田郡西粟倉村 | AA35: 久米郡久米南町 | AB35: 久米郡美咲町 | AC35: 加賀郡吉備中央町
B36: 広島県2 | C36: 広島市 | D36: 呉市 | E36: 竹原市 | F36: 三原市 | G36: 尾道市 | H36: 福山市 | I36: 府中市 | J36: 三次市 | K36: 庄原市 | L36: 大竹市 | M36: 東広島市 | N36: 廿日市市 | O36: 安芸高田市 | P36: 江田島市 | Q36: 安芸郡府中町 | R36: 安芸郡海田町 | S36: 安芸郡熊野町 | T36: 安芸郡坂町 | U36: 山県郡安芸太田町 | V36: 山県郡北広島町 | W36: 豊田郡大崎上島町 | X36: 世羅郡世羅町 | Y36: 神石郡神石高原町
B37: 山口県2 | C37: 下関市 | D37: 宇部市 | E37: 山口市 | F37: 萩市 | G37: 防府市 | H37: 下松市 | I37: 岩国市 | J37: 光市 | K37: 長門市 | L37: 柳井市 | M37: 美祢市 | N37: 周南市 | O37: 山陽小野田市 | P37: 大島郡周防大島町 | Q37: 玖珂郡和木町 | R37: 熊毛郡上関町 | S37: 熊毛郡田布施町 | T37: 熊毛郡平生町 | U37: 阿武郡阿武町
B38: 徳島県2 | C38: 徳島市 | D38: 鳴門市 | E38: 小松島市 | F38: 阿南市 | G38: 吉野川市 | H38: 阿波市 | I38: 美馬市 | J38: 三好市 | K38: 勝浦郡勝浦町 | L38: 勝浦郡上勝町 | M38: 名東郡佐那河内村 | N38: 名西郡石井町 | O38: 名西郡神山町 | P38: 那賀郡那賀町 | Q38: 海部郡牟岐町 | R38: 海部郡美波町 | S38: 海部郡海陽町 | T38: 板野郡松茂町 | U38: 板野郡北島町 | V38: 板野郡藍住町 | W38: 板野郡板野町 | X38: 板野郡上板町 | Y38: 美馬郡つるぎ町 | Z38: 三好郡東みよし町
B39: 香川県2 | C39: 高松市 | D39: 丸亀市 | E39: 坂出市 | F39: 善通寺市 | G39: 観音寺市 | H39: さぬき市 | I39: 東かがわ市 | J39: 三豊市 | K39: 小豆郡土庄町 | L39: 小豆郡小豆島町 | M39: 木田郡三木町 | N39: 香川郡直島町 | O39: 綾歌郡宇多津町 | P39: 綾歌郡綾川町 | Q39: 仲多度郡琴平町 | R39: 仲多度郡多度津町 | S39: 仲多度郡まんのう町
B40: 愛媛県2 | C40: 松山市 | D40: 今治市 | E40: 宇和島市 | F40: 八幡浜市 | G40: 新居浜市 | H40: 西条市 | I40: 大洲市 | J40: 伊予市 | K40: 四国中央市 | L40: 西予市 | M40: 東温市 | N40: 越智郡上島町 | O40: 上浮穴郡久万高原町 | P40: 伊予郡松前町 | Q40: 伊予郡砥部町 | R40: 喜多郡内子町 | S40: 西宇和郡伊方町 | T40: 北宇和郡松野町 | U40: 北宇和郡鬼北町 | V40: 南宇和郡愛南町
B41: 高知県2 | C41: 高知市 | D41: 室戸市 | E41: 安芸市 | F41: 南国市 | G41: 土佐市 | H41: 須崎市 | I41: 宿毛市 | J41: 土佐清水市 | K41: 四万十市 | L41: 香南市 | M41: 香美市 | N41: 安芸郡東洋町 | O41: 安芸郡奈半利町 | P41: 安芸郡田野町 | Q41: 安芸郡安田町 | R41: 安芸郡北川村 | S41: 安芸郡馬路村 | T41: 安芸郡芸西村 | U41: 長岡郡本山町 | V41: 長岡郡大豊町 | W41: 土佐郡土佐町 | X41: 土佐郡大川村 | Y41: 吾川郡いの町 | Z41: 吾川郡仁淀川町 | AA41: 高岡郡中土佐町 | AB41: 高岡郡佐川町 | AC41: 高岡郡越知町 | AD41: 高岡郡檮原町 | AE41: 高岡郡日高村 | AF41: 高岡郡津野町 | AG41: 高岡郡四万十町 | AH41: 幡多郡大月町 | AI41: 幡多郡三原村 | AJ41: 幡多郡黒潮町
B42: 福岡県2 | C42: 北九州市 | D42: 福岡市 | E42: 大牟田市 | F42: 久留米市 | G42: 直方市 | H42: 飯塚市 | I42: 田川市 | J42: 柳川市 | K42: 八女市 | L42: 筑後市 | M42: 大川市 | N42: 行橋市 | O42: 豊前市 | P42: 中間市 | Q42: 小郡市 | R42: 筑紫野市 | S42: 春日市 | T42: 大野城市 | U42: 宗像市 | V42: 太宰府市 | W42: 古賀市 | X42: 福津市 | Y42: うきは市 | Z42: 宮若市 | AA42: 嘉麻市 | AB42: 朝倉市 | AC42: みやま市 | AD42: 糸島市 | AE42: 那珂川市 | AF42: 糟屋郡宇美町 | AG42: 糟屋郡篠栗町 | AH42: 糟屋郡志免町 | AI42: 糟屋郡須惠町 | AJ42: 糟屋郡新宮町 | AK42: 糟屋郡久山町 | AL42: 糟屋郡粕屋町 | AM42: 遠賀郡芦屋町 | AN42: 遠賀郡水巻町 | AO42: 遠賀郡岡垣町 | AP42: 遠賀郡遠賀町 | AQ42: 鞍手郡小竹町 | AR42: 鞍手郡鞍手町 | AS42: 嘉穂郡桂川町 | AT42: 朝倉郡筑前町 | AU42: 朝倉郡東峰村 | AV42: 三井郡大刀洗町 | AW42: 三潴郡大木町 | AX42: 八女郡広川町 | AY42: 田川郡香春町 | AZ42: 田川郡添田町 | BA42: 田川郡糸田町 | BB42: 田川郡川崎町 | BC42: 田川郡大任町 | BD42: 田川郡赤村 | BE42: 田川郡福智町 | BF42: 京都郡苅田町 | BG42: 京都郡みやこ町 | BH42: 築上郡吉富町 | BI42: 築上郡上毛町 | BJ42: 築上郡築上町
B43: 佐賀県2 | C43: 佐賀市 | D43: 唐津市 | E43: 鳥栖市 | F43: 多久市 | G43: 伊万里市 | H43: 武雄市 | I43: 鹿島市 | J43: 小城市 | K43: 嬉野市 | L43: 神埼市 | M43: 神埼郡吉野ヶ里町 | N43: 三養基郡基山町 | O43: 三養基郡上峰町 | P43: 三養基郡みやき町 | Q43: 東松浦郡玄海町 | R43: 西松浦郡有田町 | S43: 杵島郡大町町 | T43: 杵島郡江北町 | U43: 杵島郡白石町 | V43: 藤津郡太良町
B44: 長崎県2 | C44: 長崎市 | D44: 佐世保市 | E44: 島原市 | F44: 諫早市 | G44: 大村市 | H44: 平戸市 | I44: 松浦市 | J44: 対馬市 | K44: 壱岐市 | L44: 五島市 | M44: 西海市 | N44: 雲仙市 | O44: 南島原市 | P44: 西彼杵郡長与町 | Q44: 西彼杵郡時津町 | R44: 東彼杵郡東彼杵町 | S44: 東彼杵郡川棚町 | T44: 東彼杵郡波佐見町 | U44: 北松浦郡小値賀町 | V44: 北松浦郡佐々町 | W44: 南松浦郡新上五島町
B45: 熊本県2 | C45: 熊本市 | D45: 八代市 | E45: 人吉市 | F45: 荒尾市 | G45: 水俣市 | H45: 玉名市 | I45: 山鹿市 | J45: 菊池市 | K45: 宇土市 | L45: 上天草市 | M45: 宇城市 | N45: 阿蘇市 | O45: 天草市 | P45: 合志市 | Q45: 下益城郡美里町 | R45: 玉名郡玉東町 | S45: 玉名郡南関町 | T45: 玉名郡長洲町 | U45: 玉名郡和水町 | V45: 菊池郡大津町 | W45: 菊池郡菊陽町 | X45: 阿蘇郡南小国町 | Y45: 阿蘇郡小国町 | Z45: 阿蘇郡産山村 | AA45: 阿蘇郡高森町 | AB45: 阿蘇郡西原村 | AC45: 阿蘇郡南阿蘇村 | AD45: 上益城郡御船町 | AE45: 上益城郡嘉島町 | AF45: 上益城郡益城町 | AG45: 上益城郡甲佐町 | AH45: 上益城郡山都町 | AI45: 八代郡氷川町 | AJ45: 葦北郡芦北町 | AK45: 葦北郡津奈木町 | AL45: 球磨郡錦町 | AM45: 球磨郡多良木町 | AN45: 球磨郡湯前町 | AO45: 球磨郡水上村 | AP45: 球磨郡相良村 | AQ45: 球磨郡五木村 | AR45: 球磨郡山江村 | AS45: 球磨郡球磨村 | AT45: 球磨郡あさぎり町 | AU45: 天草郡苓北町
B46: 大分県2 | C46: 大分市 | D46: 別府市 | E46: 中津市 | F46: 日田市 | G46: 佐伯市 | H46: 臼杵市 | I46: 津久見市 | J46: 竹田市 | K46: 豊後高田市 | L46: 杵築市 | M46: 宇佐市 | N46: 豊後大野市 | O46: 由布市 | P46: 国東市 | Q46: 東国東郡姫島村 | R46: 速見郡日出町 | S46: 玖珠郡九重町 | T46: 玖珠郡玖珠町
B47: 宮崎県2 | C47: 宮崎市 | D47: 都城市 | E47: 延岡市 | F47: 日南市 | G47: 小林市 | H47: 日向市 | I47: 串間市 | J47: 西都市 | K47: えびの市 | L47: 北諸県郡三股町 | M47: 西諸県郡高原町 | N47: 東諸県郡国富町 | O47: 東諸県郡綾町 | P47: 児湯郡高鍋町 | Q47: 児湯郡新富町 | R47: 児湯郡西米良村 | S47: 児湯郡木城町 | T47: 児湯郡川南町 | U47: 児湯郡都農町 | V47: 東臼杵郡門川町 | W47: 東臼杵郡諸塚村 | X47: 東臼杵郡椎葉村 | Y47: 東臼杵郡美郷町 | Z47: 西臼杵郡高千穂町 | AA47: 西臼杵郡日之影町 | AB47: 西臼杵郡五ヶ瀬町
B48: 鹿児島県2 | C48: 鹿児島市 | D48: 鹿屋市 | E48: 枕崎市 | F48: 阿久根市 | G48: 出水市 | H48: 指宿市 | I48: 西之表市 | J48: 垂水市 | K48: 薩摩川内市 | L48: 日置市 | M48: 曽於市 | N48: 霧島市 | O48: いちき串木野市 | P48: 南さつま市 | Q48: 志布志市 | R48: 奄美市 | S48: 南九州市 | T48: 伊佐市 | U48: 姶良市 | V48: 鹿児島郡三島村 | W48: 鹿児島郡十島村 | X48: 薩摩郡さつま町 | Y48: 出水郡長島町 | Z48: 姶良郡湧水町 | AA48: 曽於郡大崎町 | AB48: 肝属郡東串良町 | AC48: 肝属郡錦江町 | AD48: 肝属郡南大隅町 | AE48: 肝属郡肝付町 | AF48: 熊毛郡中種子町 | AG48: 熊毛郡南種子町 | AH48: 熊毛郡屋久島町 | AI48: 大島郡大和村 | AJ48: 大島郡宇検村 | AK48: 大島郡瀬戸内町 | AL48: 大島郡龍郷町 | AM48: 大島郡喜界町 | AN48: 大島郡徳之島町 | AO48: 大島郡天城町 | AP48: 大島郡伊仙町 | AQ48: 大島郡和泊町 | AR48: 大島郡知名町 | AS48: 大島郡与論町
B49: 沖縄県2 | C49: 那覇市 | D49: 宜野湾市 | E49: 石垣市 | F49: 浦添市 | G49: 名護市 | H49: 糸満市 | I49: 沖縄市 | J49: 豊見城市 | K49: うるま市 | L49: 宮古島市 | M49: 南城市 | N49: 国頭郡国頭村 | O49: 国頭郡大宜味村 | P49: 国頭郡東村 | Q49: 国頭郡今帰仁村 | R49: 国頭郡本部町 | S49: 国頭郡恩納村 | T49: 国頭郡宜野座村 | U49: 国頭郡金武町 | V49: 国頭郡伊江村 | W49: 中頭郡読谷村 | X49: 中頭郡嘉手納町 | Y49: 中頭郡北谷町 | Z49: 中頭郡北中城村 | AA49: 中頭郡中城村 | AB49: 中頭郡西原町 | AC49: 島尻郡与那原町 | AD49: 島尻郡南風原町 | AE49: 島尻郡渡嘉敷村 | AF49: 島尻郡座間味村 | AG49: 島尻郡粟国村 | AH49: 島尻郡渡名喜村 | AI49: 島尻郡南大東村 | AJ49: 島尻郡北大東村 | AK49: 島尻郡伊平屋村 | AL49: 島尻郡伊是名村 | AM49: 島尻郡久米島町 | AN49: 島尻郡八重瀬町 | AO49: 宮古郡多良間村 | AP49: 八重山郡竹富町 | AQ49: 八重山郡与那国町
B50: オンライン2 | C50: 講習

Sheet マスタ設定値（時間割） (hidden)
B1: 時間割
B3: 講習種別 | C3: 時間割パターン
B4: 甲種防火新規 | C4: 甲新1 | D4: 甲新2 | E4: 甲新3 | F4: 甲新4 | G4: 甲新5 | H4: 甲新6 | I4: 甲新7 | J4: 甲新10 | K4: 甲新11 | L4: 甲新12 | M4: 甲新13 | N4: 甲新14 | O4: 甲新15 | P4: 甲新16
B5: 乙種防火 | C5: 乙1 | D5: 乙2
B6: 甲乙同時 | C6: 甲乙10 | D6: 甲乙11 | E6: 甲乙12 | F6: 甲乙13 | G6: 甲乙14 | H6: 甲乙15 | I6: 甲乙16 | J6: 甲乙6 | K6: 甲乙8 | L6: 甲乙9
B7: 甲種防火再 | C7: 甲再1 | D7: 甲再2 | E7: 甲再3 | F7: 甲再4 | G7: 甲再5
B8: 防災新規 | C8: 防災新1 | D8: 防災新2 | E8: 防災新3 | F8: 防災新4 | G8: 防災新5
B9: 防災再
B10: 防火防災新規 | C10: 併催新1 | D10: 併催新2 | E10: 併催新3 | F10: 併催新4 | G10: 併催新5 | H10: 併催新6 | I10: 併催新7 | J10: 併催新8 | K10: 併催新9 | L10: 併催新10 | M10: 併催新11 | N10: 併催新12 | O10: 併催新13 | P10: 併催新14 | Q10: 併催新15 | R10: 併催新16
B11: 防火防災再 | C11: 併催再1 | D11: 併催再2 | E11: 併催再3

Sheet マスタ設定値（実技講師数） (hidden)
B1: 実技講師数
B3: 講習種別 | C3: 時間割 パターン | D3: 講師数パターン
B4: 甲種防火新規 | C4: 甲新1 | D4: 1 | E4: 2 | F4: 3
C5: 甲新2 | D5: 1 | E5: 2 | F5: 3
C6: 甲新3 | D6: 1 | E6: 2 | F6: 3
C7: 甲新4 | D7: 1 | E7: 2 | F7: 3
C8: 甲新5 | D8: 1 | E8: 2 | F8: 3
C9: 甲新6 | D9: 2 | E9: 3
C10: 甲新7 | D10: 3
B11: 乙種防火 | C11: 乙1
B12: 甲乙同時 | C12: 甲乙1
C13: 甲乙2
C14: 甲乙3
C15: 甲乙4
C16: 甲乙5
C17: 甲乙6 | D17: 1
B18: 防災新規 | C18: 防災新1
B19: 防火防災新規 | C19: 併催新1 | D19: 1
C20: 併催新2 | D20: 1
C21: 併催新3 | D21: 1
C22: 併催新4 | D22: 1
C23: 併催新5 | D23: 1
C24: 併催新6 | D24: 1

Sheet マスタ設定値（事務担当団体団体名称） (hidden)
B1: 都道府県ごとの事務担当団体
B2: No | C2: 都道府県 | D2: 委託団体
B3: 1 | C3: 北海道 | D3: （一財）日本防火・防災協会 | E3: （一社）北海道消防設備協会 | F3: （公財）札幌市防災協会
B4: 2 | C4: 青森県 | D4: （一財）日本防火・防災協会 | E4: （一社）青森県消防設備保守協会
B5: 3 | C5: 岩手県 | D5: （一財）日本防火・防災協会 | E5: （一財）岩手県防災保安協会
B6: 4 | C6: 宮城県 | D6: （一財）日本防火・防災協会 | E6: （一社）宮城県消防設備協会 | F6: （公社）仙台市防災安全協会
B7: 5 | C7: 秋田県 | D7: （一財）日本防火・防災協会 | E7: 秋田市防火安全協会
B8: 6 | C8: 山形県 | D8: （一財）日本防火・防災協会 | E8: （一社）山形県消防設備協会
B9: 7 | C9: 福島県 | D9: （一財）日本防火・防災協会 | E9: （一社）福島県消防設備協会
B10: 8 | C10: 茨城県 | D10: （一財）日本防火・防災協会 | E10: （一社）茨城県消防設備協会 | F10: 筑西広域防火管理協議会 | G10: 日立市防災協会
B11: 9 | C11: 栃木県 | D11: （一財）日本防火・防災協会 | E11: （一財）栃木県消防設備保安協会
B12: 10 | C12: 群馬県 | D12: （一財）日本防火・防災協会 | E12: （一社）群馬県消防設備協会
B13: 11 | C13: 埼玉県 | D13: （一財）日本防火・防災協会 | E13: （公社）さいたま市防火安全協会 | F13: （公社）川口市防火安全協会
B14: 12 | C14: 千葉県 | D14: （一財）日本防火・防災協会 | E14: （一社）千葉県消防設備協会
B15: 13 | C15: 東京都 | D15: （一財）日本防火・防災協会
B16: 14 | C16: 神奈川県 | D16: （一財）日本防火・防災協会 | E16: （一財）神奈川県消防設備安全協会 | F16: （公社）相模原市防災協会 | G16: （公財）川崎市消防防災指導公社
B17: 15 | C17: 新潟県 | D17: （一財）日本防火・防災協会 | E17: （一財）新潟県消防設備協会
B18: 16 | C18: 富山県 | D18: （一財）日本防火・防災協会 | E18: （一財）富山県消防設備保守協会
B19: 17 | C19: 石川県 | D19: （一財）日本防火・防災協会 | E19: 加賀市防火協会
B20: 18 | C20: 福井県 | D20: （一財）日本防火・防災協会 | E20: （一社）福井県消防設備協会 | F20: 若狭地区防火推進協会
B21: 19 | C21: 山梨県 | D21: （一財）日本防火・防災協会 | E21: （一社）山梨県消防設備協会
B22: 20 | C22: 長野県 | D22: （一財）日本防火・防災協会 | E22: 長野危険物・防火管理協会 | F22: 松本市防火管理協会 | G22: 塩尻市防火管理協会 | H22: 安曇野市・東筑防火管理者協議会 | I22: 松本広域防火管理連合会 | J22: 岳北地域防火管理協会 | K22: 岳南危険物・防火管理協会 | L22: 須高危険物・防火管理協会
B23: 21 | C23: 岐阜県 | D23: （一財）日本防火・防災協会 | E23: （一財）岐阜県消防設備協会
B24: 22 | C24: 静岡県 | D24: （一財）日本防火・防災協会
B25: 23 | C25: 愛知県 | D25: （一財）日本防火・防災協会 | E25: （一財）愛知県消防設備安全協会 | F25: （一財）名古屋消防技術センター
B26: 24 | C26: 三重県 | D26: （一財）日本防火・防災協会 | E26: （一財）三重県消防設備安全協会
B27: 25 | C27: 滋賀県 | D27: （一財）日本防火・防災協会 | E27: 大津市防火保安協会 | F27: 湖南防火保安協会 | G27: 彦根防火保安協会
B28: 26 | C28: 京都府 | D28: （一財）日本防火・防災協会 | E28: （一財）京都市防災協会
B29: 27 | C29: 大阪府 | D29: （一財）日本防火・防災協会 | E29: （一財）大阪府消防防災協会 | F29: 豊中防火安全協会 | G29: 池田市消防協会
B30: 28 | C30: 兵庫県 | D30: （一財）日本防火・防災協会 | E30: （一財）神戸住環境整備公社
B31: 29 | C31: 奈良県 | D31: （一財）日本防火・防災協会 | E31: （一社）奈良県防災安全協会
B32: 30 | C32: 和歌山県 | D32: （一財）日本防火・防災協会 | E32: （公財）和歌山県消防設備保守協会
B33: 31 | C33: 鳥取県 | D33: （一財）日本防火・防災協会 | E33: 鳥取県東部危険物保安協会 | F33: 米子地区防火安全協会
B34: 32 | C34: 島根県 | D34: （一財）日本防火・防災協会 | E34: （一社）島根県消防設備協会
B35: 33 | C35: 岡山県 | D35: （一財）日本防火・防災協会 | E35: （一社）岡山県消防設備協会
B36: 34 | C36: 広島県 | D36: （一財）日本防火・防災協会 | E36: （一財）広島県消防設備協会
B37: 35 | C37: 山口県 | D37: （一財）日本防火・防災協会 | E37: （一財）山口県消防設備協会 | F37: 下関市防災協会 | G37: 宇部・山陽小野田防災協会
B38: 36 | C38: 徳島県 | D38: （一財）日本防火・防災協会 | E38: （一財）徳島県消防設備協会
B39: 37 | C39: 香川県 | D39: （一財）日本防火・防災協会 | E39: （一社）香川県消防設備協会
B40: 38 | C40: 愛媛県 | D40: （一財）日本防火・防災協会 | E40: （一財）愛媛県消防設備協会
B41: 39 | C41: 高知県 | D41: （一財）日本防火・防災協会 | E41: （一社）高知県消防設備協会
B42: 40 | C42: 福岡県 | D42: （一財）日本防火・防災協会 | E42: （一財）福岡県消防設備安全協会
B43: 41 | C43: 佐賀県 | D43: （一財）日本防火・防災協会 | E43: （一社）佐賀県消防設備安全協会
B44: 42 | C44: 長崎県 | D44: （一財）日本防火・防災協会 | E44: （一財）長崎県消防設備協会
B45: 43 | C45: 熊本県 | D45: （一財）日本防火・防災協会 | E45: 熊本市防災協会
B46: 44 | C46: 大分県 | D46: （一財）日本防火・防災協会 | E46: （一財）大分県消防設備安全協会
B47: 45 | C47: 宮崎県 | D47: （一財）日本防火・防災協会 | E47: （一財）宮崎県消防設備協会
B48: 46 | C48: 鹿児島県 | D48: （一財）日本防火・防災協会 | E48: （一社）鹿児島県消防設備安全協会
B49: 47 | C49: 沖縄県 | D49: （一財）日本防火・防災協会 | E49: （一社）沖縄県消防設備協会
B50: 48 | C50: オンライン | D50: （一財）日本防火・防災協会

Sheet ※入力禁止※マスタ設定値（会場）
B1: 都道府県ごとの会場
B2: No | C2: 都道府県 | D2: 会場名
B3: 1 | C3: 北海道 | D3: 新規会場（シート入力必須） | E3: ＮＰＯ法人空知文化工房 たきかわ文化センター | F3: まなみーる岩見沢市民会館・文化センター（音楽室） | G3: 伊達市消防防災センター（３階防災教育ホール） | H3: 花川北コミュニティセンター | I3: 釧路市生涯学習センター（学習室７０５・７０６） | J3: 釧路市生涯学習センター（多目的ホール） | K3: 釧路町公民館 | L3: 江別市民会館（小ホール） | M3: 根室北部消防事務組合中標津消防署（２階講堂） | N3: 砂川地区広域消防組合 砂川消防署（２階研修ホール） | O3: 士別市民文化センター（研修室） | P3: 室蘭市市民会館（２階会議室） | Q3: 千歳市民文化センター 北ガス文化ホール（３階視聴覚室） | R3: 千歳市民文化センター 北ガス文化ホール（４階大会議室） | S3: 登別市民会館（中ホール） | T3: 島松公民館（集会室） | U3: 北海道建設会館 中会議室 | V3: 北見市端野町公民館（多目的ホール） | W3: 北見市民会館 小ホール | X3: 北広島市ふれあい学習センター 夢プラザ | Y3: 札幌市白石消防署 ４階講堂 | Z3: 名寄市民文化センター | AA3: だて歴史の杜カルチャーセンター 大ホール | AB3: 北海道建設会館 大会議室 | AC3: 苫小牧市民会館 小ホール | AD3: 中標津町総合文化会館「しるべっと」 第１研修室 | AE3: 恵庭市民会館 中ホール | AF3: 農村環境改善センター | AG3: 北海道自治労会館 | AH3: 函館市民会館 小ホール | AI3: 滝川市農村環境改善センター | AJ3: 北広島市芸術文化ホール 活動室１・２ | AK3: 北斗市総合文化センター 大会議室 | AL3: 砂川市地域交流センターゆう | AM3: 函館市亀田交流プラザ | AN3: 滝川市民交流プラザ 小ホール | AO3: 中標津町総合文化会館「しるべっと」コミュニティホール | AP3: 函館市民会館 大会議室 | AQ3: イオンモール旭川駅前「イオンホール」 | AR3: 富良野市複合庁舎 文化会館 会議室Ａ、Ｂ
B4: 2 | C4: 青森県 | D4: 新規会場（シート入力必須） | E4: 青森国際ホテル | F4: アピオあおもり | G4: 青森県観光物産館アスパム
B5: 3 | C5: 岩手県 | D5: 新規会場（シート入力必須） | E5: あえりあ遠野 | F5: ベリーノホテル一関 | G5: 奥州市文化会館 Ｚホール | H5: 釜石・大槌地域産業育成センター | I5: いわて県民情報交流センター アイーナ会議室８０２ | J5: いわて県民情報交流センター アイーナ会議室８０３ | K5: いわて県民情報交流センター アイーナ会議室８０４ | L5: 岩手産業文化センター アピオ | M5: 久慈市防災センター | N5: 宮古市民文化会館 | O5: 建設研修センター ３階大ホール | P5: 二戸市民文化会館 | Q5: 北上市文化交流センター さくらホール | R5: 遠野市総合防災センター | S5: 岩手県高校教育会館 | T5: 平泉ホテル武蔵坊 | U5: ＪＡいわて花巻 和賀町・岩崎・横川目支店２階大ホール | V5: 岩手日報社一関ビル ２階会議室 | W5: 岩手日報一関ビル ２階会議室
B6: 4 | C6: 宮城県 | D6: 新規会場（シート入力必須） | E6: イオンモール名取 ３階 イオンホール | F6: 岩沼消防署 ３階会議室 | G6: 気仙沼市本吉公民館 ２階視聴覚室 | H6: 宮城県管工事会館 ９階大会議室 | I6: 栗原市消防庁舎 ３階大会議室 | J6: 仙南地域広域消防本部 ３階講堂 | K6: 大崎建設産業会館 ２階大会議室 | L6: 大和町まほろばホール １階大会議室 | M6: 東松島市コミュニティセンター ２階会議室 | N6: 名取市文化会館 ３階小ホール | O6: 亘理町立図書館 ３階視聴覚ホール | P6: 塩釜商工会議所 会議室 | Q6: 多賀城消防署 会議室 | R6: 石巻地区広域消防本部 ２階会議室 | S6: フォレスト仙台 フォレストホール | T6: イオンモール新利府 南館 ３階 イオンホール | U6: 岩沼市民会館 中ホール | V6: 登米市豊里公民館 中ホール | W6: 富谷市総合運動公園富谷武道館 | X6: フォレスト仙台 第２フォレストホール | Y6: 亘理町農村環境改善センター（吉田公民館） | Z6: あぶくま消防本部 ３階会議室
B7: 5 | C7: 秋田県 | D7: 新規会場（シート入力必須） | E7: プラザ杉の子 ３階 飛天の間 | F7: プラザ杉の子 ２階 芙蓉の間 | G7: 大館市立中央公民館 視聴覚ホール | H7: 秋田県生涯学習センター | I7: 秋田しらかみ看護学校 大講堂 | J7: 秋田県総合保健センター 大会議室 | K7: 秋田県総合保険センター 第一研修室
B8: 6 | C8: 山形県 | D8: 新規会場（シート入力必須） | E8: 最上広域交流センターゆめりあ ２階会議室 | F8: 山形ビッグウイング ２階大会議室 | G8: 山形ビッグウイング ４階研修室 | H8: 山形ビッグウイング ４階中会議室 | I8: 酒田勤労者福祉センター ３階多目的ホール | J8: 長井市置賜生涯学習プラザ ２階大研修室 | K8: 鶴岡市朝暘武道館 ２階会議室 | L8: 米沢市すこやかセンター ２階大会議室 | M8: 飯豊町町民総合センター「あ～す」 | N8: 鶴岡市勤労者会館 １階大ホール | O8: 鶴岡市勤労者会館 | P8: シェルターなんようホール 小ホール | Q8: 長井市民文化会館 大会議室 | R8: 希望ホール（酒田市民会館） 小ホール | S8: 酒田地区広域行政組合消防本部 ２階会議室
B9: 7 | C9: 福島県 | D9: 新規会場（シート入力必須） | E9: いわき新舞子ハイツ 多目的ホール | F9: ビッグパレットふくしま ３階 中会議室 | G9: 郡山ユラックス熱海 ２階 大会議室 | H9: 須賀川市民温泉 ２階 大会議室 | I9: 東京第一ホテル新白河 ２階 富士の間 | J9: 南東北総合卸センター ２階 中会議室 | K9: 福島県文化センター ２階 会議室兼展示室 | L9: コラッセふくしま ４０２ＡＢ | M9: 南東北総合卸センター １階 イベントホール | N9: 西郷村文化センター １階 大研修室 | O9: ほっとあたみ | P9: ザ・セレクトン福島 | Q9: 福島トヨタクラウンアリーナ（国体記念体育館） 研修室 | R9: 福島県青少年会館 大研修室 | S9: 裏磐梯レイクリゾート | T9: 裏磐梯レイクリゾート
B10: 8 | C10: 茨城県 | D10: 新規会場（シート入力必須） | E10: つくば市茎崎交流センター ２階大会議室 | F10: ワークプラザ勝田 大会議室 | G10: 茨城みなみ農協グリーンパレスふじしろ ３階大会議室 | H10: 茨城県トラック総合会館（見川町） 研修室１ | I10: 茨城県建設技術研修センター ３階 大ホール | J10: 茨城職業能力開発促進センター（ポリテクセンター茨城）１階会議室１ | K10: 結城市民情報センター 多目的ホール | L10: 結城市民文化センターアクロス 小ホール | M10: 結城市民文化センターアクロス 展示室 | N10: 茨城県建設技術研修センター２階 研修室２ | O10: 茨城職業能力開発促進センター（ポリテクセンター茨城）２階 研修室３・４ | P10: 日立地区産業支援センター 大研修室 | Q10: カスミつくばセンター ２Ｆ 第１研修室 | R10: イーアスつくば ２Ｆ イーアスホール | S10: 茨城職業能力開発促進センター（ポリテクセンター茨城） ２階 研修室４ | T10: 取手市立福祉会館 ３階講座室ＡＢ | U10: 茨城県立海洋高等学校 特別棟２Ｆ 視聴覚室 | V10: 日立市消防本部 ３階講堂 | W10: ふれあいの里 石岡 ひまわりの館 ふれあいホール | X10: トヨペットスマイルホール大洗（大洗文化センター） 大会議室 | Y10: イオンモールつくば | Z10: 茨城町消防本部 多目的会議室 | AA10: イオンモール水戸内原 専門店街２階 イオンホールＢ | AB10: 大昭ホール龍ケ崎 小ホール | AC10: つくば市役所 コミュニティ棟 会議室１．２．３ | AD10: 小美玉市四季文化館 みの～れ 小ホール | AE10: 常陸大宮市文化センター 小ホール
B11: 9 | C11: 栃木県 | D11: 新規会場（シート入力必須） | E11: 佐野市勤労者会館 ２階 ＡＢＣ会議室 | F11: 鹿沼市民文化センター 大会議室 | G11: 小山商工会議所 ４階大会議室 | H11: 真岡市公民館 | I11: 真岡市青年女性会館 | J11: 壬生町中央公民館 中ホール | K11: あしかがフラワーパークプラザ（足利市民プラザ） 西館 小ホール | L11: 大田原市金田北地区公民館 多目的ホール | M11: 栃木県自治会館 ４階 大会議室 | N11: 栃木市国府公民館 大交流室 | O11: 那須町文化センター 小ホール | P11: 二宮コミュニティーセンター ２階研修室 | Q11: 日光市大沢公民館 会議室１・２・３ | R11: 矢板市文化会館 小ホール | S11: 片岡公民館 コミュニティホール | T11: 栃木県総合文化センターギャラリー棟 ３階 特別会議室 | U11: 真岡市公民館 二宮分館 ２０６・２０７会議室 | V11: 真岡市生涯学習館 多目的室 | W11: さくら市喜連川公民館 ２階 ホール
B12: 10 | C12: 群馬県 | D12: 新規会場（シート入力必須） | E12: バイテック文化ホール（中之条町文化会館）大会議室 | F12: 伊勢崎市民プラザ 本館２Ｆ 第１・２研修室 | G12: 館林市文化会館 ２Ｆ 小ホール | H12: 吉岡町文化センター ２Ｆ研修室 | I12: 桐生市市民文化会館 ４Ｆ スカイホール | J12: 群馬県勤労福祉センター ３Ｆ 第１・２会議室 | K12: 高崎市労使会館 ３Ｆ ホール | L12: 高崎市労使会館 第３・４会議室 | M12: 諏訪神社 会館 | N12: 太田市社会教育総合センター ４Ｆ レクリェーション室 | O12: 富岡市生涯学習センター ３Ｆ 第１・２会議室 | P12: 利根沼田文化会館 第１・２・３会議室 | Q12: 伊勢崎市文化会館 ２階 大会議室 | R12: 渋川市民会館 小ホール | S12: 地域づくりセンター藤岡（藤岡公民館） ３階 大会議室 | T12: 太田市産業支援センター | U12: 伊勢崎商工会議所 大ホール | V12: ビエント高崎 ６階 | W12: 館林地区消防組合 | X12: 太田市学習文化センター | Y12: 高崎市市民活動センターソシアス
B13: 11 | C13: 埼玉県 | D13: 新規会場（シート入力必須） | E13: アリオ深谷（上柴公民館） 大会議室２ | F13: さいたま市宇宙劇場 第１・２集会室 | G13: パストラル加須 加須市文化・学習センター 展示室 | H13: マインループ１Ｆ（駅前） 八潮メセナ・アネックス 多目的ホール | I13: やすなビル ハイディ日高研修室 | J13: ワークヒルズ羽生 大会議室 | K13: 越谷市中央市民会館 ５階 ４・５・６会議室 | L13: 吉川市中央公民館 | M13: 戸田市文化会館 ３０４会議室 | N13: 江南総合文化会館ピピア １階 会議室ＡＢ | O13: 鴻巣市文化センター（クレアこうのす） 大会議室ＡＢ | P13: 埼玉県県民活動センター ２１０セミナー室 | Q13: 埼玉県農業共済会館 ４階 | R13: 三郷市文化会館 大会議室 | S13: 春日部市民文化会館 ３階 大会議室 | T13: あげお富士住建ホール（上尾市文化センター）３０１集会室 | U13: 川越地区消防組合 川越中央消防署 ３階 講堂 | V13: 川口総合文化センター・リリア １１階 大・中会議室 | W13: 川口総合文化センター・リリア １１階 大会議室 | X13: 草加市文化会館 第１会議室 | Y13: 吉川市民交流センターおあしす 多目的ホール | Z13: 深谷市花園文化会館アドニス | AA13: イオンモール春日部 ３階イオンホール | AB13: 羽生市民プラザ 大会議室 | AC13: さいたま市防災センター４階 | AD13: 川口総合文化センター・リリア １階 展示ホール | AE13: コミュニティプラザ・コルソ コルソホール | AF13: 深谷市男女共同参画推進センター（Ｌ・フォルテ） ハナミズキ | AG13: 日本流通未来教育センター ２０１研修室 | AH13: ららぽーと新三郷 ミーティングルーム | AI13: 大宮ソニックシティ ４階市民ホール | AJ13: 行田市総合体育館 行田グリーンアリーナ 研修室 | AK13: ＪＡひびきの本店 ひびきのホール | AL13: サンデンコミュニケーションプラザ プラザホール | AM13: ＪＡ共済埼玉ビル ３階 第一会議室 | AN13: 与野本町コミュニティセンター １階多目的ホール（大） | AO13: 早稲田リサーチパーク・コミュニケーションセンター レクチャールーム１ | AP13: 所沢市松井まちづくりセンター ホール | AQ13: 入曽地域交流センター（大ホール・コミュニティルーム２） | AR13: 所沢市新所沢まちづくりセンター ホール | AS13: 埼玉西部消防組合 飯能日高消防署 （屋内訓練場） | AT13: 入間市産業文化センター 第２集会室ＡＢ | AU13: 日高市生涯学習センター（視聴覚室、会議室） | AV13: 川越市南文化会館 第１・２会議室 | AW13: 川越市西文化会館 第１・２会議室 | AX13: 志木市民会館 ２０３．２０４．２０５会議室 | AY13: 新座市民会館 第１・第２会議室 | AZ13: 新狭山ホテル ２階 カトレア＆アイリス | BA13: 飯能市市民会館 ２０２会議室 | BB13: 戸田市商工会館 ３階 大会議室 | BC13: 西武文理大学 ８号館 ４０１大教室 | BD13: 朝霞市民会館 ２０１会議室 | BE13: 立教大学新座キャンパス | BF13: 朝霞市産業文化センター 研修室１～３ | BG13: パストラル加須 加須市文化・学習センター 多目的室 | BH13: 入間東部地区事務組合 ４階 大講堂 | BI13: 越谷市中央市民会館４階１３・１４・１５・１６会議室 | BJ13: 川口商工会議所７階会議室（川口センタービル内） | BK13: イオンモール川口前川２階サイボーホール | BL13: 本庄市児玉文化会館セルディ 大会議室 | BM13: ふじみ野市立市民交流プラザ 多目的ホール | BN13: 埼玉県産業技術総合センター１階多目的ホール（ＳＫＩＰシティ内） | BO13: 所沢市民文化センターミューズ 管理棟第２展示室 | BP13: 秩父宮記念市民会館けやきフォーラム | BQ13: 所沢商工会議所 会議室１・２ | BR13: ふれあいセンター久喜 会議室１・２・３ | BS13: 三郷市鷹野文化センター 大会議室Ａ．Ｂ | BT13: 志木市民会館 仮設会議室２．３ | BU13: 独立行政法人国立女性教育会館 研修棟１１０ | BV13: 坂戸市文化会館 第１会議室
B14: 12 | C14: 千葉県 | D14: 新規会場（シート入力必須） | E14: サンプラザ市原 ９階 研修室１・２ | F14: ホテル一宮シーサイドオーツカ | G14: モリシアホール 多目的ホール | H14: 浦安商工会議所 ３階大会議室 | I14: 我孫子南近隣センター（けやきプラザ）９階 | J14: 館山市コミュニティセンター １階第１集会室 | K14: 君津市生涯学習交流センター 多目的ホール | L14: 佐原中央公民館 | M14: 佐倉市立中央公民館 研修室２ | N14: 四街道市南部総合福祉センター（わろうべの里） | O14: 市原市勤労会館（ＹＯＵホール）多目的ホール | P14: 松戸商工会議所 ４階中会議室 | Q14: 松戸商工会議所 ５階大会議室 | R14: 成田国際文化会館 １階小ホール | S14: 成田国際文化会館 ２階国際会議室 | T14: 生涯学習推進センター（かまがやまなびぃプラザ）３階研修室１ | U14: 船橋市消防局 ５階講堂 | V14: 袖ヶ浦市民会館 ３階中ホール | W14: 柏商工会議所 | X14: 八千代市市民会館 会議室 | Y14: 八千代台東南公共センター ５階 ホール | Z14: 富津市消防防災センター 会議室第１・２ | AA14: 平岡自然の家 | AB14: 木更津市民総合福祉会館 １階市民ホール | AC14: 野田市役所 ８階大会議室 | AD14: 流山市南流山センター ２階大ホール | AE14: 中央公民館 第３・第４集会室 | AF14: 松戸市民会館 ２０１会議室 | AG14: 松戸市民会館 ３０１会議室 | AH14: 習志野台公民館 ３階講堂 | AI14: 佐倉市立中央公民館 学習室３ | AJ14: 坪井公民館 １階講堂 | AK14: 二和公民館 ２階講堂 | AL14: 茂原市総合市民センター ４階 大ホール | AM14: 銚子市市民センター | AN14: 高根台公民館 ４階講堂 | AO14: 浜町公民館 | AP14: 東部公民館 | AQ14: 薬円台公民館 ２階講堂 | AR14: 西部公民館 ３階講堂 | AS14: 東葛テクノプラザ 第二研修室 | AT14: トーセイホテル＆セミナー幕張 | AU14: 五井会館４階大ホール | AV14: 佐倉市立中央公民館 大ホール | AW14: ららぽーと柏の葉 ２階 ミーティングルーム | AX14: さわやかちば県民プラザ ３階 大研修室 | AY14: 富津市民会館 | AZ14: イオンモール幕張新都心 グランドモール３Ｆ イオンホール | BA14: 千葉県西部防災センター | BB14: 本埜公民館 ２階 視聴覚室 | BC14: 四街道市文化センター ２０１・２０２会議室 | BD14: いいおかユートピアセンター | BE14: 野田市中央公民館 講堂 | BF14: 酒々井町中央公民館 １階講堂 | BG14: 木更津市中央公民館（アクア木更津Ｂ館３階） 多目的ホール | BH14: 富津市市役所 ５階 ５０２～５０４会議室 | BI14: 日の出公民館 ４階大集会室 | BJ14: 我孫子市民プラザ 多目的ホール | BK14: 国際医療福祉大学 成田キャンパス ＥＡ棟４階 大講義室２ | BL14: 内みのわ運動公園市民体育館視聴覚室 | BM14: 八日市場公民館 ３階 大会議室 | BN14: 浦安市美浜公民館 大集会室 | BO14: 浦安市中央公民館 大集会室 | BP14: イオンモール幕張新都心 グランドモール３Ｆ 会議室Ａ・Ｂ | BQ14: 市原青少年会館 集会室 | BR14: 市原市ゼットエー武道場 大道場 | BS14: ららぽーとＴＯＫＹＯ－ＢＡＹ 南館１Ｆ コミュニティルーム | BT14: 国際医療福祉大学 成田キャンパス Ｅ棟２階 特大講義室２ | BU14: 国際医療福祉大学 成田キャンパス Ｅ棟２階 特大講義室１ | BV14: みんなの賑わい交流拠点コンパス ３階研修室 | BW14: 勝浦市芸術文化交流センター（キュステ） ホール | BX14: ふれあいセンターいんば | BY14: 国際医療福祉大学 成田キャンパス | BZ14: 印西市立中央駅前地域交流館 １号館２階会議室１・２ | CA14: 八千代市総合生涯学習プラザ ２階多目的ホール | CB14: 船橋市消防局 ５階 講堂 | CC14: 流山市生涯学習センター ４階大会議室 | CD14: プラッツ習志野（中央公民館） 北館１階 集会室 | CE14: ゼットエー武道場 会議室 | CF14: 全日警ホール（市川市八幡市民会館） 第３会議室 | CG14: 流山市中央公民館 第２会議室 | CH14: 東金文化会館 会議室２ | CI14: 平岡自然の家 研修室
B15: 13 | C15: 東京都 | D15: 新規会場（シート入力必須） | E15: ＪＲ品川イーストビル８階ゼンショーホールディングス大会議室 | F15: 日本消防会館 ５階大会議室 | G15: 品川インターシティ 貸会議室 ㈱はま寿司企業講習 | H15: ＴＫＰ新橋カンファレンスセンター １４階 ホール１４Ｅ | I15: ベルサール御成門タワー | J15: タリーズコーヒージャパン株式会社 | K15: ビジョンセンター永田町 ８階 ８０１ＡＢ | L15: ホテルルポール麹町 | M15: ビジョンセンター神田小川町 ２０３号室 | N15: ビジョンセンター永田町 ６Ｆ ビジョンホール | O15: ビジョンセンター永田町８階 ８０３ | P15: 会場未定 | Q15: 池上会館 ２階 集会室 | R15: ビジョンセンター田町 ５Ｆ ビジョンホール | S15: 浜町センタービル １１階
B16: 14 | C16: 神奈川県 | D16: 新規会場（シート入力必須） | E16: ヴェルクよこすか（勤労福祉会館）６階ホール | F16: ヴェルクよこすか（勤労福祉会館）第１会議室 | G16: かわさき保育会館（大会議室） | H16: サニープレイス座間（市立総合福祉センター） ２階多目的室 | I16: シンコースポーツ寒川アリーナ（寒川総合体育館）１階多目的室 | J16: ボーノ相模大野サウスモール３階 ユニコムプラザさがみはら | K16: レンブラントホテル海老名 ３Ｆ ラローズ | L16: レンブラントホテル厚木 ２階 暁紅 | M16: 愛川町文化会館 ３階大会議室 | N16: 綾瀬市中央公民館 ３階講堂（綾瀬市オーエンス文化会館内） | O16: 学校法人鎌倉女子大学 大船キャンパス ２－Ａ教室 | P16: 茅ヶ崎市役所分庁舎 ６階茅ヶ崎市コミュニティホール | Q16: 産業能率大学 湘南キャンパス | R16: 小田原アリーナ 研修室 | S16: 湘南ステーションビルラスカ平塚 ６階ラスカホール | T16: 秦野市文化会館 １階 展示室 | U16: 川崎日航ホテル １１階 | V16: 川崎日航ホテル １２階 | W16: 大和市渋谷学習センター ２階２０１多目的ホール | X16: 大和市渋谷学習センター ３階３０４講習室 | Y16: 藤沢市民会館 ２階 第一展示ホール | Z16: 藤沢市民会館 １階第二会議室 | AA16: 茅ヶ崎市民文化会館 ４階大会議室 | AB16: ウェルシティ市民プラザ ５階横須賀市生涯学習センター 大学習室 | AC16: ウェルシティ市民プラザ ５階横須賀市生涯学習センター 第１学習室 | AD16: 海老名市文化会館 ３階３５１～３５３多目的室 | AE16: おだわら市民交流センター（ＵＭＥＣＯ） １階会議室１・２・３ | AF16: おだわら市民交流センター（ＵＭＥＣＯ） １階会議室１・２ | AG16: 国民生活センター | AH16: 国民生活センター | AI16: 会館とどろき | AJ16: （株）クリエイトエス・ディー ４０１会議室 | AK16: 相模原教育会館 | AL16: 川崎市産業振興会館 １階 ホール | AM16: レンブラントホテル厚木 ３階 相模 | AN16: 川崎市消防局 ４階 講堂 | AO16: 川崎市産業振興会館 ４階展示場 | AP16: 川崎市コンベンションホール ホールＡ＋Ｂ | AQ16: 座間市消防本部（４階）多目的会議室 | AR16: 伊勢原市コミュニティ防災センター | AS16: 藤沢市南消防署 | AT16: ビジョンセンター横浜 ３Ｆ ３０７室 | AU16: 平塚市商工会議所 大ホール | AV16: 伊藤研修センター ３０１室 | AW16: 伊勢原市中央公民館 展示ホール（１階） | AX16: かわさき保育会館（第５会議室） | AY16: 厚木市荻野運動公園 会議室Ａ．Ｂ | AZ16: ハウススクエア横浜 ４階 セミナールームＡ | BA16: アトレ川崎 研修室（４階） | BB16: カルッツかわさき 会議室１～４ | BC16: 綾瀬市消防本部 ３階講堂 | BD16: ＴＫＰガーデンシティＰＲＥＭＩＵＭ横浜ランドマークタワー | BE16: 本町公民館 ２階多目的ホール | BF16: まいばすけっと川崎事務所 | BG16: 平塚市勤労会館 大会議室 | BH16: ビナレッジ ホール
B17: 15 | C17: 新潟県 | D17: 新規会場（シート入力必須） | E17: 佐渡市消防本部 ２Ｆ 多目的ホール | F17: 新潟ユニゾンプラザ ４階 大研修室 | G17: 新潟ユニゾンプラザ ５階 中研修室 | H17: 新潟ユニゾンプラザ ４階 大会議室 | I17: 富山県総合運動公園 富山県陸上競技場 会議室１Ａ・Ｂ | J17: 新潟ユニゾンプラザ ５階 特別会議室
B18: 16 | C18: 富山県 | D18: 新規会場（シート入力必須） | E18: アイザック小杉文化ホール ラポール 研修室１ | F18: 高岡市生涯学習センター（ウイング・ウイング高岡） ４階ホール | G18: 高岡市生涯学習センター（ウイング・ウイング高岡） ５階 研修室５０３ | H18: 黒部市国際文化センター コラーレ マルチホール | I18: 新川文化ホール 第３・４展示ホール | J18: 富山県市町村会館 ２階ホール | K18: 富山県農協会館 ８階 大ホール | L18: 入善町消防防災センター（入善消防署） | M18: 富山県農協会館 ８０１会議室 | N18: 自治労とやま会館 大会議室３０１、３０２ | O18: 南砺市福野体育館 会議室１・２ | P18: クロスベイ新湊 ２階ｉＣＮホール | Q18: 富山県トラック会館 ３階研修室 | R18: 救急薬品市民交流プラザ（ＱＱＰｌａｚａ）ふれあいホール
B19: 17 | C19: 石川県 | D19: 新規会場（シート入力必須） | E19: アビオシティ加賀 アビオシティホール | F19: イオンモール新小松 ３階イオンホール | G19: 根上総合文化会館 小ホール | H19: 加賀市市民会館 ３階大ホール | I19: 辰口福祉会館 交流ホール | J19: 津幡町文化会館シグナス ３階 多目的室１・２・３ | K19: 矢田郷地区コミュニティセンター ２階視聴覚室 | L19: 白山市民交流センター ５階 大会議室 | M19: 日本航空高等学校石川 高校校舎 ４階 視聴覚教室 | N19: 金沢市消防局 ２階 防災センター | O19: 石川県地場産業振興センター コンベンションホール | P19: 白山松任文化会館 ピーノ ４０１研修室 | Q19: イオンモール白山 イオンホール | R19: 七尾市勤労者総合福祉センター 多目的ホール | S19: 輪島市文化会館 ３０１会議室 | T19: 加賀市消防本部 ３階 第２会議室 | U19: 小松商工会議所 ３０１～３０２号室 | V19: 小松商工会議所 ３０１～３０２号室 | W19: 内灘町消防本部 ２階 会議室 | X19: 矢田郷地区コミュニティセンター 多目的ホール | Y19: 学びの杜ののいちカレード 研修室 | Z19: 石川県地場産業振興センター 第１研修室 | AA19: セミナーハウスあいりす | AB19: 根上総合文化会館 円形ホール | AC19: 白山市鶴来総合文化会館クレイン 第１～第３研修室 | AD19: 白山市民交流センター 大会議室 | AE19: 石川県地場産業振興センター２階 第１研修室 | AF19: 辰口福祉会館 多目的ホール | AG19: 石川県地場産業振興センター 第２研修室
B20: 18 | C20: 福井県 | D20: 新規会場（シート入力必須） | E20: 福井県中小企業産業大学校 １階 大教室 | F20: 福井県中小企業産業大学校 １階 第１中教室 | G20: 福井県中小企業産業大学校 １階 特別教室 | H20: 若狭消防組合消防本部 | I20: 小浜市働く婦人の家 | J20: プラザ萬象 大ホール | K20: 福井県産業会館 本館展示場 | L20: 鯖江市嚮陽会館 大会議室 | M20: 越前市勤労福祉会館 | N20: 越前市労働福祉会館
B21: 19 | C21: 山梨県 | D21: 新規会場（シート入力必須） | E21: 山梨県自治会館 １階講堂 | F21: 山梨県電気会館 ２階大研修室 | G21: 大月市民会館 ３階講堂 | H21: 山梨県立男女共同参画推進センター（ぴゅあ総合） ２階大研修室
B22: 20 | C22: 長野県 | D22: 新規会場（シート入力必須） | E22: 長野市ふれあい福祉センター ５階ホール | F22: 長野市生涯学習センター ４階大学習室１ | G22: 長野市生涯学習センター ４階大学習室２・３ | H22: 池の平ホテル＆リゾーツ | I22: 松本市総合社会福祉センター ４階 大会議室 | J22: イオンモール松本 風庭２Ｆ イオンホール | K22: 須坂市文化会館 メセナホール 小ホール | L22: 飯山市公民館 | M22: 中野市中央公民館 | N22: おかや総合福祉センター 諏訪湖ハイツ ２階 大会議室 | O22: 松本市総合社会福祉センター ４階 大会議室 | P22: 山ノ内町文化センター | Q22: 松本市勤労者福祉センター ３－３会議室
B23: 21 | C23: 岐阜県 | D23: 新規会場（シート入力必須） | E23: 岐阜県シンクタンク庁舎 ５階 大会議室 | F23: 岐阜県福祉・農業会館 ２階 大会議室 | G23: ゲンキー（株）物流センター（岐阜安八ＲＰＤＣ）２Ｆ会議室 | H23: イオンモール土岐 ２階 イオンホール | I23: 大垣市情報工房 スインクホール | J23: バロー文化ホール 大会議室 | K23: 中津川市ひと・まちテラス １０１会議室 | L23: 土岐市文化プラザ ルナホール | M23: 恵那市消防本部３階 防災研修センター | N23: 土岐市立駄知公民館（啓明舎） | O23: 瑞浪市総合文化センター
B24: 22 | C24: 静岡県 | D24: 新規会場（シート入力必須） | E24: プラサヴェルデ ３階ホールＢ | F24: 伊東市観光会館 別館 | G24: 下田市民文化会館 １階小ホール | H24: 湖西市西部地域センター ２階講座室 | I24: 御殿場市・小山町広域行政組合消防本部 ３階会議室 | J24: 静岡県産業経済会館 大会議室 | K24: 静岡県産業経済会館 第一会議室 | L24: 長岡総合会館（ＡＸＩＳかつらぎ）２階多目的ホール | M24: 熱海市役所 ４階 第１・２会議室 | N24: 磐田市文化振興センター 大会議室 | O24: 磐田市竜洋体育センター 研修室 | P24: 富士山南東消防本部 ３階消防センター | Q24: 竜洋なぎの木会館 講義室 | R24: 静岡コンベンションアーツセンター グランシップ 会議室1001-2 | S24: 富士山南東消防本部 裾野消防署 ３階災害対策室 | T24: ｉプラザ（アイプラザ） ふれあい交流室 | U24: 袋井南コミュニティセンター ホール | V24: 磐田市消防庁舎 | W24: 静岡市民文化会館大会議室 | X24: ペアステージノイ | Y24: 御殿場市民会館 第７会議室 | Z24: レイアップビル御幸町ＣＳＡ貸会議室会場６Ｄ６Ａ | AA24: レイアップビル御幸町ＣＳＡ貸会議室会場６Ｄ６Ａ | AB24: 磐田市福田支所 | AC24: 静岡労政会館（静岡県勤労者総合会館６階ホール） | AD24: 富士宮市民文化会館 小ホール | AE24: 御殿場市民交流センターふじざくら交流ホール | AF24: 静岡県男女共同参画センター「あざれあ」大会議室 | AG24: 三島市民文化会館 ３階大会議室 | AH24: 裾野市民文化センター３階 ３４・３５・３６会議室 | AI24: 沼津北消防署 ２階大会議室 | AJ24: ペガサート６階プレゼンテーションルーム | AK24: 国立中央青少年交流の家 研修館富士２０７ | AL24: ららぽーと沼津３Ｆ フードコート内ららスタジオ | AM24: 焼津市市民文化会館・会議室 | AN24: 藤枝市民会館・会議室 | AO24: プラサヴェルデ３０１・３０２会議室（連結利用） | AP24: 焼津市福祉会館「ウェルシップやいづ」・多目的ホール | AQ24: 富士市勤労者総合福祉センター ラ・ホール富士 ５階 研修室 | AR24: 株式会社天野回漕店 別館１階 講堂 | AS24: 駅前交流センター「きらら」 集会室 | AT24: 掛川市生涯学習センター 第四会議室 | AU24: 島田市民総合施設プラザおおるり | AV24: 相良原子力防災センター | AW24: 富士市産業交流展示場ふじさんめっせ 会議室兼小展示場 | AX24: 菊川市消防本部 ２Ｆ大会議室 | AY24: 浜松市福祉交流センター 大会議室 | AZ24: 御前崎市消防本部 ２階会議室 | BA24: 浜松市勤労会館 Ｕホール２３会議室 | BB24: 健康福祉センターはぁとふる | BC24: 菊川市中央公民館
B25: 23 | C25: 愛知県 | D25: 新規会場（シート入力必須） | E25: グリーンパレス春日井（春日井勤労福祉会館）会議室１０１ | F25: グリーンパレス春日井（春日井勤労福祉会館）会議室３０２ | G25: スカイホール豊田 １階大会議室 | H25: スカイホール豊田 中会議室 | I25: スカイワードあさひ ひまわりホールＡ | J25: スカイワードあさひ ひまわりホールＡ・Ｂ | K25: 愛知学院大学 | L25: 愛知県産業労働センター（ウインクあいち）５階 小ホール１ | M25: へきしんギャラクシープラザ（安城市文化センター）大会議室 | N25: 稲沢市勤労福祉会館 多目的ホール | O25: 岡崎市消防本部 ３階講堂 | P25: 岡崎市福祉会館 ６階大ホール | Q25: 蒲郡商工会議所 | R25: 刈谷市産業振興センター ６０４会議室 | S25: 岩倉市総合体育文化センター 多目的ホール | T25: 犬山市民交流センター フロイデ ４階フロイデホール | U25: 幸田町中央公民館 １階ホールＡ・Ｂ | V25: 幸田町民会館 あじさいホール | W25: 江南市民文化会館 ２階 第一会議室 | X25: 小牧勤労センター 多目的ホール | Y25: 瀬戸市文化センター文化交流館 ３１会議室 | Z25: 西尾コンベンションホール 大ホール | AA25: 西尾市消防本部 ３階大会議室 | AB25: 大口町健康文化センター ４階 ほほえみホール | AC25: 東郷町民会館 ２階大会議室 | AD25: カネヨシプレイス 研修室 | AE25: 碧南市文化会館 大会議室 | AF25: 豊明文化会館 ギャラリー | AG25: 名古屋芸術大学アートスクエア（北名古屋市文化勤労会館 ）小ホール | AH25: 名古屋文理大学文化フォーラム（稲沢市民会館）小ホール | AI25: エナジーサポートアリーナ「犬山市体育館」多目的室 | AJ25: 株式会社ワンダーランド（レンタルルーム） | AK25: 津島市生涯学習センター 小ホール | AL25: 蒲郡市民会館大会議室 | AM25: メディアス体育館ちた 大会議室 | AN25: イオンモール常滑 イオンホール | AO25: 西尾市総合体育館 第三会議室 | AP25: 愛知県美浜自然の家 | AQ25: 愛三文化会館 ２階研修室 | AR25: 一宮市民会館大会議室 | AS25: 瀧上工業雁宿ホール 中央公民館講堂 | AT25: 豊明文化会館 ギャラリーギャラリー１－４ | AU25: 東海市芸術劇場 | AV25: 東海市立商工センター 大会議室 | AW25: イオンモール東浦 ２Ｆ イオンホール | AX25: 瀬戸蔵 多目的ホール | AY25: 愛知学院大学日進キャンパス １号館１５０１教室（講師控室１５０２教室） | AZ25: あいおいホール | BA25: 愛知県女性総合センター（ウイルあいち）大会議室 | BB25: 愛知県東郷町施設内会議室 | BC25: 春日井市総合体育館 大会議室 | BD25: ユニー株式会社本社ビル ２階会議室Ａ | BE25: 西尾市文化会館 会議室３０２ | BF25: 愛三文化会館 くちなしホール | BG25: 愛知学院大学日進キャンパス 一号館１４０１教室 | BH25: イオンモール長久手 ４ＦイオンホールＡ・Ｂ | BI25: 豊川市勤労福祉会館大研修室 | BJ25: 蒲郡市民会館 東ホール（Ⅱ） | BK25: 岡崎市竜美丘会館 ホール | BL25: 豊田市福祉センター ４１会議室 | BM25: モリコロパーク地球市民交流センター体験学習室 | BN25: ＨＯＭＥ＆ＮＩＣＯホール江南市民文化会館２階第一会議室 | BO25: 安城市民会館 大会議室 | BP25: 岡崎市総合学習センター 小ホール | BQ25: 小牧勤労センター 大研修室 | BR25: 岡崎市総合学習センター 多目的ホール | BS25: イオンモール長久手 ４Ｆイオンホール | BT25: 扶桑町中央公民館 講堂 | BU25: 全トヨタ労連研修センターつどいの丘 | BV25: イオンモールＮａｇｏｙａＮｏｒｉｔａｋｅＧａｒｄｅｎ | BW25: 刈谷市産業振興センター４０１会議室 | BX25: 岡崎市竜美丘会館 ５０１会議室 | BY25: 豊川市勤労福祉会館 視聴覚室 | BZ25: 豊川市勤労福祉会館 第２会議室 | CA25: 岩倉市民プラザ 多目的ホール | CB25: カネヨシプレイス レセプションホール | CC25: カネヨシレセプションホール 研修室 | CD25: 瀬戸市文化センター文化交流館 ２２会議室 | CE25: 半田市福祉文化会館（雁宿ホール）視聴覚室 | CF25: 名古屋市中小企業振興会館（吹上ホール） | CG25: 稲沢市勤労福祉会館第６研修室 | CH25: トヨタ車体株式会社 ＴＡＢホール | CI25: 名古屋市公会堂 ４階ホール | CJ25: 名古屋国際会議場 １号館会議室１４１＋１４２ | CK25: 豊川市文化会館 大会議室 | CL25: 豊川市文化会館 中会議室 | CM25: 蒲郡市民会館 会議室２ | CN25: 幸田町民会館 大会議室 | CO25: イオンモール豊川 イオンホール | CP25: 愛知県豊田市内会場 | CQ25: 豊田市青少年センター 交流室（豊田産業文化センター４階） | CR25: 名古屋学院大学名古屋キャンパスしろとり翼館 ４階クラインホール | CS25: 新城市市民センターほうらい | CT25: 新城市市民センターほうらい | CU25: 美浜町生涯学習センター | CV25: ＫＴＸアリーナ（江南市スポーツセンター）２階会議室 | CW25: パークアリーナ小牧 会議室Ａ | CX25: ららぽーと名古屋みなとアクルス | CY25: 豊田市民文化会館 多目的ホール | CZ25: ライフポートとよはし 中ホール | DA25: 一宮市木曽川文化会館
B26: 24 | C26: 三重県 | D26: 新規会場（シート入力必須） | E26: シンフォニアテクノロジー響ホール伊勢（伊勢市観光文化会館） 大会議室 | F26: 嬉野社会福祉センター 集会室 | G26: 鳥羽商工会議所 ３階 かもめホール | H26: 名張市防災センター | I26: 名張市民センター | J26: 名張市民センター | K26: 名張市民センター | L26: 北勢自動車協会２階講習会場 | M26: 鈴鹿市労働福祉会館 大会議室 | N26: 亀山市文化会館中央コミュニティセンター | O26: くわなメディアライヴ 多目的ホール | P26: 湯の山温泉 グリーンホテル | Q26: 名張市武道交流館いきいき 多目的ホール | R26: 伊賀市ゆめぽりすセンター
B27: 25 | C27: 滋賀県 | D27: 新規会場（シート入力必須） | E27: コラボしが２１ ３階 大会議室 | F27: ひこね市文化プラザ メッセホール | G27: ライズヴィル都賀山 ５階 ロータス | H27: 滋賀県立男女共同参画センター １階大ホール | I27: 東近江市立能登川コミュニティセンター １階ホール | J27: 東近江市立能登川コミュニティセンター ２階別館研修室 | K27: 滋賀県立文化産業交流会館 第一会議室 | L27: ひこね燦ぱれす 多目的ホール | M27: みずほ文化センター | N27: 彦根市立南地区公民館 | O27: みずほ文化センター | P27: 守山商工会議所 | Q27: 平和堂本部ＨＡＴＯＣホール | R27: イオンモール草津 イオンホール | S27: ライズヴィル都賀山１階大会議室 | T27: 甲賀市まちづくり活動センター「まるーむ」
B28: 26 | C28: 京都府 | D28: 新規会場（シート入力必須） | E28: 京都市市民防災センター ４階講習室 | F28: イオンモール京都五条 | G28: キャンパスプラザ京都 ５階 第一講義室 | H28: イオンモール京都桂川 ３Ｆイオンホール
B29: 27 | C29: 大阪府 | D29: 新規会場（シート入力必須） | E29: 吹田さんくすホール 一番館４階 | F29: ノバティホール（ノバティながの南館 ３階） | G29: ゆめニティプラザ | H29: 岸和田市立浪切ホール | I29: 堺市立栂文化会館 | J29: 摂津市立コミニティプラザ | K29: 東大阪市立市民多目的センター | L29: 東大阪市文化創造館 ２Ｆ Ｃ１Ｃ２ | M29: 茨木市福祉文化会館（オークシアター） | N29: 千里朝日阪急ビル4F A&Hホール | O29: ホテルアイボリー３Ｆ オーキッドホール | P29: くら寿司貝塚事務所３階会議室 | Q29: 池田市民文化会館 | R29: 大阪東京海上日動ビル | S29: 松原商工会議所 | T29: 新梅田研修センターＭホール | U29: ＥＸＰＯＣＩＴＹ 会議室５ | V29: ホテルアベストグランデ高槻 | W29: 天王寺ミオ本館１２階「ミオホール」 | X29: 天王寺ミオ本館１２階「ミオホール」 | Y29: 堺市東文化会館 | Z29: 守口門真商工会議所（３階 特別会議室Ｃ・Ｄ） | AA29: 富田林市市民会館 大会議室 | AB29: 島本町ふれあいセンター 第４学習室 | AC29: 国際障害者交流センター（ビッグ・アイ） | AD29: 堺市消防局６階講堂 | AE29: ＣＩＶＩ研修センター新大阪東 | AF29: 茨木市文化・子育て複合施設（おにクル）７Ｆ 会議室１・２ | AG29: 堺市総合防災センターガイダンスシアター | AH29: 大阪南消防局 ４階 訓練場 | AI29: 枚方市総合芸術文化センター別館 大会議室 | AJ29: 高槻城公園芸術文化劇場北館３階レセプションルーム
B30: 28 | C30: 兵庫県 | D30: 新規会場（シート入力必須） | E30: 三田市まちづくり協働センター 多目的ホール | F30: たつの市青少年館 ホール | G30: 神戸市防災コミュニティセンター（長田消防署４Ｆ） 多目的ホール | H30: 長田消防署 ４Ｆ | I30: 明石市勤労福祉会館 多目的ホール | J30: 伊丹市立文化会館「東リいたみホール」 ６階中ホール | K30: 明石市勤労福祉会館 第一会議室 | L30: 神戸市管工事会館 ６階大ホール | M30: 西宮市立 勤労会館 第８会議室 | N30: 神戸木材業協同組合 ５階ホール | O30: 高砂生石研修センター多目的ホール | P30: 尼崎市中小企業センター 大ホール | Q30: 尼崎市中小企業センター | R30: 神戸学院大学現代社会学部 | S30: イオンモール神戸南イオンホール | T30: 芦屋市民センター ４０１号室 | U30: 神戸学院大学 Ｄ棟１０１講義室 | V30: 神戸市立 長田区文化センター３階 大会議室 | W30: イオンモール神戸北 館内３階イオンホール | X30: 宝塚市立東公民館 セミナー室 | Y30: 宝塚市消防本部 ３階 会議室 | Z30: 宝塚市立西公民館 ホール | AA30: 尼崎商工会議所 ７０１会議室 | AB30: 宝塚医療大学 宝塚キャンパス ２階中講義室 | AC30: 西宮市民会館 ４階４０１会議室
B31: 29 | C31: 奈良県 | D31: 新規会場（シート入力必須） | E31: イオンモール橿原 ３階 イオンホール | F31: いかるがホール（斑鳩町文化振興センター）２階 研修室２～４ | G31: 宇陀市榛原総合センター ３階 大ホール | H31: 香芝市ふたかみ文化センター ２階 会議室１～３ | I31: 桜井市立中央公民館 ３階 大会議室 | J31: 生駒市図書会館 ３階 市民ホール | K31: 大淀町文化会館 ２階 研修室Ａ・Ｂ | L31: 大和郡山市商工会館 ３階 大会議室 | M31: 奈良県産業会館 ５階 大会議室 | N31: 奈良県社会福祉総合センター ５階 大会議室 | O31: 奈良県文化会館 ２階 集会室Ａ・Ｂ | P31: 奈良県文化会館 ２階 小ホール
B32: 30 | C32: 和歌山県 | D32: 新規会場（シート入力必須） | E32: 海南市民交流センター 視聴覚教室 | F32: 橋本市教育文化会館３階第一研修室 | G32: 御坊商工会館 ４階 大会議室 | H32: かつらぎ総合文化会館 １階 大ホール | I32: 有田川町 金屋文化保健センター ２階 文化ホール | J32: 海南市消防本部内海南市防災センター３階研修センター | K32: 海南市海南保健福祉センター ２階 多目的ホール | L32: 御坊市民文化会館 小ホール | M32: 日高川町防災センター 防災イベントスペース | N32: 岩出市総合保健福祉センター ３階 視聴覚室 | O32: 有田市消防本部 ５階多目的会議室
B33: 31 | C33: 鳥取県 | D33: 新規会場（シート入力必須） | E33: 鳥取市文化センター 大会議室 | F33: 鳥取県立県民文化会館 第２会議室 | G33: 米子コンベンションセンター第７会議室
B34: 32 | C34: 島根県 | D34: 新規会場（シート入力必須） | E34: くにびきメッセ ５階 ５０１大会議室 | F34: チェリヴァホール 大会議室 | G34: 益田市民学習センター | H34: 江津市総合市民センター | I34: 朱鷺会館 １階 大ホール | J34: 島根県トラック協会 西部研修会館 | K34: 浜田建設会館 | L34: あすてらす | M34: 島根県民会館 ３階大会議室 | N34: 島根県民会館 | O34: 三刀屋文化体育館 アスパル | P34: 株式会社ジュンテンドー研修センター（ジャストホール） | Q34: 出雲市民会館 | R34: パルメイト出雲
B35: 33 | C35: 岡山県 | D35: 新規会場（シート入力必須） | E35: くらしき山陽ハイツ東館 第１ホール | F35: 岡山商工会議所 ４階 大会議室 | G35: 倉敷市児島文化センター １階 会議室 | H35: 美作大学 １号館４階 大講義室 | I35: 倉敷商工会議所 ３階第５会議室 | J35: 高梁総合文化会館 ２階レクチャールーム | K35: グリーンヒルズ津山リージョンセンター | L35: ＮＰＤ貸会議室 岡山髙島屋 フロアＡ | M35: イオンモール岡山 | N35: 津山商工会議所 | O35: 岡山商工会議所 １階 大会議室 | P35: 岡山コンベンションセンター２階展示ホール | Q35: 山陽ＳＣ開発株式会社本社 | R35: マービーふれあいセンター | S35: 岡山商工会議所４階４０４会議室 | T35: 第一セントラルビル９階大ホール | U35: おかやま未来ホール | V35: 岡山商工会議所１階１０１会議室 | W35: 労働福祉事業会館 ５階大会議室
B36: 34 | C36: 広島県 | D36: 新規会場（シート入力必須） | E36: ベイタウン尾道 | F36: みよしまちづくりセンター | G36: 呉市広市民センター ５階大会議室 | H36: 広島オフィスセンター ５階 Ｇ会議室 | I36: 広島県情報プラザ 地階多目的ホール | J36: 三原市市民福祉会館 ５階大会議室 | K36: 廿日市市商工保健会館 交流プラザ | L36: 福山市生涯学習プラザ（まなびの館ローズコム） | M36: 廿日市市消防本部 ５階 研修室 | N36: 三原市中央公民館 １階大講堂 | O36: イオンモール広島府中 ３階イオンホール | P36: ＴＨＥ ＯＵＴＬＥＴＳ ＨＩＲＯＳＨＩＭＡ 会議室Ａ・Ｂ | Q36: 呉市東消防署 ５階講堂 | R36: 三原市消防本部３階講堂
B37: 35 | C37: 山口県 | D37: 新規会場（シート入力必須） | E37: 海峡メッセ下関 国際貿易ビル８階 ８０１大会議室 | F37: 海峡メッセ下関 国際貿易ビル８階 ８０４会議室 | G37: 山口県婦人教育文化会館（カリエンテ山口） | H37: 山口県婦人教育文化会館（カリエンテ山口）１階大ホール | I37: 海峡メッセ下関 国際貿易ビル１０階 国際会議場 | J37: 山陽小野田市商工センター ３階講堂 | K37: 山口県教育会館５階 | L37: 山口県農業協同組合 宇部統括本部３階大会場 | M37: 山口県産業技術センター ２階多目的ホール | N37: Ａスクエア ２階会議室１Ａ・１Ｂ
B38: 36 | C38: 徳島県 | D38: 新規会場（シート入力必須） | E38: あわぎんホール（徳島県郷土文化会館） ５階 会議室６ | F38: 阿南ひまわり会館 ２階 研修室 うめ | G38: 石井町地域防災交流センター | H38: 徳島県月見ヶ丘海浜公園 公園ビジターセンター １階 研修室 | I38: 徳島県立南部防災館 ２階 多目的ホール | J38: 美馬野外交流の郷（四国三郎の郷）交流体験棟 | K38: 徳島県立西部防災館 ２階 多目的室 | L38: あわぎんホール（徳島県郷土文化会館） ５階 小ホール | M38: あわぎんホール（徳島県郷土文化会館）４階大会議室 | N38: 阿南ひまわり会館２階 ふれあいホール | O38: 吉野川市文化研修センター １階 多目的ホール
B39: 37 | C39: 香川県 | D39: 新規会場（シート入力必須） | E39: アイレックス（丸亀市綾歌総合文化会館） 小ホール | F39: サンポートホール高松 ５階５４会議室 | G39: サンポートホール高松 ６階６１会議室 | H39: ハイスタッフホール（観音寺市民会館） 多目的ホール | I39: 香川県土木建設会館 ４階大中ホール | J39: 東かがわ市交流プラザ 第１・第２市民会議室 | K39: 香川県土木建設会館 ５階視聴覚室 | L39: 香川県土木建設会館４階大ホール
B40: 38 | C40: 愛媛県 | D40: 新規会場（シート入力必須） | E40: 松山市総合コミュニティセンター ２階第１・２会議室 | F40: 松山市総合コミュニティセンター ３階大会議室 | G40: 西条市総合文化会館 小ホール | H40: 西条市丹原文化会館 小ホール | I40: 新居浜テレコムプラザ １階会議室 | J40: 新居浜テレコムプラザ ３階多目的ホール | K40: 松前総合文化センター | L40: 東温市中央公民館 大ホール | M40: テクノプラザ愛媛本館 テクノホール | N40: 四国中央市土居文化会館（ユーホール） | O40: 今治市総合福祉センター | P40: 新居浜商工会館
B41: 39 | C41: 高知県 | D41: 新規会場（シート入力必須） | E41: オーテピア ４階ホール | F41: 高知県立ふくし交流プラザ ５階研修室Ａ | G41: 高知県立県民文化ホール ４階第６多目的室 | H41: 高知城ホール ４階多目的ホール | I41: 新ロイヤルホテル四万十 ２階四万十 | J41: 田野町ふれあいセンター ２階多目的会議室 | K41: 中土佐町民交流会館 | L41: 安芸市消防防災センター ３階会議室 | M41: ザ・ミーニッツ グランドホール | N41: 四万十市総合文化センターしまんとぴあ りぐるホール | O41: 南国市消防本部 ４階多目的ホール
B42: 40 | C42: 福岡県 | D42: 新規会場（シート入力必須） | E42: ＪＲ博多シティ 大会議室 | F42: イイヅカコスモスコモン １階 展示ホール | G42: 久留米ビジネスプラザ アルカディア中ホール | H42: 筑紫野市生涯学習センター ３階 視聴覚室 | I42: 直方市中央公民館 １階 大会議室 | J42: 福岡県自治会館２階 大会議室 | K42: クラウンパレス北九州 | L42: イオンモール筑紫野イオンホール | M42: イオンモール福津２Ｆイオンホール | N42: 福岡商工会議所 ３階 ３０１会議室 | O42: イオンモール福津３階会議室 | P42: 暫定登録国際会議場２Ｆ 多目的ホール２０１～２０４ | Q42: 福岡県立飯塚研究開発センター | R42: 国際会議場２Ｆ 多目的ホール２０１～２０４ | S42: ＡＩＭビル３Ｆ 西日本総合展示場 | T42: イオンモール直方 ２階イオンホール | U42: イオンモール福岡２階イオンホール | V42: ＴＨＥ ＯＵＴＬＥＴＳ ＫＩＴＡＫＹＵＳＨＵ カンファレンスルーム１・２ | W42: 福岡国際会議場 ４１１＋４１２会議室
B43: 41 | C43: 佐賀県 | D43: 新規会場（シート入力必須） | E43: 佐賀市文化会館 ３階大会議室 | F43: 相知交流文化センター 研修室Ｂ | G43: 武雄市文化会館 ミーティングホール | H43: 佐賀市産業振興会館大会議室 | I43: アバンセ 第１研修室
B44: 42 | C44: 長崎県 | D44: 新規会場（シート入力必須） | E44: 佐世保市労働福祉センター 大会議室ＡＢＣ | F44: 佐世保市労働福祉センター 中会議室ⅡＡＢ | G44: 長崎県勤労福祉会館 講堂 | H44: 長崎県勤労福祉会館 大会議室 | I44: 長崎県勤労福祉会館 中会議室２・３ | J44: 佐世保市労働福祉センター 大会議室ＡＢ | K44: ハウステンボスタワーシティ 第４会議室 | L44: 島原文化会館 中ホール | M44: 県央地域広域消防本部 諫早消防署 講堂 | N44: 諫早文化会館 中ホール
B45: 43 | C45: 熊本県 | D45: 新規会場（シート入力必須） | E45: ＫＫＲホテル熊本 ２階 城彩 | F45: 火の国ハイツ １階 秋桜 | G45: 火の国ハイツ ２階 瑞鳳 | H45: 熊本市広域防災センター | I45: 熊本市食品交流会館 多目的ホール | J45: 熊本県労働者福祉会館 大会議室 | K45: フードパル熊本 熊本市食品交流会館 | L45: イオンモール熊本 ２Ｆ イオンホール | M45: くまもと県民交流館 パレアホール
B46: 44 | C46: 大分県 | D46: 新規会場（シート入力必須） | E46: エイトピアおおの | F46: 宇佐ホテルリバーサイド | G46: 臼杵市消防本部 | H46: 杵築市文化体育館 | I46: 三余館 | J46: 大分県教育会館 ２０１号室 | K46: 大分県教育会館（多目的ホール） | L46: 中津文化会館 | M46: 日田玖珠地域産業振興センター | N46: 豊泉荘 | O46: Ｊ：ＣＯＭホルトホール大分（大会議室） | P46: Ｊ：ＣＯＭホルトホール大分（３０２・３０３） | Q46: 日田市複合文化施設ＡＯＳＥ（アオーゼ） | R46: 津久見市民会館 | S46: 竹田市総合文化ホール グランツたけた | T46: Ｊ：ＣＯＭ ホルトホール大分３０２．３０３ | U46: Ｊ：ＣＯＭホルトホール大分 | V46: さいき城山桜ホール | W46: 宇佐市文化会館・ウサノピア | X46: 玖珠町メルサンホール | Y46: Ｊ：ＣＯＭホルトホール大分３０２・３０３ | Z46: 佐伯市保健福祉総合センター和楽 | AA46: 宇佐市安心院地域複合支所 多目的ホール | AB46: 日出町保健福祉センター 多目的ホール
B47: 45 | C47: 宮崎県 | D47: 新規会場（シート入力必須） | E47: 延岡市社会教育センター 研修室１ | F47: 延岡市消防本部 視聴覚室 | G47: 宮崎県建設技術センター | H47: 小林市文化会館 会議室 | I47: 都城市高城生涯学習センター 多目的研修室 | J47: 日向市日知屋公民館 大会議室 | K47: 日南市生涯学習センター まなびピア視聴覚室 | L47: 宮崎県技能検定センター | M47: 高千穂町コミュニティセンター | N47: 高千穂町自然休養村管理センター | O47: 小林市地域観光・観光交流センター | P47: 都城市中央公民館 | Q47: 都城市コミュニティセンター | R47: 都城市五十市地区公民館 | S47: 南郷ハートフルセンター生涯学習館 大研修室 | T47: 宮崎市中央公民館
B48: 46 | C48: 鹿児島県 | D48: 新規会場（シート入力必須） | E48: コミュニティセンター知覧文化会館 | F48: サンアリーナせんだい 会議室・研修室 | G48: 鹿屋市中央公民館 | H48: 鹿児島県市町村自治会館 ４階 ４０１会議室 | I48: かごしま国際交流センター多目的ホール | J48: 薩摩川内市セントピア 視聴覚室
B49: 47 | C49: 沖縄県 | D49: 新規会場（シート入力必須） | E49: ＮＢＣサムシングフォー西崎 | F49: うるマルシェ 会議室 | G49: 浦添市産業振興センター 結の街 大研修室 | H49: 豊見城市立中央公民館 中ホール | I49: 名護市民会館 中ホール | J49: 沖縄県青年会館 | K49: 浦添市社会福祉センター 大研修室 | L49: 那覇市民体育館 | M49: Ｐ＇ｓ ＳＱＵＡＲＥピーズスクエア 会議室Ｂ・Ｃ | N49: 那覇地域職業訓練センター | O49: ホテルブリーズベイマリーナ ハーバーウィング１階 宴会場 南風
B50: 48 | C50: オンライン | D50: オンライン講習 | E50: オンライン講習

Sheet ※入力禁止※マスタ設定値（企業）
B1: 企業
B2: No. | C2: 企業名
B3: 1
B4: 2
B5: 3
B6: 4
B7: 5
B8: 6
B9: 7
B10: 8
B11: 9
B12: 10
B13: 11
B14: 12
B15: 13
B16: 14
B17: 15
B18: 16
B19: 17
B20: 18
B21: 19
B22: 20
B23: 21
B24: 22
B25: 23
B26: 24
B27: 25
B28: 26
B29: 27
B30: 28
B31: 29
B32: 30
B33: 31
B34: 32
B35: 33
B36: 34
B37: 35
B38: 36
B39: 37
B40: 38
B41: 39
B42: 40
B43: 41
B44: 42
B45: 43
B46: 44
B47: 45
B48: 46
B49: 47
B50: 48
B51: 49
B52: 50
B53: 51
B54: 52
B55: 53
B56: 54
B57: 55
B58: 56
B59: 57
B60: 58
B61: 59
B62: 60
B63: 61
B64: 62
B65: 63
B66: 64
B67: 65
B68: 66
B69: 67
B70: 68
B71: 69
B72: 70
B73: 71
B74: 72
B75: 73
B76: 74
B77: 75
B78: 76
B79: 77
B80: 78
B81: 79
B82: 80
B83: 81
B84: 82
B85: 83
B86: 84
B87: 85
B88: 86
B89: 87
B90: 88
B91: 89
B92: 90
B93: 91
B94: 92
B95: 93
B96: 94
B97: 95
B98: 96
B99: 97
B100: 98
B101: 99
B102: 100
B103: 101
B104: 102
B105: 103
B106: 104
B107: 105

Sheet ※入力禁止※マスタ設定値(国民の祝日一覧)
B1: 国民の祝日一覧
B3: No. | C3: 祝日 | D3: 曜日 | E3: 祝日名
B4: 1 | C4: 2023-04-29 | D4: =TEXT(C4,"aaa") -> 土 | E4: 昭和の日
B5: 2 | C5: 2023-05-03 | D5: 水 | E5: 憲法記念日
B6: 3 | C6: 2023-05-04 | D6: 木 | E6: みどりの日
B7: 4 | C7: 2023-05-05 | D7: 金 | E7: こどもの日
B8: 5 | C8: 2023-07-17 | D8: 月 | E8: 海の日
B9: 6 | C9: 2023-08-11 | D9: 金 | E9: 山の日
B10: 7 | C10: 2023-09-18 | D10: 月 | E10: 敬老の日
B11: 8 | C11: 2023-09-23 | D11: 土 | E11: 秋分の日
B12: 9 | C12: 2023-10-09 | D12: 月 | E12: スポーツの日
B13: 10 | C13: 2023-11-03 | D13: 金 | E13: 文化の日
B14: 11 | C14: 2023-11-23 | D14: 木 | E14: 勤労感謝の日
B15: 12 | C15: 2024-01-01 | D15: 月 | E15: 元日
B16: 13 | C16: 2024-01-08 | D16: 月 | E16: 成人の日
B17: 14 | C17: 2024-02-11 | D17: 日 | E17: 建国記念の日
B18: 15 | C18: 2024-02-12 | D18: 月 | E18: 振替休日
B19: 16 | C19: 2024-02-23 | D19: 金 | E19: 天皇誕生日
B20: 17 | C20: 2024-03-20 | D20: 水 | E20: 春分の日
B21: 18 | C21: 2024-04-29 | D21: 月 | E21: 昭和の日
B22: 19 | C22: 2024-05-03 | D22: 金 | E22: 憲法記念日
B23: 20 | C23: 2024-05-04 | D23: 土 | E23: みどりの日
B24: 21 | C24: 2024-05-05 | D24: 日 | E24: こどもの日
B25: 22 | C25: 2024-05-06 | D25: 月 | E25: 振替休日
B26: 23 | C26: 2024-07-15 | D26: 月 | E26: 海の日
B27: 24 | C27: 2024-08-11 | D27: 日 | E27: 山の日
B28: 25 | C28: 2024-08-12 | D28: 月 | E28: 振替休日
B29: 26 | C29: 2024-09-16 | D29: 月 | E29: 敬老の日
B30: 27 | C30: 2024-09-22 | D30: 日 | E30: 秋分の日
B31: 28 | C31: 2024-09-23 | D31: 月 | E31: 振替休日
B32: 29 | C32: 2024-10-14 | D32: 月 | E32: スポーツの日
B33: 30 | C33: 2024-11-03 | D33: 日 | E33: 文化の日
B34: 31 | C34: 2024-11-04 | D34: 月 | E34: 振替休日
B35: 32 | C35: 2024-11-23 | D35: 土 | E35: 勤労感謝の日
B36: 33 | C36: 2025-01-01 | D36: 水 | E36: 元日
B37: 34 | C37: 2025-01-13 | D37: 月 | E37: 成人の日
B38: 35 | C38: 2025-02-11 | D38: 火 | E38: 建国記念の日
B39: 36 | C39: 2025-02-23 | D39: 日 | E39: 天皇誕生日
B40: 37 | C40: 2025-02-24 | D40: 月 | E40: 振替休日
B41: 38 | C41: 2025-03-20 | D41: 木 | E41: 春分の日
B42: 39 | C42: 2025-04-29 | D42: 火 | E42: 昭和の日
B43: 62 | C43: 2025-05-03 | D43: 土 | E43: 憲法記念日
B44: 63 | C44: 2025-05-04 | D44: 日 | E44: みどりの日
B45: 64 | C45: 2025-05-05 | D45: 月 | E45: こどもの日
B46: 65 | C46: 2025-05-06 | D46: 火 | E46: 振替休日
B47: 66 | C47: 2025-07-21 | D47: 月 | E47: 海の日
B48: 67 | C48: 2025-08-11 | D48: 月 | E48: 山の日
B49: 68 | C49: 2025-09-15 | D49: 月 | E49: 敬老の日
B50: 69 | C50: 2025-09-23 | D50: 火 | E50: 秋分の日
B51: 70 | C51: 2025-10-13 | D51: 月 | E51: スポーツの日
B52: 71 | C52: 2025-11-03 | D52: 月 | E52: 文化の日
B53: 72 | C53: 2025-11-23 | D53: 日 | E53: 勤労感謝の日
B54: 73 | C54: 2025-11-24 | D54: =TEXT(C54,"aaa") -> 月 | E54: 振替休日
B55: 74 | C55: 2026-01-01 | D55: 木 | E55: 元日
B56: 75 | C56: 2026-01-12 | D56: 月 | E56: 成人の日
B57: 76 | C57: 2026-02-11 | D57: 水 | E57: 建国記念の日
B58: 77 | C58: 2026-02-23 | D58: 月 | E58: 天皇誕生日
B59: 78 | C59: 2026-03-20 | D59: 金 | E59: 春分の日
B60: 79 | C60: 2026-04-29 | D60: 水 | E60: 昭和の日
B61: 80 | C61: 2026-05-03 | D61: 日 | E61: 憲法記念日
B62: 81 | C62: 2026-05-04 | D62: 月 | E62: みどりの日
B63: 82 | C63: 2026-05-05 | D63: 火 | E63: こどもの日
B64: 83 | C64: 2026-05-06 | D64: 水 | E64: 振替休日
B65: 84 | C65: 2026-07-20 | D65: 月 | E65: 海の日
B66: 85 | C66: 2026-08-11 | D66: 火 | E66: 山の日
B67: 86 | C67: 2026-09-21 | D67: 月 | E67: 敬老の日
B68: 87 | C68: 2026-09-22 | D68: 火 | E68: 国民の休日
B69: 88 | C69: 2026-09-23 | D69: 水 | E69: 秋分の日
B70: 89 | C70: 2026-10-12 | D70: 月 | E70: スポーツの日
B71: 90 | C71: 2026-11-03 | D71: 火 | E71: 文化の日
B72: 91 | C72: 2026-11-23 | D72: 月 | E72: 勤労感謝の日
B73: 92 | C73: 2027-01-01 | D73: 金 | E73: 元日
B74: 93 | C74: 2027-01-11 | D74: 月 | E74: 成人の日
B75: 94 | C75: 2027-02-11 | D75: 木 | E75: 建国記念の日
B76: 95 | C76: 2027-02-23 | D76: 火 | E76: 天皇誕生日
B77: 96 | C77: 2027-03-21 | D77: 日 | E77: 春分の日
B78: 97 | C78: 2027-03-22 | D78: 月 | E78: 振替休日
B79: 98 | C79: 2027-04-29 | D79: 木 | E79: 昭和の日
B80: 99 | C80: 2027-05-03 | D80: 月 | E80: 憲法記念日
B81: 100 | C81: 2027-05-04 | D81: 火 | E81: みどりの日
B82: 101 | C82: 2027-05-05 | D82: 水 | E82: こどもの日
B83: 102 | C83: 2027-07-19 | D83: 月 | E83: 海の日
B84: 103 | C84: 2027-08-11 | D84: 水 | E84: 山の日
B85: 104 | C85: 2027-09-20 | D85: 月 | E85: 敬老の日
B86: 105 | C86: 2027-09-23 | D86: 木 | E86: 秋分の日
B87: 106 | C87: 2027-10-11 | D87: 月 | E87: スポーツの日
B88: 107 | C88: 2027-11-03 | D88: 水 | E88: 文化の日
B89: 108 | C89: 2027-11-23 | D89: 火 | E89: 勤労感謝の日
B90: 109 | C90: 2028-01-01 | D90: 土 | E90: 元日
B91: 110 | C91: 2028-01-10 | D91: 月 | E91: 成人の日
B92: 111 | C92: 2028-02-11 | D92: 金 | E92: 建国記念の日
B93: 112 | C93: 2028-02-23 | D93: 水 | E93: 天皇誕生日
B94: 113 | C94: 2028-03-20 | D94: 月 | E94: 春分の日
B95: 114 | C95: 2028-04-29 | D95: 土 | E95: 昭和の日
B96: 115 | C96: 2028-05-03 | D96: 水 | E96: 憲法記念日
B97: 116 | C97: 2028-05-04 | D97: 木 | E97: みどりの日
B98: 117 | C98: 2028-05-05 | D98: 金 | E98: こどもの日
B99: 118 | C99: 2028-07-17 | D99: 月 | E99: 海の日
B100: 119 | C100: 2028-08-11 | D100: 金 | E100: 山の日
B101: 120 | C101: 2028-09-18 | D101: 月 | E101: 敬老の日
B102: 121 | C102: 2028-09-22 | D102: 金 | E102: 秋分の日
B103: 122 | C103: 2028-10-09 | D103: 月 | E103: スポーツの日
B104: 123 | C104: 2028-11-03 | D104: 金 | E104: 文化の日
B105: 124 | C105: 2028-11-23 | D105: 木 | E105: 勤労感謝の日
B106: 125 | C106: 2029-01-01 | D106: 月 | E106: 元日
B107: 126 | C107: 2029-01-08 | D107: 月 | E107: 成人の日
B108: 127 | C108: 2029-02-11 | D108: 日 | E108: 建国記念の日
B109: 128 | C109: 2029-02-12 | D109: 月 | E109: 振替休日
B110: 129 | C110: 2029-02-23 | D110: 金 | E110: 天皇誕生日
B111: 130 | C111: 2029-03-20 | D111: 火 | E111: 春分の日
B112: 131 | C112: 2029-04-29 | D112: 日 | E112: 昭和の日
B113: 132 | C113: 2029-04-30 | D113: 月 | E113: 振替休日
B114: 133 | C114: 2029-05-03 | D114: 木 | E114: 憲法記念日
B115: 134 | C115: 2029-05-04 | D115: 金 | E115: みどりの日
B116: 135 | C116: 2029-05-05 | D116: 土 | E116: こどもの日
B117: 136 | C117: 2029-07-16 | D117: 月 | E117: 海の日
B118: 137 | C118: 2029-08-11 | D118: =TEXT(C118,"aaa") -> 土 | E118: 山の日
B119: 138 | C119: 2029-09-17 | D119: 月 | E119: 敬老の日
B120: 139 | C120: 2029-09-23 | D120: 日 | E120: 秋分の日
B121: 140 | C121: 2029-09-24 | D121: 月 | E121: 振替休日
B122: 141 | C122: 2029-10-08 | D122: 月 | E122: スポーツの日
B123: 142 | C123: 2029-11-03 | D123: 土 | E123: 文化の日
B124: 143 | C124: 2029-11-23 | D124: 金 | E124: 勤労感謝の日
B125: 144 | C125: 2030-01-01 | D125: 火 | E125: 元日
B126: 145 | C126: 2030-01-14 | D126: 月 | E126: 成人の日
B127: 146 | C127: 2030-02-11 | D127: 月 | E127: 建国記念の日
B128: 147 | C128: 2030-02-23 | D128: 土 | E128: 天皇誕生日
B129: 148 | C129: 2030-03-20 | D129: 水 | E129: 春分の日
B130: 149 | C130: 2030-04-29 | D130: 月 | E130: 昭和の日
B131: 150 | C131: 2030-05-03 | D131: 金 | E131: 憲法記念日
B132: 151 | C132: 2030-05-04 | D132: 土 | E132: みどりの日
B133: 152 | C133: 2030-05-05 | D133: 日 | E133: こどもの日
B134: 153 | C134: 2030-05-06 | D134: 月 | E134: 振替休日
B135: 154 | C135: 2030-07-15 | D135: 月 | E135: 海の日
B136: 155 | C136: 2030-08-11 | D136: 日 | E136: 山の日
B137: 156 | C137: 2030-08-12 | D137: 月 | E137: 振替休日
B138: 157 | C138: 2030-09-16 | D138: 月 | E138: 敬老の日
B139: 158 | C139: 2030-09-23 | D139: 月 | E139: 秋分の日
B140: 159 | C140: 2030-10-14 | D140: 月 | E140: スポーツの日
B141: 160 | C141: 2030-11-03 | D141: 日 | E141: 文化の日
B142: 161 | C142: 2030-11-04 | D142: 月 | E142: 振替休日
B143: 162 | C143: 2030-11-23 | D143: 土 | E143: 勤労感謝の日
B144: 163 | C144: 2031-01-01 | D144: 水 | E144: 元日
B145: 164 | C145: 2031-01-13 | D145: 月 | E145: 成人の日
B146: 165 | C146: 2031-02-11 | D146: 火 | E146: 建国記念の日
B147: 166 | C147: 2031-02-23 | D147: 日 | E147: 天皇誕生日
B148: 167 | C148: 2031-02-24 | D148: 月 | E148: 振替休日
B149: 168 | C149: 2031-03-21 | D149: 金 | E149: 春分の日
B150: 169 | C150: 2031-04-29 | D150: 火 | E150: 昭和の日
B151: 170 | C151: 2031-05-03 | D151: 土 | E151: 憲法記念日
B152: 171 | C152: 2031-05-04 | D152: 日 | E152: みどりの日
B153: 172 | C153: 2031-05-05 | D153: 月 | E153: こどもの日
B154: 173 | C154: 2031-05-06 | D154: 火 | E154: 振替休日
B155: 174 | C155: 2031-07-21 | D155: 月 | E155: 海の日
B156: 175 | C156: 2031-08-11 | D156: 月 | E156: 山の日
B157: 176 | C157: 2031-09-15 | D157: 月 | E157: 敬老の日
B158: 177 | C158: 2031-09-23 | D158: 火 | E158: 秋分の日
B159: 178 | C159: 2031-10-13 | D159: 月 | E159: スポーツの日
B160: 179 | C160: 2031-11-03 | D160: 月 | E160: 文化の日
B161: 180 | C161: 2031-11-23 | D161: 日 | E161: 勤労感謝の日
B162: 181 | C162: 2031-11-24 | D162: 月 | E162: 振替休日
B163: 182 | C163: 2032-01-01 | D163: 木 | E163: 元日
B164: 183 | C164: 2032-01-12 | D164: 月 | E164: 成人の日
B165: 184 | C165: 2032-02-11 | D165: 水 | E165: 建国記念の日
B166: 185 | C166: 2032-02-23 | D166: 月 | E166: 天皇誕生日
B167: 186 | C167: 2032-03-20 | D167: 土 | E167: 春分の日
B168: 187 | C168: 2032-04-29 | D168: 木 | E168: 昭和の日
B169: 188 | C169: 2032-05-03 | D169: 月 | E169: 憲法記念日
B170: 189 | C170: 2032-05-04 | D170: 火 | E170: みどりの日
B171: 190 | C171: 2032-05-05 | D171: 水 | E171: こどもの日
B172: 191 | C172: 2032-07-19 | D172: 月 | E172: 海の日
B173: 192 | C173: 2032-08-11 | D173: 水 | E173: 山の日
B174: 193 | C174: 2032-09-20 | D174: 月 | E174: 敬老の日
B175: 194 | C175: 2032-09-21 | D175: 火 | E175: 国民の休日
B176: 195 | C176: 2032-09-22 | D176: 水 | E176: 秋分の日
B177: 196 | C177: 2032-10-11 | D177: 月 | E177: スポーツの日
B178: 197 | C178: 2032-11-03 | D178: 水 | E178: 文化の日
B179: 198 | C179: 2032-11-23 | D179: 火 | E179: 勤労感謝の日
B180: 199 | C180: 2033-01-01 | D180: 土 | E180: 元日
B181: 200 | C181: 2033-01-10 | D181: 月 | E181: 成人の日
B182: 201 | C182: 2033-02-11 | D182: =TEXT(C182,"aaa") -> 金 | E182: 建国記念の日
B183: 202 | C183: 2033-02-23 | D183: 水 | E183: 天皇誕生日
B184: 203 | C184: 2033-03-20 | D184: 日 | E184: 春分の日
B185: 204 | C185: 2033-03-21 | D185: 月 | E185: 振替休日
B186: 205 | C186: 2033-04-29 | D186: 金 | E186: 昭和の日
B187: 206 | C187: 2033-05-03 | D187: 火 | E187: 憲法記念日
B188: 207 | C188: 2033-05-04 | D188: 水 | E188: みどりの日
B189: 208 | C189: 2033-05-05 | D189: 木 | E189: こどもの日
B190: 209 | C190: 2033-07-18 | D190: 月 | E190: 海の日
B191: 210 | C191: 2033-08-11 | D191: 木 | E191: 山の日
B192: 211 | C192: 2033-09-19 | D192: 月 | E192: 敬老の日
B193: 212 | C193: 2033-09-23 | D193: 金 | E193: 秋分の日
B194: 213 | C194: 2033-10-10 | D194: 月 | E194: スポーツの日
B195: 214 | C195: 2033-11-03 | D195: 木 | E195: 文化の日
B196: 215 | C196: 2033-11-23 | D196: 水 | E196: 勤労感謝の日
B197: 216 | C197: 2034-01-01 | D197: 日 | E197: 元日
B198: 217 | C198: 2034-01-02 | D198: 月 | E198: 振替休日
B199: 218 | C199: 2034-01-09 | D199: 月 | E199: 成人の日
B200: 219 | C200: 2034-02-11 | D200: 土 | E200: 建国記念の日
B201: 220 | C201: 2034-02-23 | D201: 木 | E201: 天皇誕生日
... 297 more rows
